Workbook

Sheet Home
D3: Welcome!
AU4: Jump to credits
D5: Use the scorecard modules
D28: i Have you saved a backup copy of your file?
H150: B

Sheet CM Only (hidden)
E3: FOR CASE MANAGERS ONLY!
I11: This button copies the contents of an entire specified Scorecard into this workbook
I12: Please ensure that the number of rows in the evidence table is the same in this sheet as it is in the sheet you are copying. Otherwise it will corrupt this transfer
I18: This button copies the 2nd verifier's comments into this workbook
I26: This button copies all of the design R2 comments and scores into the 'Design' section in each credit sheet in preperation for an As Built rating
I32: This button clears everything but the verified design comments and scores from each credit sheet in preperation for an as built rating
I33: Please ensure you have saved a separate 'Design' copy of the scorecard
I34: THIS CANNOT BE UNDONE!!!!!
I40: This button hides the design score & comments area (it is not needed for the Design stage)
C46: Verifier comparison
C48: Credit | D48: Target Level | E48: Round 1 | G48: Round 2
E49: Level Verified | G49: Level Verified
E50: Verifier 1 | F50: Verifier 2 | G50: Verifier 1 | H50: Verifier 2
C51: =Summary!C5 -> Man-1 | D51: =man1tl -> 0 | E51: ='Man-1'!AJ64 -> 0 | F51: ='Man-1'!AR64 -> 0 | G51: ='Man-1'!AZ64 -> 0 | H51: ='Man-1'!BH64 -> 0
C52: =Summary!C6 -> Man-2 | D52: =man2tl -> 0 | E52: ='Man-2'!AJ64 -> 0 | F52: ='Man-2'!AR64 -> 0 | G52: ='Man-2'!AZ64 -> 0 | H52: ='Man-2'!BH64 -> 0
C53: =Summary!C7 -> Man-3 | D53: =man3tl -> 0 | E53: ='Man-3'!AJ64 -> 0 | F53: ='Man-3'!AR64 -> 0 | G53: ='Man-3'!AZ64 -> 0 | H53: ='Man-3'!BH64 -> 0
C54: =Summary!C8 -> Man-4 | D54: =man4tl -> 0 | E54: ='Man-4'!AJ64 -> 0 | F54: ='Man-4'!AR64 -> 0 | G54: ='Man-4'!AZ64 -> 0 | H54: ='Man-4'!BH64 -> 0
C55: =Summary!C9 -> Man-5 | D55: =man5tl -> 0 | E55: ='Man-5'!AJ66 -> 0 | F55: ='Man-5'!AR66 -> 0 | G55: ='Man-5'!AZ66 -> 0 | H55: ='Man-5'!BH66 -> 0
C56: =Summary!C10 -> Man-6 | D56: =man6tl -> 0 | E56: ='Man-6'!AJ66 -> 0 | F56: ='Man-6'!AR66 -> 0 | G56: ='Man-6'!AZ66 -> 0 | H56: ='Man-6'!BH66 -> 0
C57: =Summary!C11 -> Man-7 | D57: =man7tl -> 0 | E57: ='Man-7'!AJ67 -> 0 | F57: ='Man-7'!AR67 -> 0 | G57: ='Man-7'!AZ67 -> 0 | H57: ='Man-7'!BH67 -> 0
C58: =Summary!C12 -> Pro-1 | D58: =pro1tl -> 0 | E58: ='Pro-1'!AJ64 -> 0 | F58: ='Pro-1'!AR64 -> 0 | G58: ='Pro-1'!AZ64 -> 0 | H58: ='Pro-1'!BH64 -> 0
C59: =Summary!C13 -> Pro-2 | D59: =pro2tl -> 0 | E59: ='Pro-2'!AJ64 -> 0 | F59: ='Pro-2'!AR64 -> 0 | G59: ='Pro-2'!AZ64 -> 0 | H59: ='Pro-2'!BH64 -> 0
C60: =Summary!C14 -> Pro-3 | D60: =pro3tl -> 0 | E60: ='Pro-3'!AJ64 -> 0 | F60: ='Pro-3'!AR64 -> 0 | G60: ='Pro-3'!AZ64 -> 0 | H60: ='Pro-3'!BH64 -> 0
C61: =Summary!C15 -> Pro-4 | D61: =pro4tl -> 0 | E61: ='Pro-4'!AJ66 -> 0 | F61: ='Pro-4'!AR66 -> 0 | G61: ='Pro-4'!AZ66 -> 0 | H61: ='Pro-4'!BH66 -> 0
C62: =Summary!C16 -> Cli-1 | D62: =cli1tl -> 0 | E62: ='Cli-1'!AJ66 -> 0 | F62: ='Cli-1'!AR66 -> 0 | G62: ='Cli-1'!AZ66 -> 0 | H62: ='Cli-1'!BH66 -> 0
C63: =Summary!C17 -> Cli-2 | D63: =cli2tl -> 0 | E63: ='Cli-2'!AJ66 -> 0 | F63: ='Cli-2'!AR66 -> 0 | G63: ='Cli-2'!AZ66 -> 0 | H63: ='Cli-2'!BH66 -> 0
C64: =Summary!C18 -> Ene-1 | D64: =ene1tl -> 0 | E64: ='Ene-1'!AJ64 -> 0 | F64: ='Ene-1'!AR64 -> 0 | G64: ='Ene-1'!AZ64 -> 0 | H64: ='Ene-1'!BH64 -> 0
C65: =Summary!C19 -> Ene-2 | D65: =ene2tl -> 0 | E65: ='Ene-2'!AJ63 -> 0 | F65: ='Ene-2'!AR63 -> 0 | G65: ='Ene-1'!AZ63 -> 0 | H65: ='Ene-2'!BH63 -> 0
C66: =Summary!C20 -> Wat-1 | D66: =wat1tl -> 0 | E66: ='Wat-1'!AJ64 -> 0 | F66: ='Wat-1'!AR64 -> 0 | G66: ='Wat-1'!AZ64 -> 0 | H66: ='Wat-1'!BH64 -> 0
C67: =Summary!C21 -> Wat-2 | D67: =wat2tl -> 0 | E67: ='Wat-2'!AJ65 -> 0 | F67: ='Wat-2'!AR6 -> 0 | G67: ='Wat-2'!AZ65 -> 0 | H67: ='Wat-2'!BH65 -> 0
C68: =Summary!C22 -> Mat-1 | D68: =mat1tl -> 0 | E68: ='Mat-1'!AJ64 -> 0 | F68: ='Mat-1'!AR64 -> 0 | G68: ='Mat-1'!AZ64 -> 0 | H68: ='Mat-1'!BH64 -> 0
C69: =Summary!C23 -> Mat-2 | D69: =mat2tl -> 0 | E69: ='Mat-2'!AJ63 -> 0 | F69: ='Mat-2'!AR63 -> 0 | G69: ='Mat-2'!AZ63 -> 0 | H69: ='Mat-2'!BH63 -> 0
C70: =Summary!C24 -> Dis-1 | D70: =dis1tl -> 0 | E70: ='Dis-1'!AJ64 -> 0 | F70: ='Dis-1'!AR64 -> 0 | G70: ='Dis-1'!AZ64 -> 0 | H70: ='Dis-1'!BH64 -> 0
C71: =Summary!C25 -> Dis-2 | D71: =dis2tl -> 0 | E71: ='Dis-2'!AJ64 -> 0 | F71: ='Dis-2'!AR64 -> 0 | G71: ='Dis-2'!AZ64 -> 0 | H71: ='Dis-2'!BH64 -> 0
C72: =Summary!C26 -> Dis-3 | D72: =dis3tl -> 0 | E72: ='Dis-3'!AJ66 -> 0 | F72: ='Dis-3'!AR66 -> 0 | G72: ='Dis-3'!AZ66 -> 0 | H72: ='Dis-3'!BH66 -> 0
C73: =Summary!C27 -> Dis-4 | D73: =dis4tl -> 0 | E73: ='Dis-4'!AJ62 -> 0 | F73: ='Dis-4'!AR62 -> 0 | G73: ='Dis-4'!AZ62 -> 0 | H73: ='Dis-4'!BH62 -> 0
C74: =Summary!C28 -> Dis-5 | D74: =dis5tl -> 0 | E74: ='Dis-5'!AJ66 -> 0 | F74: ='Dis-5'!AR66 -> 0 | G74: ='Dis-5'!AZ66 -> 0 | H74: ='Dis-5'!BH66 -> 0
C75: =Summary!C29 -> Lan-1 | D75: =lan1tl -> 0 | E75: ='Lan-1'!AJ64 -> 0 | F75: ='Lan-1'!AR64 -> 0 | G75: ='Lan-1'!AZ64 -> 0 | H75: ='Lan-1'!BH64 -> 0
C76: =Summary!C30 -> Lan-2 | D76: =lan2tl -> 0 | E76: ='Lan-2'!AJ64 -> 0 | F76: ='Lan-2'!AR64 -> 0 | G76: ='Lan-2'!AZ64 -> 0 | H76: ='Lan-2'!BH64 -> 0
C77: =Summary!C31 -> Lan-3 | D77: =lan3tl -> 0 | E77: ='Lan-3'!AJ62 -> 0 | F77: ='Lan-3'!AR62 -> 0 | G77: ='Lan-3'!AZ62 -> 0 | H77: ='Lan-3'!BH62 -> 0
C78: =Summary!C32 -> Lan-4 | D78: =lan4tl -> 0 | E78: ='Lan-4'!AJ62 -> 0 | F78: ='Lan-4'!AR62 -> 0 | G78: ='Lan-4'!AZ62 -> 0 | H78: ='Lan-4'!BH62 -> 0
C79: =Summary!C33 -> Was-1 | D79: =was1tl -> 0 | E79: ='Was-1'!AJ66 -> 0 | F79: ='Was-1'!AR66 -> 0 | G79: ='Was-1'!AZ66 -> 0 | H79: ='Was-1'!BH66 -> 0
C80: =Summary!C34 -> Was-2 | D80: =was2tl -> 0 | E80: ='Was-2'!AJ67 -> 0 | F80: ='Was-2'!AR67 -> 0 | G80: ='Was-2'!AZ67 -> 0 | H80: ='Was-2'!BH67 -> 0
C81: =Summary!C35 -> Was-3 | D81: =was3tl -> 0 | E81: ='Was-3'!AJ64 -> 0 | F81: ='Was-3'!AR64 -> 0 | G81: ='Was-3'!AZ64 -> 0 | H81: ='Was-3'!BH64 -> 0
C82: =Summary!C36 -> Eco-1 | D82: =eco1tl -> 0 | E82: ='Eco-1'!AJ63 -> 0 | F82: ='Eco-1'!AR63 -> 0 | G82: ='Eco-1'!AZ63 -> 0 | H82: ='Eco-1'!BH63 -> 0
C83: =Summary!C37 -> Eco-2 | D83: =eco2tl -> 0 | E83: ='Eco-2'!AJ71 -> 0 | F83: ='Eco-2'!AR71 -> 0 | G83: ='Eco-2'!AZ71 -> 0 | H83: ='Eco-2'!BH71 -> 0
C84: =Summary!C38 -> Hea-1 | D84: =hea1tl -> 0 | E84: ='Hea-1'!AJ64 -> 0 | F84: ='Hea-1'!AR64 -> 0 | G84: ='Hea-1'!AZ64 -> 0 | H84: ='Hea-1'!BH64 -> 0
C85: =Summary!C39 -> Hea-2 | D85: =hea2tl -> 0 | E85: ='Hea-2'!AJ62 -> 0 | F85: ='Hea-2'!AR62 -> 0 | G85: ='Hea-2'!AZ62 -> 0 | H85: ='Hea-2'!BH62 -> 0
C86: =Summary!C40 -> Her-1 | D86: =her1tl -> 0 | E86: ='Her-1'!AJ68 -> 0 | F86: ='Her-1'!AR68 -> 0 | G86: ='Her-1'!AZ68 -> 0 | H86: ='Her-1'!BH68 -> 0
C87: =Summary!C41 -> Her-2 | D87: =her2tl -> 0 | E87: ='Her-2'!AJ64 -> 0 | F87: ='Her-2'!AR64 -> 0 | G87: ='Her-2'!AZ64 -> 0 | H87: ='Her-2'!BH64 -> 0
C88: =Summary!C42 -> Sta-1 | D88: =sta1tl -> 0 | E88: ='Sta-1'!AJ64 -> 0 | F88: ='Sta-1'!AR64 -> 0 | G88: ='Sta-1'!AZ64 -> 0 | H88: ='Sta-1'!BH64 -> 0
C89: =Summary!C43 -> Sta-2 | D89: =sta2tl -> 0 | E89: ='Sta-2'!AJ69 -> 0 | F89: ='Sta-2'!AR69 -> 0 | G89: ='Sta-2'!AZ69 -> 0 | H89: ='Sta-2'!BH69 -> 0
C90: =Summary!C44 -> Sta-3 | D90: =sta3tl -> 0 | E90: ='Sta-3'!AJ69 -> 0 | F90: ='Sta-3'!AR69 -> 0 | G90: ='Sta-3'!AZ69 -> 0 | H90: ='Sta-3'!BH69 -> 0
C91: =Summary!C45 -> Sta-4 | D91: =sta4tl -> 0 | E91: ='Sta-4'!AJ65 -> 0 | F91: ='Sta-4'!AR65 -> 0 | G91: ='Sta-4'!AZ65 -> 0 | H91: ='Sta-4'!BH65 -> 0
C92: =Summary!C46 -> Urb-1 | D92: =urb1tl -> 0 | E92: ='Urb-1'!AJ65 -> 2 | F92: ='Urb-1'!AR65 -> 2 | G92: ='Urb-1'!AZ65 -> 2 | H92: ='Urb-1'!BH65 -> 2
C93: =Summary!C47 -> Urb-2 | D93: =urb2tl -> 0 | E93: ='Urb-2'!AJ64 -> 0 | F93: ='Urb-2'!AR64 -> 0 | G93: ='Urb-2'!AZ64 -> 0 | H93: ='Urb-2'!BH64 -> 0
C94: =Summary!C48 -> Inn-1 | D94: =inn1tl -> 0 | E94: ='Inn-1'!AJ69 -> 0 | F94: ='Inn-1'!AR69 -> 0 | G94: ='Inn-1'!AZ69 -> 0 | H94: ='Inn-1'!BH69 -> 0

Sheet Background (hidden)
B5: This is a blank and unlocked sheet for Assessors
B6: to include overall project summary information that
B7: would be useful to ISCA or Verifiers.
B9: Assessments can refer back to this page.
B11: You can include links to videos or online content as well.
B13: Project Background:
B26: Purpose of the Project and Expected Outcomes:
B39: Other information:
B52: Weblinks:

Sheet Legal (hidden)
B8: Authorisation, Acknowledgement and Disclaimer
B9: The IS – Infrastructure Sustainability Rating Tool has been developed by the Infrastructure Sustainability Council of Australia (ISCA). The IS rating tool evaluates sustainability initiatives and potential environmental, social and economic impacts of infrastructure projects and assets. It is intended for use by stakeholders, including design, construction and operation project team members, as a guide for sustainable design, procurement, construction and operation. The IS rating tool is subject to further development.
B11: The IS rating tool has been developed with the assistance and participation of representatives from many organisations. The views and opinions expressed have been determined by ISCA and its Committees.
B13: Together, ISCA, the IS rating tool and all accompanying documentation represent ISCA’s approved standard to improve the sustainability of infrastructure using established and/or advanced industry principles, practices, materials and standards.
B15: ISCA authorises you to view and use the IS rating tool for your individual use only. In exchange for this authorisation, you agree that ISCA retains all copyright and other proprietary notices rights contained in and in relation to the IS rating tool and you agree not to sell, modify, or use for another purpose the IS rating tool or to reproduce, display or distribute the IS rating tool in any way for any public or commercial purpose, including display on a website or in a networked environment. Unauthorised use of the IS rating tool will violate copyright and other laws, and is prohibited. All text, graphics, layout and other elements of content contained in the IS rating tool are owned by ISCA and are protected by copyright, trade mark and other laws.
B17: ISCA does not accept responsibility, including for negligence, for any inaccuracy within the IS rating tool and makes no warranty, express or implied, including the warranties of merchantability and fitness for a particular purpose, nor assumes any legal liability or responsibility to you or any third party for the accuracy, completeness, or use of, or reliance on, any information contained in the IS rating tool, or for any injury, loss or damage (including, without limitation, equitable relief and economic loss) arising out of or in connection with any such use or reliance.
B19: To the maximum extent permitted by law, ISCA does not accept responsibility, including without limitation for negligence, for any inaccuracy within the IS rating tool and makes no warranty, express or implied, including the warranties of merchantability and fitness for a particular purpose, nor assumes any legal liability or responsibility to you or any third party for the accuracy, completeness, or use of, or reliance on, any information contained in the IS rating tool, or for any injury, loss or damage (including, without limitation, equitable relief and economic loss) arising out of or in connection with any such use or reliance.
B21: ISCA and the IS rating tool are no substitute for professional advice. You should seek your own professional and other appropriate advice on the matters addressed by them.
B23: As a condition of use, you covenant not to sue, and agree to waive and release ISCA, its officers, agents, employees and members from any and all claims, demands and causes of action for any injury, loss, destruction or damage (including, without limitation, equitable relief and economic loss) that you may now or hereafter have a right to assert against such parties arising out of or in connection with your use of, or reliance on, ISCA or the IS rating tool.
B25: ISCA does not endorse any self-assessed AGIC rating achieved by the use of the IS rating tool. ISCA offers a formal certification process; this service provides for independent third party review of points claimed to ensure all points can be demonstrated to be achieved by the provision of the necessary documentary evidence. The use of the IS rating tool without formal certification by ISCA does not entitle the user or any other party, to promote any rating achieved.
B27: The application of the IS rating tool to any and all infrastructure projects and assets is encouraged including to assess and improve the sustainable design, construction and operating attributes of such infrastructure projects and assets. No fee is payable to AGIC for such use, however formal recognition of the IS rating – and the right to promote same – requires the undertaking of the formal certification process which is offered by ISCA.
B29: You agree and acknowledge that you are only authorised to proceed to use the IS rating tool on the basis described above.
B31: © Infrastructure Sustainability Council of Australia
B32: All rights reserved.

Sheet Introduction (hidden)
B8: Introduction to IS
B9: What is IS?
B10: What does the IS rating scheme do?
B11: Who can use the IS rating scheme?
B12: What types of infrastructure does the scheme apply to?
B13: What development phases does the scheme apply to?
B14: What are the IS rating levels?
B15: What is the rating process?
B16: Limitations
B17: Acknowledgements
B19: What is IS?
B20: IS' stands for 'Infrastructure Sustainability'. The IS rating scheme for infrastructure is developed and administered by the Infrastructure Sustainability Council of Australia (ISCA). IS is Australia’s only comprehensive rating system for evaluating sustainability across design, construction and operation of infrastructure.
B21: The IS rating scheme aims to:
B22: • Provide a common national language for sustainability in infrastructure
B23: • Provide a vehicle for consistent application and evaluation of sustainability in tendering processes
B24: • Help in scoping whole-of-life sustainability risks for assets/networks, enabling smarter solutions that reduce risks and costs
B25: • Foster resource efficiency and waste reduction, reducing costs
B26: • Foster innovation and continuous improvement in the sustainability outcomes from infrastructure
B27: • Build an organisation’s credentials and reputation in its approach to sustainability in infrastructure
B29: What does the IS rating scheme do?
B30: The IS rating scheme can be used to assess the sustainability credentials of infrastructure.
B31: ISCA recommends that you use this rating tool in conjunction with the IS Technical Manual. To obtain a copy, please see www.isca.org.au
B33: Who can use the IS rating scheme?
B34: ISCA encourages all industry stakeholders to use the scheme, e.g. developers, designers, planners, legislators, constructors, operators, owners etc.
B35: A single rating can be obtained for infrastructure assets/networks that include more than one infrastructure type. Large assets/networks which are packaged into multiple smaller assets/networks may obtain multiple ratings.
B36: A formal certification from the ISCA is necessary for the user or any other party to promote the IS rating achieved. More information about the Certification process is available in our website at www.isca.org.au
B37: The use of the IS rating scheme without formal certification by ISCA does not entitle the user or any other party to promote the IS rating achieved. No fee is payable to ISCA for such use, however formal recognition of the IS rating - and the right to promote same - requires undertaking the formal certification process offered by ISCA
B39: What types of infrastructure does the scheme apply to?
B40: The IS rating tool can be used to assess a range of infrastructure types as described in the following figure:
B51: If you are unsure about whether your infrastructure can be rated, please contact ISCA.
B53: What development phases does the scheme apply to?
B54: This scorecard deals specifically with the design and as built phase of the infrastructure lifecyle. There are three rating types that can be achieved as follows:
B55: Rating Type | C55: When can this be applied for? | D55: Details
B56: Design | C56: End of planning and design | D56: May be awarded based on the inclusion of design elements and construction requirements for sustainability in the project documentation. This is an ’interim’ rating and must be replaced by an As Built rating after construction.
B57: As Built | C57: End of construction | D57: May be awarded for the inclusion of design elements, and construction requirements for sustainability in the project documentation along with the measured sustainability performance during construction and built into the infrastructure asset. The rating may be awarded after practical completion of the project. This rating supersedes the Design rating.
B58: Operation | C58: During operation | D58: May be awarded during operation of an asset. The Operation rating is based on the measured sustainability performance of the operating infrastructure asset. There is no requirement for the infrastructure asset to have achieved either a Design rating or an As Built rating to achieve an Operation Rating. Existing infrastructure assets in operation are eligible to apply for an Operation Rating. The Operation Rating must be revalidated every five years.
B60: What are the IS rating levels?
B61: The IS rating tool uses a 100 point scale to measure performance and this score determines the rating level achieved as follows:
B62: • Scores <25 points are not eligible to apply for a certified rating.
B63: • Scores from 25 to <50 points are eligible to apply for a 'Commended' rating.
B64: • Scores from 50 to <75 points are eligible to apply for an 'Excellent' rating.
B65: • Scores from 75 to 100 points are eligible to apply for a 'Leading' rating.
B67: What is the rating process?
B68: There are four main stages in the IS rating process as outlined in the following figure:
B77: Limitations
B78: ISCA does not endorse any self-assessed ISCA rating achieved by the use of the IS rating scheme. ISCA offers a formal certification process; this service provides for independent third party review of points claimed to ensure all points can be demonstrated to be achieved by the provision of the necessary documentary evidence. The use of the IS rating scheme without formal certification by ISCA does not entitle the user or any other party to promote any rating achieved. No fee is payable to ISCA for such use, however formal recognition of the IS rating - and the right to promote same - requires the undertaking of the formal certification process which is offered by ISCA.
B80: Acknowledgements
B81: The Infrastructure Sustainability Council of Australia (ISCA) thanks everyone who contributed funds, content, time and effort in the development of IS. In particular the Category Authors, Peer Reviewers, Global Review Panel and Pilot Projects. The support of the following sponsors is acknowledged:
B83: Commonwealth Department of Climate Change and Energy Efficiency
B84: Commonwealth Department of Infrastructure and Transport
B85: NSW Department of Environment, Climate Change and Water
B86: Queensland Department of Transport and Main Roads
B87: BlueScope Steel
B88: Plastics Industry Pipe Association
B89: Queensland Department of Environment and Resource Management
B90: Civil Contractors Federation
B91: GHD
B92: NetBalance
B94: Category Authors: | D94: Global Review Panel: | E94: Pilot Projects:
B95: UTS ISF | D95: Rick Walters | E95: Shannon Dam
B96: WorleyParsons | D96: Denis Else | E96: Lithgow Seage Treatmen Plant
B97: Parsons Brinckerhoff | D97: Rob Turk | E97: Logan Water Main
B98: Aurecon | D98: Russell Cutler | E98: Eastern Busway
B99: NetBalance | D99: David Bentley | E99: Great Eastern Highway - Roe Interchange
B100: Edge Environment | D100: Tony Stapledon | E100: City Link
B101: EnviroPartners | D101: Kelly O'Halloran | E101: Southport Broadwater Parklands
B102: Envisage Consulting | E102: Eastern Tertiary Alliance
B103: AECOM | D103: Tool Design: | E103: Toorourrong Reservoir Upgrade
D104: Scott Losee | E104: Kingsgrove to Revesby Quadruplication
B105: Peer Reviewers: | E105: Enlarged Cotter Dam
B106: Julian Hill | E106: Great Eastern Highway Upgrade - Belmont
B107: Jane Scanlon | E107: Inner West Busway along Victoria Road
B108: Brian Garsden | E108: Glenfield Transport Interchange
B109: Mark Carden | D109: In-kind Support: | E109: Northern Busway (RCH to Windsor)
B110: Mark Latham | D110: GHD
B111: Ed Smith | D111: Thiess
B112: Bill Morris | D112: AECOM
B113: Rebecca Hendy | D113: Arup
B114: Brett Lane | D114: Clayton Utz
B115: Brett Donaldson | D115: Freehills
B116: Steve Lee | D116: Qld Department of Environment and Resource Management
B117: Michael Nolan | D117: Parsons Brinckerhoff
B118: Robert Power | D118: Manidis Roberts
B119: Penny Townley | D119: MWH
B120: Michael Gerner | D120: CRC for Infrastructure Engineering Asset Management

Sheet Instructions - Weightings (hidden)
B10: Weightings Assessment
B11: The weightings assessment may be conducted in the following ways: (a) By a stakeholder workshop (b) By a project/asset team (representing stakeholders) (c) By an individual Assessor Option (a) is recommended and could be informed by a materiality assessment, Environmental Impact Assessment, risk assessment or similar. Option (b) or (c) is allowable but only if informed by a materiality assessment, Environmental Impact Assessment, risk assessment or similar.
B13: 1. Complete the Project or Asset Input worksheet and in particular the rating type as this affects the weightings assessment process as some credits are automatically deemed immaterial (scoped out) for Design and Operation ratings. Ensure that the project/asset description includes details of the activities and services involved in operation of the asset e.g. those that consume energy, water or materials, and urban and landscape design features. Ensure that the construction/maintenance methodology includes details of the activities and services involved e.g. those that consume energy, water or materials; generate water, noise, vibration or light pollution (including night works); disturb soil; and generate waste.
B14: 2. Gather the following information (if available): (a) Existing materiality assessment, Environmental Impact Statement or similar (b) Functional spec. (c) Construction/maintenance methodology (d) Asset design life (e) Location map showing: - construction footprint - proximity to natural hazards - water sources - receiving waters - noise receivers - vibration receivers - population density - light receivers - potential for flood impacts up and downstream - ecological habitat within and surrounding the asset/network including sensitivity - heritage values (f) Contamination studies (g) Flood maps (h) Stakeholder analysis
B15: 3. Determine how the weightings assessment will be undertaken. If it is being undertaken by a team (with or representing stakeholders), schedule a meeting and prepare the team for the meeting by sending them appropriate background information. It may be useful for each participant to complete the weightings assessment on their own and bring this to the meeting.
B16: Assessment
B17: 5a. Where there is no existing materiality assessment, EIA, risk assessment or similar, answer each of the Questions to the right of the Materiality Goal Question in the yellow boxes (up to 3 for each topic) which are simple to answer questions to help to determine the materiality score for that topic. The questions appear when the cell is clicked. The allowable answers are selectable from the drop down list. If you do not answer a question it will be left as "No entry". Use the information gathered during preparation to help to answer the Questions. Consider the significance of each issue to the overall project, typically on a worst case basis, even if the issue is only relevant to a portion of the project (e.g. if only a small portion of the project is in an 'urban' environment then still select urban as the answer as this is likely to reflect the worst case impact). Ensure that answers reflect the consensus of the team.
B18: 5b. Where there is a suitable existing materiality assessment, EIA, risk assessment or similar, start by considering those issues covered in the assessment. For these issues, insert Alternate Materiality Scores as follows: Key assessment issues = 3 (may be scored 4 if for some reason an issue is especially dominant, please justify) Other assessment issues = 2 Not raised within the assessment but within its scope = 0 For those issues not covered within the assessment and outside its scope then answer the weightings assessment Questions instead (see 5a above).
B19: 6. Keep relevant documentation to justify the assessment and note this evidence in the Evidence Supplied column. Number the evidence using the Evidence Naming Convention (refer to the IS Technical Manual for details) and refer to relevant sections of the assessment to assist the Verifier.
B20: 7. Some topics are deemed to always have a moderate materiality and so have no Questions to answer. Some Questions are marked 'NA' showing that no answer is required. Some Questions are repeated and in these cases, the answer is taken from an earlier question.
B21: 8. Once the Questions for a topic are answered, the tool calculates a Materiality Score from 0 to 4 as follows: 0 = Not material (scoped out) 1 = Low materiality (half as important as moderate) 2 = Moderate materiality 3 = High materiality (50% more important than moderate) 4 = Very high materiality (twice as important as moderate)
B22: 9. Based on the Materiality Scores, the tool adjusts the credit weightings from their defaults, it removes any credits that fall below a threshold and normalises the points so that they total 100 (excluding Innovation credits). If using the questions to determine materiality (5a above) then check that all Questions have been answered by checking that "All Q's answered" indicates "Yes" at the top of the Assessment sheet. Review the Final Credit Points. The Charts provided may assist the review. If the team disagrees with any of the credit weightings then an Alternate Materiality Score may be proposed with suitable Justification. Review the Final Credit Scores again after providing any alternates.
B23: 10. Provide the completed Weightings Assessment and relevant evidence to the ISCA Case Manager for verification.
B25: Verification
B26: 11. The purpose of verification is to check that the weightings assessment has been conducted appropriately and that the resulting weightings are fair and appropriate to be used within the IS rating tool scorecard for this rating. The ISCA Case Manager will review the completed IS Weightings Assessment and evidence to ensure it is ready for verifier review, complete the relevant section in the Verifier sheet and then notify the Verifier that it is ready.
B27: 12. The Verifier will review the assessment and evidence. The Verifier may verify the assessment or ask for further information. Where further information is requested, the Verifier must provide clear comments about why they cannot verify the assessment and what further information is needed. Be specific about each relevant topic and evidence. Complete the relevant section in the Verification sheet and notify the Case Manager when finished.
B28: 13. The Case Manager will notify the Assessor whether the assessment has been verified or whether further information is requested. The Assessor will update and resubmit the assessment if required and steps 9 and 10 will be repeated. If the assessment is not verified after round two then the Case Manager and Assessor will discuss appropriate actions.

Sheet Instructions - Scorecard (hidden)
B3: Project Info
B4: Complete the Project Info page and in particular the rating type as this affects the tool structure.
B5: The scorecard contains three main sections
B6: 1. Assessor Progress Tracking
B7: 2. Self-Assessment / Verification
B8: 3. Cost Benefit Assessment
B10: Assessor Progress Tracking The tracking section of the scorecard is not required for the IS Verification process.
B12: Self-Assessment / Verification
B13: Round 1: Complete Assessment Round 1 by filling in the self-assessed score for each credit and including any relevant comments for the verifier.
B14: Round 2: Note the self-assessed score from Round 1 cannot be increased for Round 2 verification. Complete Assessment Round 2 by filling in the self-assessed score for each credit and include comments to address the Round 1 verification meeting comments.
B15: The total points achieved are shown on the Summary tab and scorecard charts.
B17: Cost Benefit Assessment
B18: The cost benefit assessment section should be used to capture cost and benefit details for various credits and credit initiatives. A cost benefit section for each credit has also been included to capture summary information. Wherever possible this information should be filled out before the self-assessment has been submitted to ISCA for verification.
B19: www.isca.org.au

Sheet Asset Input
B3: About the asset | M3: About the IS rating
E6: Long name of asset: | R6: Rating number (assigned by ISCA):
E7: Abbreviated name:
R9: Rating type: | S9: Design
E10: Location: | R10: Target rating level: | S10: Commended
E11: State or region:
E12: Country:
E13: Website URL: | R13: Case Manager:
R14: Verifier 1:
R15: Verifier 2:
E16: Infrastructure type: | F16: Road (surface)
E17: Annual OPEX ($'000s):
E18: Annual CAPEX ($'000s): | J18: Currency: | K18: AUD | R18: Registrant (organisation):
R19: Other key stakeholders:
B21: Description of asset
R25: Name of Assessor (Round 1):
R26: Name of Assessor (Round 2):
B27: Description of construction/maintenance methodology | R27: Name of responsible executive:
R30: Asset operator:
R31: Key consultants:
B33: Description of geographical extent of the asset
B39: Summary of sustainability aspirations (for publication)
B45: Rating Plan
F47: Milestone | L47: Date | N47: Milestone | T47: Date
F48: Registration | N48: Round 1 Assessment submitted
F49: ISCA Kick-off workshop | N49: Round 1 Verified
F50: Base Case Proposal submitted | N50: Round 2 Assessment submitted
F51: Base Case Proposal Verified | N51: Round 2 Verified
F52: Weightings Assessment submitted | N52: Case Study Preparation
F53: Weightings Assessment verified | N53: Rating Certified

Sheet Actions (hidden)
B2: Credit | C2: ID | D2: Action description | E2: Owner | F2: Date | G2: Status
B3: ='Man-1'!U153 -> Man-1 | C3: ='Man-1'!V153 ->  | D3: ='Man-1'!W153 ->  | E3: ='Man-1'!X153 ->  | F3: ='Man-1'!Y153 ->  | G3: ='Man-1'!Z153 ->  | H3: ='Man-1'!AA153 -> 1
B4: ='Man-1'!U154 -> Man-1 | C4: ='Man-1'!V154 ->  | D4: ='Man-1'!W154 ->  | E4: ='Man-1'!X154 ->  | F4: ='Man-1'!Y154 ->  | G4: ='Man-1'!Z154 ->  | H4: ='Man-1'!AA154 -> 1
B5: ='Man-1'!U155 -> Man-1 | C5: ='Man-1'!V155 ->  | D5: ='Man-1'!W155 ->  | E5: ='Man-1'!X155 ->  | F5: ='Man-1'!Y155 ->  | G5: ='Man-1'!Z155 ->  | H5: ='Man-1'!AA155 -> 1
B6: ='Man-1'!U156 -> Man-1 | C6: ='Man-1'!V156 ->  | D6: ='Man-1'!W156 ->  | E6: ='Man-1'!X156 ->  | F6: ='Man-1'!Y156 ->  | G6: ='Man-1'!Z156 ->  | H6: ='Man-1'!AA156 -> 1
B7: ='Man-1'!U157 -> Man-1 | C7: ='Man-1'!V157 ->  | D7: ='Man-1'!W157 ->  | E7: ='Man-1'!X157 ->  | F7: ='Man-1'!Y157 ->  | G7: ='Man-1'!Z157 ->  | H7: ='Man-1'!AA157 -> 1
B8: ='Man-2'!U141 -> Man-2 | C8: ='Man-2'!V141 ->  | D8: ='Man-2'!W141 ->  | E8: ='Man-2'!X141 ->  | F8: ='Man-2'!Y141 ->  | G8: ='Man-2'!Z141 ->  | H8: ='Man-2'!AA141 -> 1
B9: ='Man-2'!U142 -> Man-2 | C9: ='Man-2'!V142 ->  | D9: ='Man-2'!W142 ->  | E9: ='Man-2'!X142 ->  | F9: ='Man-2'!Y142 ->  | G9: ='Man-2'!Z142 ->  | H9: ='Man-2'!AA142 -> 1
B10: ='Man-2'!U143 -> Man-2 | C10: ='Man-2'!V143 ->  | D10: ='Man-2'!W143 ->  | E10: ='Man-2'!X143 ->  | F10: ='Man-2'!Y143 ->  | G10: ='Man-2'!Z143 ->  | H10: ='Man-2'!AA143 -> 1
B11: ='Man-2'!U144 -> Man-2 | C11: ='Man-2'!V144 ->  | D11: ='Man-2'!W144 ->  | E11: ='Man-2'!X144 ->  | F11: ='Man-2'!Y144 ->  | G11: ='Man-2'!Z144 ->  | H11: ='Man-2'!AA144 -> 1
B12: ='Man-2'!U145 -> Man-2 | C12: ='Man-2'!V145 ->  | D12: ='Man-2'!W145 ->  | E12: ='Man-2'!X145 ->  | F12: ='Man-2'!Y145 ->  | G12: ='Man-2'!Z145 ->  | H12: ='Man-2'!AA145 -> 1
B13: ='Man-3'!U143 -> Man-3 | C13: ='Man-3'!V143 ->  | D13: ='Man-3'!W143 ->  | E13: ='Man-3'!X143 ->  | F13: ='Man-3'!Y143 ->  | G13: ='Man-3'!Z143 ->  | H13: ='Man-3'!AA143 -> 1
B14: ='Man-3'!U144 -> Man-3 | C14: ='Man-3'!V144 ->  | D14: ='Man-3'!W144 ->  | E14: ='Man-3'!X144 ->  | F14: ='Man-3'!Y144 ->  | G14: ='Man-3'!Z144 ->  | H14: ='Man-3'!AA144 -> 1
B15: ='Man-3'!U145 -> Man-3 | C15: ='Man-3'!V145 ->  | D15: ='Man-3'!W145 ->  | E15: ='Man-3'!X145 ->  | F15: ='Man-3'!Y145 ->  | G15: ='Man-3'!Z145 ->  | H15: ='Man-3'!AA145 -> 1
B16: ='Man-3'!U146 -> Man-3 | C16: ='Man-3'!V146 ->  | D16: ='Man-3'!W146 ->  | E16: ='Man-3'!X146 ->  | F16: ='Man-3'!Y146 ->  | G16: ='Man-3'!Z146 ->  | H16: ='Man-3'!AA146 -> 1
B17: ='Man-3'!U147 -> Man-3 | C17: ='Man-3'!V147 ->  | D17: ='Man-3'!W147 ->  | E17: ='Man-3'!X147 ->  | F17: ='Man-3'!Y147 ->  | G17: ='Man-3'!Z147 ->  | H17: ='Man-3'!AA147 -> 1
B18: ='Man-4'!U140 -> Man-4 | C18: ='Man-4'!V140 ->  | D18: ='Man-4'!W140 ->  | E18: ='Man-4'!X140 ->  | F18: ='Man-4'!Y140 ->  | G18: ='Man-4'!Z140 ->  | H18: ='Man-4'!AA140 -> 1
B19: ='Man-4'!U141 -> Man-4 | C19: ='Man-4'!V141 ->  | D19: ='Man-4'!W141 ->  | E19: ='Man-4'!X141 ->  | F19: ='Man-4'!Y141 ->  | G19: ='Man-4'!Z141 ->  | H19: ='Man-4'!AA141 -> 1
B20: ='Man-4'!U142 -> Man-4 | C20: ='Man-4'!V142 ->  | D20: ='Man-4'!W142 ->  | E20: ='Man-4'!X142 ->  | F20: ='Man-4'!Y142 ->  | G20: ='Man-4'!Z142 ->  | H20: ='Man-4'!AA142 -> 1
B21: ='Man-4'!U143 -> Man-4 | C21: ='Man-4'!V143 ->  | D21: ='Man-4'!W143 ->  | E21: ='Man-4'!X143 ->  | F21: ='Man-4'!Y143 ->  | G21: ='Man-4'!Z143 ->  | H21: ='Man-4'!AA143 -> 1
B22: ='Man-4'!U144 -> Man-4 | C22: ='Man-4'!V144 ->  | D22: ='Man-4'!W144 ->  | E22: ='Man-4'!X144 ->  | F22: ='Man-4'!Y144 ->  | G22: ='Man-4'!Z144 ->  | H22: ='Man-4'!AA144 -> 1
B23: ='Man-5'!U148 -> Man-5 | C23: ='Man-5'!V148 ->  | D23: ='Man-5'!W148 ->  | E23: ='Man-5'!X148 ->  | F23: ='Man-5'!Y148 ->  | G23: ='Man-5'!Z148 ->  | H23: ='Man-5'!AA148 -> 1
B24: ='Man-5'!U149 -> Man-5 | C24: ='Man-5'!V149 ->  | D24: ='Man-5'!W149 ->  | E24: ='Man-5'!X149 ->  | F24: ='Man-5'!Y149 ->  | G24: ='Man-5'!Z149 ->  | H24: ='Man-5'!AA149 -> 1
B25: ='Man-5'!U150 -> Man-5 | C25: ='Man-5'!V150 ->  | D25: ='Man-5'!W150 ->  | E25: ='Man-5'!X150 ->  | F25: ='Man-5'!Y150 ->  | G25: ='Man-5'!Z150 ->  | H25: ='Man-5'!AA150 -> 1
B26: ='Man-5'!U151 -> Man-5 | C26: ='Man-5'!V151 ->  | D26: ='Man-5'!W151 ->  | E26: ='Man-5'!X151 ->  | F26: ='Man-5'!Y151 ->  | G26: ='Man-5'!Z151 ->  | H26: ='Man-5'!AA151 -> 1
B27: ='Man-5'!U152 -> Man-5 | C27: ='Man-5'!V152 ->  | D27: ='Man-5'!W152 ->  | E27: ='Man-5'!X152 ->  | F27: ='Man-5'!Y152 ->  | G27: ='Man-5'!Z152 ->  | H27: ='Man-5'!AA152 -> 1
B28: ='Man-6'!U149 -> Man-6 | C28: ='Man-6'!V149 ->  | D28: ='Man-6'!W149 ->  | E28: ='Man-6'!X149 ->  | F28: ='Man-6'!Y149 ->  | G28: ='Man-6'!Z149 ->  | H28: ='Man-6'!AA149 -> 1
B29: ='Man-6'!U150 -> Man-6 | C29: ='Man-6'!V150 ->  | D29: ='Man-6'!W150 ->  | E29: ='Man-6'!X150 ->  | F29: ='Man-6'!Y150 ->  | G29: ='Man-6'!Z150 ->  | H29: ='Man-6'!AA150 -> 1
B30: ='Man-6'!U151 -> Man-6 | C30: ='Man-6'!V151 ->  | D30: ='Man-6'!W151 ->  | E30: ='Man-6'!X151 ->  | F30: ='Man-6'!Y151 ->  | G30: ='Man-6'!Z151 ->  | H30: ='Man-6'!AA151 -> 1
B31: ='Man-6'!U152 -> Man-6 | C31: ='Man-6'!V152 ->  | D31: ='Man-6'!W152 ->  | E31: ='Man-6'!X152 ->  | F31: ='Man-6'!Y152 ->  | G31: ='Man-6'!Z152 ->  | H31: ='Man-6'!AA152 -> 1
B32: ='Man-6'!U153 -> Man-6 | C32: ='Man-6'!V153 ->  | D32: ='Man-6'!W153 ->  | E32: ='Man-6'!X153 ->  | F32: ='Man-6'!Y153 ->  | G32: ='Man-6'!Z153 ->  | H32: ='Man-6'!AA153 -> 1
B33: ='Man-7'!U157 -> Man-7 | C33: ='Man-7'!V157 ->  | D33: ='Man-7'!W157 ->  | E33: ='Man-7'!X157 ->  | F33: ='Man-7'!Y157 ->  | G33: ='Man-7'!Z157 ->  | H33: ='Man-7'!AA157 -> 1
B34: ='Man-7'!U158 -> Man-7 | C34: ='Man-7'!V158 ->  | D34: ='Man-7'!W158 ->  | E34: ='Man-7'!X158 ->  | F34: ='Man-7'!Y158 ->  | G34: ='Man-7'!Z158 ->  | H34: ='Man-7'!AA158 -> 1
B35: ='Man-7'!U159 -> Man-7 | C35: ='Man-7'!V159 ->  | D35: ='Man-7'!W159 ->  | E35: ='Man-7'!X159 ->  | F35: ='Man-7'!Y159 ->  | G35: ='Man-7'!Z159 ->  | H35: ='Man-7'!AA159 -> 1
B36: ='Man-7'!U160 -> Man-7 | C36: ='Man-7'!V160 ->  | D36: ='Man-7'!W160 ->  | E36: ='Man-7'!X160 ->  | F36: ='Man-7'!Y160 ->  | G36: ='Man-7'!Z160 ->  | H36: ='Man-7'!AA160 -> 1
B37: ='Man-7'!U161 -> Man-7 | C37: ='Man-7'!V161 ->  | D37: ='Man-7'!W161 ->  | E37: ='Man-7'!X161 ->  | F37: ='Man-7'!Y161 ->  | G37: ='Man-7'!Z161 ->  | H37: ='Man-7'!AA161 -> 1
B38: ='Pro-1'!U149 -> Pro-1 | C38: ='Pro-1'!V149 ->  | D38: ='Pro-1'!W149 ->  | E38: ='Pro-1'!X149 ->  | F38: ='Pro-1'!Y149 ->  | G38: ='Pro-1'!Z149 ->  | H38: ='Pro-1'!AA149 -> 1
B39: ='Pro-1'!U150 -> Pro-1 | C39: ='Pro-1'!V150 ->  | D39: ='Pro-1'!W150 ->  | E39: ='Pro-1'!X150 ->  | F39: ='Pro-1'!Y150 ->  | G39: ='Pro-1'!Z150 ->  | H39: ='Pro-1'!AA150 -> 1
B40: ='Pro-1'!U151 -> Pro-1 | C40: ='Pro-1'!V151 ->  | D40: ='Pro-1'!W151 ->  | E40: ='Pro-1'!X151 ->  | F40: ='Pro-1'!Y151 ->  | G40: ='Pro-1'!Z151 ->  | H40: ='Pro-1'!AA151 -> 1
B41: ='Pro-1'!U152 -> Pro-1 | C41: ='Pro-1'!V152 ->  | D41: ='Pro-1'!W152 ->  | E41: ='Pro-1'!X152 ->  | F41: ='Pro-1'!Y152 ->  | G41: ='Pro-1'!Z152 ->  | H41: ='Pro-1'!AA152 -> 1
B42: ='Pro-1'!U153 -> Pro-1 | C42: ='Pro-1'!V153 ->  | D42: ='Pro-1'!W153 ->  | E42: ='Pro-1'!X153 ->  | F42: ='Pro-1'!Y153 ->  | G42: ='Pro-1'!Z153 ->  | H42: ='Pro-1'!AA153 -> 1
B43: ='Pro-2'!U146 -> Pro-2 | C43: ='Pro-2'!V146 ->  | D43: ='Pro-2'!W146 ->  | E43: ='Pro-2'!X146 ->  | F43: ='Pro-2'!Y146 ->  | G43: ='Pro-2'!Z146 ->  | H43: ='Pro-2'!AA146 -> 1
B44: ='Pro-2'!U147 -> Pro-2 | C44: ='Pro-2'!V147 ->  | D44: ='Pro-2'!W147 ->  | E44: ='Pro-2'!X147 ->  | F44: ='Pro-2'!Y147 ->  | G44: ='Pro-2'!Z147 ->  | H44: ='Pro-2'!AA147 -> 1
B45: ='Pro-2'!U148 -> Pro-2 | C45: ='Pro-2'!V148 ->  | D45: ='Pro-2'!W148 ->  | E45: ='Pro-2'!X148 ->  | F45: ='Pro-2'!Y148 ->  | G45: ='Pro-2'!Z148 ->  | H45: ='Pro-2'!AA148 -> 1
B46: ='Pro-2'!U149 -> Pro-2 | C46: ='Pro-2'!V149 ->  | D46: ='Pro-2'!W149 ->  | E46: ='Pro-2'!X149 ->  | F46: ='Pro-2'!Y149 ->  | G46: ='Pro-2'!Z149 ->  | H46: ='Pro-2'!AA149 -> 1
B47: ='Pro-2'!U150 -> Pro-2 | C47: ='Pro-2'!V150 ->  | D47: ='Pro-2'!W150 ->  | E47: ='Pro-2'!X150 ->  | F47: ='Pro-2'!Y150 ->  | G47: ='Pro-2'!Z150 ->  | H47: ='Pro-2'!AA150 -> 1
B48: ='Pro-3'!U147 -> Pro-3 | C48: ='Pro-3'!V147 ->  | D48: ='Pro-3'!W147 ->  | E48: ='Pro-3'!X147 ->  | F48: ='Pro-3'!Y147 ->  | G48: ='Pro-3'!Z147 ->  | H48: ='Pro-3'!AA147 -> 1
B49: ='Pro-3'!U148 -> Pro-3 | C49: ='Pro-3'!V148 ->  | D49: ='Pro-3'!W148 ->  | E49: ='Pro-3'!X148 ->  | F49: ='Pro-3'!Y148 ->  | G49: ='Pro-3'!Z148 ->  | H49: ='Pro-3'!AA148 -> 1
B50: ='Pro-3'!U149 -> Pro-3 | C50: ='Pro-3'!V149 ->  | D50: ='Pro-3'!W149 ->  | E50: ='Pro-3'!X149 ->  | F50: ='Pro-3'!Y149 ->  | G50: ='Pro-3'!Z149 ->  | H50: ='Pro-3'!AA149 -> 1
B51: ='Pro-3'!U150 -> Pro-3 | C51: ='Pro-3'!V150 ->  | D51: ='Pro-3'!W150 ->  | E51: ='Pro-3'!X150 ->  | F51: ='Pro-3'!Y150 ->  | G51: ='Pro-3'!Z150 ->  | H51: ='Pro-3'!AA150 -> 1
B52: ='Pro-3'!U151 -> Pro-3 | C52: ='Pro-3'!V151 ->  | D52: ='Pro-3'!W151 ->  | E52: ='Pro-3'!X151 ->  | F52: ='Pro-3'!Y151 ->  | G52: ='Pro-3'!Z151 ->  | H52: ='Pro-3'!AA151 -> 1
B53: ='Pro-4'!U154 -> Pro-4 | C53: ='Pro-4'!V154 ->  | D53: ='Pro-4'!W154 ->  | E53: ='Pro-4'!X154 ->  | F53: ='Pro-4'!Y154 ->  | G53: ='Pro-4'!Z154 ->  | H53: ='Pro-4'!AA154 -> 1
B54: ='Pro-4'!U155 -> Pro-4 | C54: ='Pro-4'!V155 ->  | D54: ='Pro-4'!W155 ->  | E54: ='Pro-4'!X155 ->  | F54: ='Pro-4'!Y155 ->  | G54: ='Pro-4'!Z155 ->  | H54: ='Pro-4'!AA155 -> 1
B55: ='Pro-4'!U156 -> Pro-4 | C55: ='Pro-4'!V156 ->  | D55: ='Pro-4'!W156 ->  | E55: ='Pro-4'!X156 ->  | F55: ='Pro-4'!Y156 ->  | G55: ='Pro-4'!Z156 ->  | H55: ='Pro-4'!AA156 -> 1
B56: ='Pro-4'!U157 -> Pro-4 | C56: ='Pro-4'!V157 ->  | D56: ='Pro-4'!W157 ->  | E56: ='Pro-4'!X157 ->  | F56: ='Pro-4'!Y157 ->  | G56: ='Pro-4'!Z157 ->  | H56: ='Pro-4'!AA157 -> 1
B57: ='Pro-4'!U158 -> Pro-4 | C57: ='Pro-4'!V158 ->  | D57: ='Pro-4'!W158 ->  | E57: ='Pro-4'!X158 ->  | F57: ='Pro-4'!Y158 ->  | G57: ='Pro-4'!Z158 ->  | H57: ='Pro-4'!AA158 -> 1
B58: ='Cli-1'!U149 -> Cli-1 | C58: ='Cli-1'!V149 ->  | D58: ='Cli-1'!W149 ->  | E58: ='Cli-1'!X149 ->  | F58: ='Cli-1'!Y149 ->  | G58: ='Cli-1'!Z149 ->  | H58: ='Cli-1'!AA149 -> 1
B59: ='Cli-1'!U150 -> Cli-1 | C59: ='Cli-1'!V150 ->  | D59: ='Cli-1'!W150 ->  | E59: ='Cli-1'!X150 ->  | F59: ='Cli-1'!Y150 ->  | G59: ='Cli-1'!Z150 ->  | H59: ='Cli-1'!AA150 -> 1
B60: ='Cli-1'!U151 -> Cli-1 | C60: ='Cli-1'!V151 ->  | D60: ='Cli-1'!W151 ->  | E60: ='Cli-1'!X151 ->  | F60: ='Cli-1'!Y151 ->  | G60: ='Cli-1'!Z151 ->  | H60: ='Cli-1'!AA151 -> 1
B61: ='Cli-1'!U152 -> Cli-1 | C61: ='Cli-1'!V152 ->  | D61: ='Cli-1'!W152 ->  | E61: ='Cli-1'!X152 ->  | F61: ='Cli-1'!Y152 ->  | G61: ='Cli-1'!Z152 ->  | H61: ='Cli-1'!AA152 -> 1
B62: ='Cli-1'!U153 -> Cli-1 | C62: ='Cli-1'!V153 ->  | D62: ='Cli-1'!W153 ->  | E62: ='Cli-1'!X153 ->  | F62: ='Cli-1'!Y153 ->  | G62: ='Cli-1'!Z153 ->  | H62: ='Cli-1'!AA153 -> 1
B63: ='Cli-2'!U150 -> Cli-2 | C63: ='Cli-2'!V150 ->  | D63: ='Cli-2'!W150 ->  | E63: ='Cli-2'!X150 ->  | F63: ='Cli-2'!Y150 ->  | G63: ='Cli-2'!Z150 ->  | H63: ='Cli-2'!AA150 -> 1
B64: ='Cli-2'!U151 -> Cli-2 | C64: ='Cli-2'!V151 ->  | D64: ='Cli-2'!W151 ->  | E64: ='Cli-2'!X151 ->  | F64: ='Cli-2'!Y151 ->  | G64: ='Cli-2'!Z151 ->  | H64: ='Cli-2'!AA151 -> 1
B65: ='Cli-2'!U152 -> Cli-2 | C65: ='Cli-2'!V152 ->  | D65: ='Cli-2'!W152 ->  | E65: ='Cli-2'!X152 ->  | F65: ='Cli-2'!Y152 ->  | G65: ='Cli-2'!Z152 ->  | H65: ='Cli-2'!AA152 -> 1
B66: ='Cli-2'!U153 -> Cli-2 | C66: ='Cli-2'!V153 ->  | D66: ='Cli-2'!W153 ->  | E66: ='Cli-2'!X153 ->  | F66: ='Cli-2'!Y153 ->  | G66: ='Cli-2'!Z153 ->  | H66: ='Cli-2'!AA153 -> 1
B67: ='Cli-2'!U154 -> Cli-2 | C67: ='Cli-2'!V154 ->  | D67: ='Cli-2'!W154 ->  | E67: ='Cli-2'!X154 ->  | F67: ='Cli-2'!Y154 ->  | G67: ='Cli-2'!Z154 ->  | H67: ='Cli-2'!AA154 -> 1
B68: ='Ene-1'!U151 -> Ene-1 | C68: ='Ene-1'!V151 ->  | D68: ='Ene-1'!W151 ->  | E68: ='Ene-1'!X151 ->  | F68: ='Ene-1'!Y151 ->  | G68: ='Ene-1'!Z151 ->  | H68: ='Ene-1'!AA151 -> 1
B69: ='Ene-1'!U152 -> Ene-1 | C69: ='Ene-1'!V152 ->  | D69: ='Ene-1'!W152 ->  | E69: ='Ene-1'!X152 ->  | F69: ='Ene-1'!Y152 ->  | G69: ='Ene-1'!Z152 ->  | H69: ='Ene-1'!AA152 -> 1
B70: ='Ene-1'!U153 -> Ene-1 | C70: ='Ene-1'!V153 ->  | D70: ='Ene-1'!W153 ->  | E70: ='Ene-1'!X153 ->  | F70: ='Ene-1'!Y153 ->  | G70: ='Ene-1'!Z153 ->  | H70: ='Ene-1'!AA153 -> 1
B71: ='Ene-1'!U154 -> Ene-1 | C71: ='Ene-1'!V154 ->  | D71: ='Ene-1'!W154 ->  | E71: ='Ene-1'!X154 ->  | F71: ='Ene-1'!Y154 ->  | G71: ='Ene-1'!Z154 ->  | H71: ='Ene-1'!AA154 -> 1
B72: ='Ene-1'!U155 -> Ene-1 | C72: ='Ene-1'!V155 ->  | D72: ='Ene-1'!W155 ->  | E72: ='Ene-1'!X155 ->  | F72: ='Ene-1'!Y155 ->  | G72: ='Ene-1'!Z155 ->  | H72: ='Ene-1'!AA155 -> 1
B73: ='Ene-2'!U142 -> Ene-2 | C73: ='Ene-2'!V142 ->  | D73: ='Ene-2'!W142 ->  | E73: ='Ene-2'!X142 ->  | F73: ='Ene-2'!Y142 ->  | G73: ='Ene-2'!Z142 ->  | H73: ='Ene-2'!AA142 -> 1
B74: ='Ene-2'!U143 -> Ene-2 | C74: ='Ene-2'!V143 ->  | D74: ='Ene-2'!W143 ->  | E74: ='Ene-2'!X143 ->  | F74: ='Ene-2'!Y143 ->  | G74: ='Ene-2'!Z143 ->  | H74: ='Ene-2'!AA143 -> 1
B75: ='Ene-2'!U144 -> Ene-2 | C75: ='Ene-2'!V144 ->  | D75: ='Ene-2'!W144 ->  | E75: ='Ene-2'!X144 ->  | F75: ='Ene-2'!Y144 ->  | G75: ='Ene-2'!Z144 ->  | H75: ='Ene-2'!AA144 -> 1
B76: ='Ene-2'!U145 -> Ene-2 | C76: ='Ene-2'!V145 ->  | D76: ='Ene-2'!W145 ->  | E76: ='Ene-2'!X145 ->  | F76: ='Ene-2'!Y145 ->  | G76: ='Ene-2'!Z145 ->  | H76: ='Ene-2'!AA145 -> 1
B77: ='Ene-2'!U146 -> Ene-2 | C77: ='Ene-2'!V146 ->  | D77: ='Ene-2'!W146 ->  | E77: ='Ene-2'!X146 ->  | F77: ='Ene-2'!Y146 ->  | G77: ='Ene-2'!Z146 ->  | H77: ='Ene-2'!AA146 -> 1
B78: ='Wat-1'!U146 -> Wat-1 | C78: ='Wat-1'!V146 ->  | D78: ='Wat-1'!W146 ->  | E78: ='Wat-1'!X146 ->  | F78: ='Wat-1'!Y146 ->  | G78: ='Wat-1'!Z146 ->  | H78: ='Wat-1'!AA146 -> 1
B79: ='Wat-1'!U147 -> Wat-1 | C79: ='Wat-1'!V147 ->  | D79: ='Wat-1'!W147 ->  | E79: ='Wat-1'!X147 ->  | F79: ='Wat-1'!Y147 ->  | G79: ='Wat-1'!Z147 ->  | H79: ='Wat-1'!AA147 -> 1
B80: ='Wat-1'!U148 -> Wat-1 | C80: ='Wat-1'!V148 ->  | D80: ='Wat-1'!W148 ->  | E80: ='Wat-1'!X148 ->  | F80: ='Wat-1'!Y148 ->  | G80: ='Wat-1'!Z148 ->  | H80: ='Wat-1'!AA148 -> 1
B81: ='Wat-1'!U149 -> Wat-1 | C81: ='Wat-1'!V149 ->  | D81: ='Wat-1'!W149 ->  | E81: ='Wat-1'!X149 ->  | F81: ='Wat-1'!Y149 ->  | G81: ='Wat-1'!Z149 ->  | H81: ='Wat-1'!AA149 -> 1
B82: ='Wat-1'!U150 -> Wat-1 | C82: ='Wat-1'!V150 ->  | D82: ='Wat-1'!W150 ->  | E82: ='Wat-1'!X150 ->  | F82: ='Wat-1'!Y150 ->  | G82: ='Wat-1'!Z150 ->  | H82: ='Wat-1'!AA150 -> 1
B83: ='Wat-2'!U144 -> Wat-2 | C83: ='Wat-2'!V144 ->  | D83: ='Wat-2'!W144 ->  | E83: ='Wat-2'!X144 ->  | F83: ='Wat-2'!Y144 ->  | G83: ='Wat-2'!Z144 ->  | H83: ='Wat-2'!AA144 -> 1
B84: ='Wat-2'!U145 -> Wat-2 | C84: ='Wat-2'!V145 ->  | D84: ='Wat-2'!W145 ->  | E84: ='Wat-2'!X145 ->  | F84: ='Wat-2'!Y145 ->  | G84: ='Wat-2'!Z145 ->  | H84: ='Wat-2'!AA145 -> 1
B85: ='Wat-2'!U146 -> Wat-2 | C85: ='Wat-2'!V146 ->  | D85: ='Wat-2'!W146 ->  | E85: ='Wat-2'!X146 ->  | F85: ='Wat-2'!Y146 ->  | G85: ='Wat-2'!Z146 ->  | H85: ='Wat-2'!AA146 -> 1
B86: ='Wat-2'!U147 -> Wat-2 | C86: ='Wat-2'!V147 ->  | D86: ='Wat-2'!W147 ->  | E86: ='Wat-2'!X147 ->  | F86: ='Wat-2'!Y147 ->  | G86: ='Wat-2'!Z147 ->  | H86: ='Wat-2'!AA147 -> 1
B87: ='Wat-2'!U148 -> Wat-2 | C87: ='Wat-2'!V148 ->  | D87: ='Wat-2'!W148 ->  | E87: ='Wat-2'!X148 ->  | F87: ='Wat-2'!Y148 ->  | G87: ='Wat-2'!Z148 ->  | H87: ='Wat-2'!AA148 -> 1
B88: ='Mat-1'!U140 -> Mat-1 | C88: ='Mat-1'!V140 ->  | D88: ='Mat-1'!W140 ->  | E88: ='Mat-1'!X140 ->  | F88: ='Mat-1'!Y140 ->  | G88: ='Mat-1'!Z140 ->  | H88: ='Mat-1'!AA140 -> 1
B89: ='Mat-1'!U141 -> Mat-1 | C89: ='Mat-1'!V141 ->  | D89: ='Mat-1'!W141 ->  | E89: ='Mat-1'!X141 ->  | F89: ='Mat-1'!Y141 ->  | G89: ='Mat-1'!Z141 ->  | H89: ='Mat-1'!AA141 -> 1
B90: ='Mat-1'!U142 -> Mat-1 | C90: ='Mat-1'!V142 ->  | D90: ='Mat-1'!W142 ->  | E90: ='Mat-1'!X142 ->  | F90: ='Mat-1'!Y142 ->  | G90: ='Mat-1'!Z142 ->  | H90: ='Mat-1'!AA142 -> 1
B91: ='Mat-1'!U143 -> Mat-1 | C91: ='Mat-1'!V143 ->  | D91: ='Mat-1'!W143 ->  | E91: ='Mat-1'!X143 ->  | F91: ='Mat-1'!Y143 ->  | G91: ='Mat-1'!Z143 ->  | H91: ='Mat-1'!AA143 -> 1
B92: ='Mat-1'!U144 -> Mat-1 | C92: ='Mat-1'!V144 ->  | D92: ='Mat-1'!W144 ->  | E92: ='Mat-1'!X144 ->  | F92: ='Mat-1'!Y144 ->  | G92: ='Mat-1'!Z144 ->  | H92: ='Mat-1'!AA144 -> 1
B93: ='Mat-2'!U134 -> Mat-2 | C93: ='Mat-2'!V134 ->  | D93: ='Mat-2'!W134 ->  | E93: ='Mat-2'!X134 ->  | F93: ='Mat-2'!Y134 ->  | G93: ='Mat-2'!Z134 ->  | H93: ='Mat-2'!AA134 -> 1
B94: ='Mat-2'!U135 -> Mat-2 | C94: ='Mat-2'!V135 ->  | D94: ='Mat-2'!W135 ->  | E94: ='Mat-2'!X135 ->  | F94: ='Mat-2'!Y135 ->  | G94: ='Mat-2'!Z135 ->  | H94: ='Mat-2'!AA135 -> 1
B95: ='Mat-2'!U136 -> Mat-2 | C95: ='Mat-2'!V136 ->  | D95: ='Mat-2'!W136 ->  | E95: ='Mat-2'!X136 ->  | F95: ='Mat-2'!Y136 ->  | G95: ='Mat-2'!Z136 ->  | H95: ='Mat-2'!AA136 -> 1
B96: ='Mat-2'!U137 -> Mat-2 | C96: ='Mat-2'!V137 ->  | D96: ='Mat-2'!W137 ->  | E96: ='Mat-2'!X137 ->  | F96: ='Mat-2'!Y137 ->  | G96: ='Mat-2'!Z137 ->  | H96: ='Mat-2'!AA137 -> 1
B97: ='Mat-2'!U138 -> Mat-2 | C97: ='Mat-2'!V138 ->  | D97: ='Mat-2'!W138 ->  | E97: ='Mat-2'!X138 ->  | F97: ='Mat-2'!Y138 ->  | G97: ='Mat-2'!Z138 ->  | H97: ='Mat-2'!AA138 -> 1
B98: ='Dis-1'!U145 -> Dis-1 | C98: ='Dis-1'!V145 ->  | D98: ='Dis-1'!W145 ->  | E98: ='Dis-1'!X145 ->  | F98: ='Dis-1'!Y145 ->  | G98: ='Dis-1'!Z145 ->  | H98: ='Dis-1'!AA145 -> 1
B99: ='Dis-1'!U146 -> Dis-1 | C99: ='Dis-1'!V146 ->  | D99: ='Dis-1'!W146 ->  | E99: ='Dis-1'!X146 ->  | F99: ='Dis-1'!Y146 ->  | G99: ='Dis-1'!Z146 ->  | H99: ='Dis-1'!AA146 -> 1
B100: ='Dis-1'!U147 -> Dis-1 | C100: ='Dis-1'!V147 ->  | D100: ='Dis-1'!W147 ->  | E100: ='Dis-1'!X147 ->  | F100: ='Dis-1'!Y147 ->  | G100: ='Dis-1'!Z147 ->  | H100: ='Dis-1'!AA147 -> 1
B101: ='Dis-1'!U148 -> Dis-1 | C101: ='Dis-1'!V148 ->  | D101: ='Dis-1'!W148 ->  | E101: ='Dis-1'!X148 ->  | F101: ='Dis-1'!Y148 ->  | G101: ='Dis-1'!Z148 ->  | H101: ='Dis-1'!AA148 -> 1
B102: ='Dis-1'!U149 -> Dis-1 | C102: ='Dis-1'!V149 ->  | D102: ='Dis-1'!W149 ->  | E102: ='Dis-1'!X149 ->  | F102: ='Dis-1'!Y149 ->  | G102: ='Dis-1'!Z149 ->  | H102: ='Dis-1'!AA149 -> 1
B103: ='Dis-2'!U144 -> Dis-2 | C103: ='Dis-2'!V144 ->  | D103: ='Dis-2'!W144 ->  | E103: ='Dis-2'!X144 ->  | F103: ='Dis-2'!Y144 ->  | G103: ='Dis-2'!Z144 ->  | H103: ='Dis-2'!AA144 -> 1
B104: ='Dis-2'!U145 -> Dis-2 | C104: ='Dis-2'!V145 ->  | D104: ='Dis-2'!W145 ->  | E104: ='Dis-2'!X145 ->  | F104: ='Dis-2'!Y145 ->  | G104: ='Dis-2'!Z145 ->  | H104: ='Dis-2'!AA145 -> 1
B105: ='Dis-2'!U146 -> Dis-2 | C105: ='Dis-2'!V146 ->  | D105: ='Dis-2'!W146 ->  | E105: ='Dis-2'!X146 ->  | F105: ='Dis-2'!Y146 ->  | G105: ='Dis-2'!Z146 ->  | H105: ='Dis-2'!AA146 -> 1
B106: ='Dis-2'!U147 -> Dis-2 | C106: ='Dis-2'!V147 ->  | D106: ='Dis-2'!W147 ->  | E106: ='Dis-2'!X147 ->  | F106: ='Dis-2'!Y147 ->  | G106: ='Dis-2'!Z147 ->  | H106: ='Dis-2'!AA147 -> 1
B107: ='Dis-2'!U148 -> Dis-2 | C107: ='Dis-2'!V148 ->  | D107: ='Dis-2'!W148 ->  | E107: ='Dis-2'!X148 ->  | F107: ='Dis-2'!Y148 ->  | G107: ='Dis-2'!Z148 ->  | H107: ='Dis-2'!AA148 -> 1
B108: ='Dis-3'!U147 -> Dis-3 | C108: ='Dis-3'!V147 ->  | D108: ='Dis-3'!W147 ->  | E108: ='Dis-3'!X147 ->  | F108: ='Dis-3'!Y147 ->  | G108: ='Dis-3'!Z147 ->  | H108: ='Dis-3'!AA147 -> 1
B109: ='Dis-3'!U148 -> Dis-3 | C109: ='Dis-3'!V148 ->  | D109: ='Dis-3'!W148 ->  | E109: ='Dis-3'!X148 ->  | F109: ='Dis-3'!Y148 ->  | G109: ='Dis-3'!Z148 ->  | H109: ='Dis-3'!AA148 -> 1
B110: ='Dis-3'!U149 -> Dis-3 | C110: ='Dis-3'!V149 ->  | D110: ='Dis-3'!W149 ->  | E110: ='Dis-3'!X149 ->  | F110: ='Dis-3'!Y149 ->  | G110: ='Dis-3'!Z149 ->  | H110: ='Dis-3'!AA149 -> 1
B111: ='Dis-3'!U150 -> Dis-3 | C111: ='Dis-3'!V150 ->  | D111: ='Dis-3'!W150 ->  | E111: ='Dis-3'!X150 ->  | F111: ='Dis-3'!Y150 ->  | G111: ='Dis-3'!Z150 ->  | H111: ='Dis-3'!AA150 -> 1
B112: ='Dis-3'!U151 -> Dis-3 | C112: ='Dis-3'!V151 ->  | D112: ='Dis-3'!W151 ->  | E112: ='Dis-3'!X151 ->  | F112: ='Dis-3'!Y151 ->  | G112: ='Dis-3'!Z151 ->  | H112: ='Dis-3'!AA151 -> 1
B113: ='Dis-4'!U142 -> Dis-4 | C113: ='Dis-4'!V142 ->  | D113: ='Dis-4'!W142 ->  | E113: ='Dis-4'!X142 ->  | F113: ='Dis-4'!Y142 ->  | G113: ='Dis-4'!Z142 ->  | H113: ='Dis-4'!AA142 -> 1
B114: ='Dis-4'!U143 -> Dis-4 | C114: ='Dis-4'!V143 ->  | D114: ='Dis-4'!W143 ->  | E114: ='Dis-4'!X143 ->  | F114: ='Dis-4'!Y143 ->  | G114: ='Dis-4'!Z143 ->  | H114: ='Dis-4'!AA143 -> 1
B115: ='Dis-4'!U144 -> Dis-4 | C115: ='Dis-4'!V144 ->  | D115: ='Dis-4'!W144 ->  | E115: ='Dis-4'!X144 ->  | F115: ='Dis-4'!Y144 ->  | G115: ='Dis-4'!Z144 ->  | H115: ='Dis-4'!AA144 -> 1
B116: ='Dis-4'!U145 -> Dis-4 | C116: ='Dis-4'!V145 ->  | D116: ='Dis-4'!W145 ->  | E116: ='Dis-4'!X145 ->  | F116: ='Dis-4'!Y145 ->  | G116: ='Dis-4'!Z145 ->  | H116: ='Dis-4'!AA145 -> 1
B117: ='Dis-4'!U146 -> Dis-4 | C117: ='Dis-4'!V146 ->  | D117: ='Dis-4'!W146 ->  | E117: ='Dis-4'!X146 ->  | F117: ='Dis-4'!Y146 ->  | G117: ='Dis-4'!Z146 ->  | H117: ='Dis-4'!AA146 -> 1
B118: ='Dis-5'!U147 -> Dis-5 | C118: ='Dis-5'!V147 ->  | D118: ='Dis-5'!W147 ->  | E118: ='Dis-5'!X147 ->  | F118: ='Dis-5'!Y147 ->  | G118: ='Dis-5'!Z147 ->  | H118: ='Dis-5'!AA147 -> 1
B119: ='Dis-5'!U148 -> Dis-5 | C119: ='Dis-5'!V148 ->  | D119: ='Dis-5'!W148 ->  | E119: ='Dis-5'!X148 ->  | F119: ='Dis-5'!Y148 ->  | G119: ='Dis-5'!Z148 ->  | H119: ='Dis-5'!AA148 -> 1
B120: ='Dis-5'!U149 -> Dis-5 | C120: ='Dis-5'!V149 ->  | D120: ='Dis-5'!W149 ->  | E120: ='Dis-5'!X149 ->  | F120: ='Dis-5'!Y149 ->  | G120: ='Dis-5'!Z149 ->  | H120: ='Dis-5'!AA149 -> 1
B121: ='Dis-5'!U150 -> Dis-5 | C121: ='Dis-5'!V150 ->  | D121: ='Dis-5'!W150 ->  | E121: ='Dis-5'!X150 ->  | F121: ='Dis-5'!Y150 ->  | G121: ='Dis-5'!Z150 ->  | H121: ='Dis-5'!AA150 -> 1
B122: ='Dis-5'!U151 -> Dis-5 | C122: ='Dis-5'!V151 ->  | D122: ='Dis-5'!W151 ->  | E122: ='Dis-5'!X151 ->  | F122: ='Dis-5'!Y151 ->  | G122: ='Dis-5'!Z151 ->  | H122: ='Dis-5'!AA151 -> 1
B123: ='Lan-1'!U130 -> Lan-1 | C123: ='Lan-1'!V130 ->  | D123: ='Lan-1'!W130 ->  | E123: ='Lan-1'!X130 ->  | F123: ='Lan-1'!Y130 ->  | G123: ='Lan-1'!Z130 ->  | H123: ='Lan-1'!AA130 -> 1
B124: ='Lan-1'!U131 -> Lan-1 | C124: ='Lan-1'!V131 ->  | D124: ='Lan-1'!W131 ->  | E124: ='Lan-1'!X131 ->  | F124: ='Lan-1'!Y131 ->  | G124: ='Lan-1'!Z131 ->  | H124: ='Lan-1'!AA131 -> 1
B125: ='Lan-1'!U132 -> Lan-1 | C125: ='Lan-1'!V132 ->  | D125: ='Lan-1'!W132 ->  | E125: ='Lan-1'!X132 ->  | F125: ='Lan-1'!Y132 ->  | G125: ='Lan-1'!Z132 ->  | H125: ='Lan-1'!AA132 -> 1
B126: ='Lan-1'!U133 -> Lan-1 | C126: ='Lan-1'!V133 ->  | D126: ='Lan-1'!W133 ->  | E126: ='Lan-1'!X133 ->  | F126: ='Lan-1'!Y133 ->  | G126: ='Lan-1'!Z133 ->  | H126: ='Lan-1'!AA133 -> 1
B127: ='Lan-1'!U134 -> Lan-1 | C127: ='Lan-1'!V134 ->  | D127: ='Lan-1'!W134 ->  | E127: ='Lan-1'!X134 ->  | F127: ='Lan-1'!Y134 ->  | G127: ='Lan-1'!Z134 ->  | H127: ='Lan-1'!AA134 -> 1
B128: ='Lan-2'!U147 -> Lan-2 | C128: ='Lan-2'!V147 ->  | D128: ='Lan-2'!W147 ->  | E128: ='Lan-2'!X147 ->  | F128: ='Lan-2'!Y147 ->  | G128: ='Lan-2'!Z147 ->  | H128: ='Lan-2'!AA147 -> 1
B129: ='Lan-2'!U148 -> Lan-2 | C129: ='Lan-2'!V148 ->  | D129: ='Lan-2'!W148 ->  | E129: ='Lan-2'!X148 ->  | F129: ='Lan-2'!Y148 ->  | G129: ='Lan-2'!Z148 ->  | H129: ='Lan-2'!AA148 -> 1
B130: ='Lan-2'!U149 -> Lan-2 | C130: ='Lan-2'!V149 ->  | D130: ='Lan-2'!W149 ->  | E130: ='Lan-2'!X149 ->  | F130: ='Lan-2'!Y149 ->  | G130: ='Lan-2'!Z149 ->  | H130: ='Lan-2'!AA149 -> 1
B131: ='Lan-2'!U150 -> Lan-2 | C131: ='Lan-2'!V150 ->  | D131: ='Lan-2'!W150 ->  | E131: ='Lan-2'!X150 ->  | F131: ='Lan-2'!Y150 ->  | G131: ='Lan-2'!Z150 ->  | H131: ='Lan-2'!AA150 -> 1
B132: ='Lan-2'!U151 -> Lan-2 | C132: ='Lan-2'!V151 ->  | D132: ='Lan-2'!W151 ->  | E132: ='Lan-2'!X151 ->  | F132: ='Lan-2'!Y151 ->  | G132: ='Lan-2'!Z151 ->  | H132: ='Lan-2'!AA151 -> 1
B133: ='Lan-3'!U144 -> Lan-3 | C133: ='Lan-3'!V144 ->  | D133: ='Lan-3'!W144 ->  | E133: ='Lan-3'!X144 ->  | F133: ='Lan-3'!Y144 ->  | G133: ='Lan-3'!Z144 ->  | H133: ='Lan-3'!AA144 -> 1
B134: ='Lan-3'!U145 -> Lan-3 | C134: ='Lan-3'!V145 ->  | D134: ='Lan-3'!W145 ->  | E134: ='Lan-3'!X145 ->  | F134: ='Lan-3'!Y145 ->  | G134: ='Lan-3'!Z145 ->  | H134: ='Lan-3'!AA145 -> 1
B135: ='Lan-3'!U146 -> Lan-3 | C135: ='Lan-3'!V146 ->  | D135: ='Lan-3'!W146 ->  | E135: ='Lan-3'!X146 ->  | F135: ='Lan-3'!Y146 ->  | G135: ='Lan-3'!Z146 ->  | H135: ='Lan-3'!AA146 -> 1
B136: ='Lan-3'!U147 -> Lan-3 | C136: ='Lan-3'!V147 ->  | D136: ='Lan-3'!W147 ->  | E136: ='Lan-3'!X147 ->  | F136: ='Lan-3'!Y147 ->  | G136: ='Lan-3'!Z147 ->  | H136: ='Lan-3'!AA147 -> 1
B137: ='Lan-3'!U148 -> Lan-3 | C137: ='Lan-3'!V148 ->  | D137: ='Lan-3'!W148 ->  | E137: ='Lan-3'!X148 ->  | F137: ='Lan-3'!Y148 ->  | G137: ='Lan-3'!Z148 ->  | H137: ='Lan-3'!AA148 -> 1
B138: ='Lan-4'!U136 -> Lan-4 | C138: ='Lan-4'!V136 ->  | D138: ='Lan-4'!W136 ->  | E138: ='Lan-4'!X136 ->  | F138: ='Lan-4'!Y136 ->  | G138: ='Lan-4'!Z136 ->  | H138: ='Lan-4'!AA136 -> 1
B139: ='Lan-4'!U137 -> Lan-4 | C139: ='Lan-4'!V137 ->  | D139: ='Lan-4'!W137 ->  | E139: ='Lan-4'!X137 ->  | F139: ='Lan-4'!Y137 ->  | G139: ='Lan-4'!Z137 ->  | H139: ='Lan-4'!AA137 -> 1
B140: ='Lan-4'!U138 -> Lan-4 | C140: ='Lan-4'!V138 ->  | D140: ='Lan-4'!W138 ->  | E140: ='Lan-4'!X138 ->  | F140: ='Lan-4'!Y138 ->  | G140: ='Lan-4'!Z138 ->  | H140: ='Lan-4'!AA138 -> 1
B141: ='Lan-4'!U139 -> Lan-4 | C141: ='Lan-4'!V139 ->  | D141: ='Lan-4'!W139 ->  | E141: ='Lan-4'!X139 ->  | F141: ='Lan-4'!Y139 ->  | G141: ='Lan-4'!Z139 ->  | H141: ='Lan-4'!AA139 -> 1
B142: ='Lan-4'!U140 -> Lan-4 | C142: ='Lan-4'!V140 ->  | D142: ='Lan-4'!W140 ->  | E142: ='Lan-4'!X140 ->  | F142: ='Lan-4'!Y140 ->  | G142: ='Lan-4'!Z140 ->  | H142: ='Lan-4'!AA140 -> 1
B143: ='Was-1'!U141 -> Was-1 | C143: ='Was-1'!V141 ->  | D143: ='Was-1'!W141 ->  | E143: ='Was-1'!X141 ->  | F143: ='Was-1'!Y141 ->  | G143: ='Was-1'!Z141 ->  | H143: ='Was-1'!AA141 -> 1
B144: ='Was-1'!U142 -> Was-1 | C144: ='Was-1'!V142 ->  | D144: ='Was-1'!W142 ->  | E144: ='Was-1'!X142 ->  | F144: ='Was-1'!Y142 ->  | G144: ='Was-1'!Z142 ->  | H144: ='Was-1'!AA142 -> 1
B145: ='Was-1'!U143 -> Was-1 | C145: ='Was-1'!V143 ->  | D145: ='Was-1'!W143 ->  | E145: ='Was-1'!X143 ->  | F145: ='Was-1'!Y143 ->  | G145: ='Was-1'!Z143 ->  | H145: ='Was-1'!AA143 -> 1
B146: ='Was-1'!U144 -> Was-1 | C146: ='Was-1'!V144 ->  | D146: ='Was-1'!W144 ->  | E146: ='Was-1'!X144 ->  | F146: ='Was-1'!Y144 ->  | G146: ='Was-1'!Z144 ->  | H146: ='Was-1'!AA144 -> 1
B147: ='Was-1'!U145 -> Was-1 | C147: ='Was-1'!V145 ->  | D147: ='Was-1'!W145 ->  | E147: ='Was-1'!X145 ->  | F147: ='Was-1'!Y145 ->  | G147: ='Was-1'!Z145 ->  | H147: ='Was-1'!AA145 -> 1
B148: ='Was-2'!U146 -> Was-2 | C148: ='Was-2'!V146 ->  | D148: ='Was-2'!W146 ->  | E148: ='Was-2'!X146 ->  | F148: ='Was-2'!Y146 ->  | G148: ='Was-2'!Z146 ->  | H148: ='Was-2'!AA146 -> 1
B149: ='Was-2'!U147 -> Was-2 | C149: ='Was-2'!V147 ->  | D149: ='Was-2'!W147 ->  | E149: ='Was-2'!X147 ->  | F149: ='Was-2'!Y147 ->  | G149: ='Was-2'!Z147 ->  | H149: ='Was-2'!AA147 -> 1
B150: ='Was-2'!U148 -> Was-2 | C150: ='Was-2'!V148 ->  | D150: ='Was-2'!W148 ->  | E150: ='Was-2'!X148 ->  | F150: ='Was-2'!Y148 ->  | G150: ='Was-2'!Z148 ->  | H150: ='Was-2'!AA148 -> 1
B151: ='Was-2'!U149 -> Was-2 | C151: ='Was-2'!V149 ->  | D151: ='Was-2'!W149 ->  | E151: ='Was-2'!X149 ->  | F151: ='Was-2'!Y149 ->  | G151: ='Was-2'!Z149 ->  | H151: ='Was-2'!AA149 -> 1
B152: ='Was-2'!U150 -> Was-2 | C152: ='Was-2'!V150 ->  | D152: ='Was-2'!W150 ->  | E152: ='Was-2'!X150 ->  | F152: ='Was-2'!Y150 ->  | G152: ='Was-2'!Z150 ->  | H152: ='Was-2'!AA150 -> 1
B153: ='Was-3'!U144 -> Was-3 | C153: ='Was-3'!V144 ->  | D153: ='Was-3'!W144 ->  | E153: ='Was-3'!X144 ->  | F153: ='Was-3'!Y144 ->  | G153: ='Was-3'!Z144 ->  | H153: ='Was-3'!AA144 -> 1
B154: ='Was-3'!U145 -> Was-3 | C154: ='Was-3'!V145 ->  | D154: ='Was-3'!W145 ->  | E154: ='Was-3'!X145 ->  | F154: ='Was-3'!Y145 ->  | G154: ='Was-3'!Z145 ->  | H154: ='Was-3'!AA145 -> 1
B155: ='Was-3'!U146 -> Was-3 | C155: ='Was-3'!V146 ->  | D155: ='Was-3'!W146 ->  | E155: ='Was-3'!X146 ->  | F155: ='Was-3'!Y146 ->  | G155: ='Was-3'!Z146 ->  | H155: ='Was-3'!AA146 -> 1
B156: ='Was-3'!U147 -> Was-3 | C156: ='Was-3'!V147 ->  | D156: ='Was-3'!W147 ->  | E156: ='Was-3'!X147 ->  | F156: ='Was-3'!Y147 ->  | G156: ='Was-3'!Z147 ->  | H156: ='Was-3'!AA147 -> 1
B157: ='Was-3'!U148 -> Was-3 | C157: ='Was-3'!V148 ->  | D157: ='Was-3'!W148 ->  | E157: ='Was-3'!X148 ->  | F157: ='Was-3'!Y148 ->  | G157: ='Was-3'!Z148 ->  | H157: ='Was-3'!AA148 -> 1
B158: ='Eco-1'!U146 -> Eco-1 | C158: ='Eco-1'!V146 ->  | D158: ='Eco-1'!W146 ->  | E158: ='Eco-1'!X146 ->  | F158: ='Eco-1'!Y146 ->  | G158: ='Eco-1'!Z146 ->  | H158: ='Eco-1'!AA146 -> 1
B159: ='Eco-1'!U147 -> Eco-1 | C159: ='Eco-1'!V147 ->  | D159: ='Eco-1'!W147 ->  | E159: ='Eco-1'!X147 ->  | F159: ='Eco-1'!Y147 ->  | G159: ='Eco-1'!Z147 ->  | H159: ='Eco-1'!AA147 -> 1
B160: ='Eco-1'!U148 -> Eco-1 | C160: ='Eco-1'!V148 ->  | D160: ='Eco-1'!W148 ->  | E160: ='Eco-1'!X148 ->  | F160: ='Eco-1'!Y148 ->  | G160: ='Eco-1'!Z148 ->  | H160: ='Eco-1'!AA148 -> 1
B161: ='Eco-1'!U149 -> Eco-1 | C161: ='Eco-1'!V149 ->  | D161: ='Eco-1'!W149 ->  | E161: ='Eco-1'!X149 ->  | F161: ='Eco-1'!Y149 ->  | G161: ='Eco-1'!Z149 ->  | H161: ='Eco-1'!AA149 -> 1
B162: ='Eco-1'!U150 -> Eco-1 | C162: ='Eco-1'!V150 ->  | D162: ='Eco-1'!W150 ->  | E162: ='Eco-1'!X150 ->  | F162: ='Eco-1'!Y150 ->  | G162: ='Eco-1'!Z150 ->  | H162: ='Eco-1'!AA150 -> 1
B163: ='Eco-2'!U153 -> Eco-2 | C163: ='Eco-2'!V153 ->  | D163: ='Eco-2'!W153 ->  | E163: ='Eco-2'!X153 ->  | F163: ='Eco-2'!Y153 ->  | G163: ='Eco-2'!Z153 ->  | H163: ='Eco-2'!AA153 -> 1
B164: ='Eco-2'!U154 -> Eco-2 | C164: ='Eco-2'!V154 ->  | D164: ='Eco-2'!W154 ->  | E164: ='Eco-2'!X154 ->  | F164: ='Eco-2'!Y154 ->  | G164: ='Eco-2'!Z154 ->  | H164: ='Eco-2'!AA154 -> 1
B165: ='Eco-2'!U155 -> Eco-2 | C165: ='Eco-2'!V155 ->  | D165: ='Eco-2'!W155 ->  | E165: ='Eco-2'!X155 ->  | F165: ='Eco-2'!Y155 ->  | G165: ='Eco-2'!Z155 ->  | H165: ='Eco-2'!AA155 -> 1
B166: ='Eco-2'!U156 -> Eco-2 | C166: ='Eco-2'!V156 ->  | D166: ='Eco-2'!W156 ->  | E166: ='Eco-2'!X156 ->  | F166: ='Eco-2'!Y156 ->  | G166: ='Eco-2'!Z156 ->  | H166: ='Eco-2'!AA156 -> 1
B167: ='Eco-2'!U157 -> Eco-2 | C167: ='Eco-2'!V157 ->  | D167: ='Eco-2'!W157 ->  | E167: ='Eco-2'!X157 ->  | F167: ='Eco-2'!Y157 ->  | G167: ='Eco-2'!Z157 ->  | H167: ='Eco-2'!AA157 -> 1
B168: ='Hea-1'!U145 -> Hea-1 | C168: ='Hea-1'!V145 ->  | D168: ='Hea-1'!W145 ->  | E168: ='Hea-1'!X145 ->  | F168: ='Hea-1'!Y145 ->  | G168: ='Hea-1'!Z145 ->  | H168: ='Hea-1'!AA145 -> 1
B169: ='Hea-1'!U146 -> Hea-1 | C169: ='Hea-1'!V146 ->  | D169: ='Hea-1'!W146 ->  | E169: ='Hea-1'!X146 ->  | F169: ='Hea-1'!Y146 ->  | G169: ='Hea-1'!Z146 ->  | H169: ='Hea-1'!AA146 -> 1
B170: ='Hea-1'!U147 -> Hea-1 | C170: ='Hea-1'!V147 ->  | D170: ='Hea-1'!W147 ->  | E170: ='Hea-1'!X147 ->  | F170: ='Hea-1'!Y147 ->  | G170: ='Hea-1'!Z147 ->  | H170: ='Hea-1'!AA147 -> 1
B171: ='Hea-1'!U148 -> Hea-1 | C171: ='Hea-1'!V148 ->  | D171: ='Hea-1'!W148 ->  | E171: ='Hea-1'!X148 ->  | F171: ='Hea-1'!Y148 ->  | G171: ='Hea-1'!Z148 ->  | H171: ='Hea-1'!AA148 -> 1
B172: ='Hea-1'!U149 -> Hea-1 | C172: ='Hea-1'!V149 ->  | D172: ='Hea-1'!W149 ->  | E172: ='Hea-1'!X149 ->  | F172: ='Hea-1'!Y149 ->  | G172: ='Hea-1'!Z149 ->  | H172: ='Hea-1'!AA149 -> 1
B173: ='Hea-2'!U137 -> Hea-2 | C173: ='Hea-2'!V137 ->  | D173: ='Hea-2'!W137 ->  | E173: ='Hea-2'!X137 ->  | F173: ='Hea-2'!Y137 ->  | G173: ='Hea-2'!Z137 ->  | H173: ='Hea-2'!AA137 -> 1
B174: ='Hea-2'!U138 -> Hea-2 | C174: ='Hea-2'!V138 ->  | D174: ='Hea-2'!W138 ->  | E174: ='Hea-2'!X138 ->  | F174: ='Hea-2'!Y138 ->  | G174: ='Hea-2'!Z138 ->  | H174: ='Hea-2'!AA138 -> 1
B175: ='Hea-2'!U139 -> Hea-2 | C175: ='Hea-2'!V139 ->  | D175: ='Hea-2'!W139 ->  | E175: ='Hea-2'!X139 ->  | F175: ='Hea-2'!Y139 ->  | G175: ='Hea-2'!Z139 ->  | H175: ='Hea-2'!AA139 -> 1
B176: ='Hea-2'!U140 -> Hea-2 | C176: ='Hea-2'!V140 ->  | D176: ='Hea-2'!W140 ->  | E176: ='Hea-2'!X140 ->  | F176: ='Hea-2'!Y140 ->  | G176: ='Hea-2'!Z140 ->  | H176: ='Hea-2'!AA140 -> 1
B177: ='Hea-2'!U141 -> Hea-2 | C177: ='Hea-2'!V141 ->  | D177: ='Hea-2'!W141 ->  | E177: ='Hea-2'!X141 ->  | F177: ='Hea-2'!Y141 ->  | G177: ='Hea-2'!Z141 ->  | H177: ='Hea-2'!AA141 -> 1
B178: ='Her-1'!U156 -> Her-1 | C178: ='Her-1'!V156 ->  | D178: ='Her-1'!W156 ->  | E178: ='Her-1'!X156 ->  | F178: ='Her-1'!Y156 ->  | G178: ='Her-1'!Z156 ->  | H178: ='Her-1'!AA156 -> 1
B179: ='Her-1'!U157 -> Her-1 | C179: ='Her-1'!V157 ->  | D179: ='Her-1'!W157 ->  | E179: ='Her-1'!X157 ->  | F179: ='Her-1'!Y157 ->  | G179: ='Her-1'!Z157 ->  | H179: ='Her-1'!AA157 -> 1
B180: ='Her-1'!U158 -> Her-1 | C180: ='Her-1'!V158 ->  | D180: ='Her-1'!W158 ->  | E180: ='Her-1'!X158 ->  | F180: ='Her-1'!Y158 ->  | G180: ='Her-1'!Z158 ->  | H180: ='Her-1'!AA158 -> 1
B181: ='Her-1'!U159 -> Her-1 | C181: ='Her-1'!V159 ->  | D181: ='Her-1'!W159 ->  | E181: ='Her-1'!X159 ->  | F181: ='Her-1'!Y159 ->  | G181: ='Her-1'!Z159 ->  | H181: ='Her-1'!AA159 -> 1
B182: ='Her-1'!U160 -> Her-1 | C182: ='Her-1'!V160 ->  | D182: ='Her-1'!W160 ->  | E182: ='Her-1'!X160 ->  | F182: ='Her-1'!Y160 ->  | G182: ='Her-1'!Z160 ->  | H182: ='Her-1'!AA160 -> 1
B183: ='Her-2'!U143 -> Her-2 | C183: ='Her-2'!V143 ->  | D183: ='Her-2'!W143 ->  | E183: ='Her-2'!X143 ->  | F183: ='Her-2'!Y143 ->  | G183: ='Her-2'!Z143 ->  | H183: ='Her-2'!AA143 -> 1
B184: ='Her-2'!U144 -> Her-2 | C184: ='Her-2'!V144 ->  | D184: ='Her-2'!W144 ->  | E184: ='Her-2'!X144 ->  | F184: ='Her-2'!Y144 ->  | G184: ='Her-2'!Z144 ->  | H184: ='Her-2'!AA144 -> 1
B185: ='Her-2'!U145 -> Her-2 | C185: ='Her-2'!V145 ->  | D185: ='Her-2'!W145 ->  | E185: ='Her-2'!X145 ->  | F185: ='Her-2'!Y145 ->  | G185: ='Her-2'!Z145 ->  | H185: ='Her-2'!AA145 -> 1
B186: ='Her-2'!U146 -> Her-2 | C186: ='Her-2'!V146 ->  | D186: ='Her-2'!W146 ->  | E186: ='Her-2'!X146 ->  | F186: ='Her-2'!Y146 ->  | G186: ='Her-2'!Z146 ->  | H186: ='Her-2'!AA146 -> 1
B187: ='Her-2'!U147 -> Her-2 | C187: ='Her-2'!V147 ->  | D187: ='Her-2'!W147 ->  | E187: ='Her-2'!X147 ->  | F187: ='Her-2'!Y147 ->  | G187: ='Her-2'!Z147 ->  | H187: ='Her-2'!AA147 -> 1
B188: ='Sta-1'!U151 -> Sta-1 | C188: ='Sta-1'!V151 ->  | D188: ='Sta-1'!W151 ->  | E188: ='Sta-1'!X151 ->  | F188: ='Sta-1'!Y151 ->  | G188: ='Sta-1'!Z151 ->  | H188: ='Sta-1'!AA151 -> 1
B189: ='Sta-1'!U152 -> Sta-1 | C189: ='Sta-1'!V152 ->  | D189: ='Sta-1'!W152 ->  | E189: ='Sta-1'!X152 ->  | F189: ='Sta-1'!Y152 ->  | G189: ='Sta-1'!Z152 ->  | H189: ='Sta-1'!AA152 -> 1
B190: ='Sta-1'!U153 -> Sta-1 | C190: ='Sta-1'!V153 ->  | D190: ='Sta-1'!W153 ->  | E190: ='Sta-1'!X153 ->  | F190: ='Sta-1'!Y153 ->  | G190: ='Sta-1'!Z153 ->  | H190: ='Sta-1'!AA153 -> 1
B191: ='Sta-1'!U154 -> Sta-1 | C191: ='Sta-1'!V154 ->  | D191: ='Sta-1'!W154 ->  | E191: ='Sta-1'!X154 ->  | F191: ='Sta-1'!Y154 ->  | G191: ='Sta-1'!Z154 ->  | H191: ='Sta-1'!AA154 -> 1
B192: ='Sta-1'!U155 -> Sta-1 | C192: ='Sta-1'!V155 ->  | D192: ='Sta-1'!W155 ->  | E192: ='Sta-1'!X155 ->  | F192: ='Sta-1'!Y155 ->  | G192: ='Sta-1'!Z155 ->  | H192: ='Sta-1'!AA155 -> 1
B193: ='Sta-2'!U152 -> Sta-2 | C193: ='Sta-2'!V152 ->  | D193: ='Sta-2'!W152 ->  | E193: ='Sta-2'!X152 ->  | F193: ='Sta-2'!Y152 ->  | G193: ='Sta-2'!Z152 ->  | H193: ='Sta-2'!AA152 -> 1
B194: ='Sta-2'!U153 -> Sta-2 | C194: ='Sta-2'!V153 ->  | D194: ='Sta-2'!W153 ->  | E194: ='Sta-2'!X153 ->  | F194: ='Sta-2'!Y153 ->  | G194: ='Sta-2'!Z153 ->  | H194: ='Sta-2'!AA153 -> 1
B195: ='Sta-2'!U154 -> Sta-2 | C195: ='Sta-2'!V154 ->  | D195: ='Sta-2'!W154 ->  | E195: ='Sta-2'!X154 ->  | F195: ='Sta-2'!Y154 ->  | G195: ='Sta-2'!Z154 ->  | H195: ='Sta-2'!AA154 -> 1
B196: ='Sta-2'!U155 -> Sta-2 | C196: ='Sta-2'!V155 ->  | D196: ='Sta-2'!W155 ->  | E196: ='Sta-2'!X155 ->  | F196: ='Sta-2'!Y155 ->  | G196: ='Sta-2'!Z155 ->  | H196: ='Sta-2'!AA155 -> 1
B197: ='Sta-2'!U156 -> Sta-2 | C197: ='Sta-2'!V156 ->  | D197: ='Sta-2'!W156 ->  | E197: ='Sta-2'!X156 ->  | F197: ='Sta-2'!Y156 ->  | G197: ='Sta-2'!Z156 ->  | H197: ='Sta-2'!AA156 -> 1
B198: ='Sta-3'!U159 -> Sta-3 | C198: ='Sta-3'!V159 ->  | D198: ='Sta-3'!W159 ->  | E198: ='Sta-3'!X159 ->  | F198: ='Sta-3'!Y159 ->  | G198: ='Sta-3'!Z159 ->  | H198: ='Sta-3'!AA159 -> 1
B199: ='Sta-3'!U160 -> Sta-3 | C199: ='Sta-3'!V160 ->  | D199: ='Sta-3'!W160 ->  | E199: ='Sta-3'!X160 ->  | F199: ='Sta-3'!Y160 ->  | G199: ='Sta-3'!Z160 ->  | H199: ='Sta-3'!AA160 -> 1
B200: ='Sta-3'!U161 -> Sta-3 | C200: ='Sta-3'!V161 ->  | D200: ='Sta-3'!W161 ->  | E200: ='Sta-3'!X161 ->  | F200: ='Sta-3'!Y161 ->  | G200: ='Sta-3'!Z161 ->  | H200: ='Sta-3'!AA161 -> 1
B201: ='Sta-3'!U162 -> Sta-3 | C201: ='Sta-3'!V162 ->  | D201: ='Sta-3'!W162 ->  | E201: ='Sta-3'!X162 ->  | F201: ='Sta-3'!Y162 ->  | G201: ='Sta-3'!Z162 ->  | H201: ='Sta-3'!AA162 -> 1
... 36 more rows

Sheet Weightings
K1: =IF(COUNTIF(mat_questions,"?")>0,"Warning! Questions incomplete","") -> Warning! Questions incomplete | L1: =IF(SUM(weightings_check_justification)>0,"Warning: Missing justification","") ->  | O1: Hide | X1: Hide | Y1: AU=1, NZ=2 | Z1: 1 | AA1: Check Justification | AB1: Scooped out for Design | AC1: Auto scope-out multiplier | AD1: Re-adjust for Design auto scope out | AE1: Re-normalise
B2: Credit | C2: Credit Name | D2: Aims | E2: Question 1 | F2: Response 1 | G2: Question 2 | H2: Response 2 | I2: Question 3 | J2: Response 3 | K2: Mat Score | L2: Alt Mat Score | M2: Justification | N2: Final Mat Score | O2: Default Points | P2: Adjust | Q2: Norm-alise | R2: Treshold check | S2: Adjusted points | T2: Evidence Required | U2: Evidence Supplied | V2: Verifier Comments | X2: Categories | Y2: 1 | Z2: 2 | AA2: 1=missing | AB2: 1=yes | AD2: =rating_type_selected -> Design | AE2: =rating_type_selected -> Design | AF2: adjusted points
A3: Man | B3: Man-1 | C3: Sustainability leadership and commitment | D3: To integrate sustainability into management systems and approach. This has been assigned a default materiality score of 2. | F3: ="" ->  | H3: ="" ->  | J3: ="" ->  | K3: 2 | N3: =IF(ISBLANK(L3),$K$3,L3) -> 2 | O3: =IF(country=1,Y3,Z3) -> 1 | P3: =N3/2*O3 -> 1 | Q3: =P3/SUM(adj_points_from_mat)*100 -> 1 | R3: =IF(Q3<materiality_threshold,0,Q3) -> 1 | S3: =AE3 -> 1.117318436 | T3: No | X3: =LEFT(B3,3) -> Man | Y3: 1 | Z3: 1 | AA3: =IF(AND(L3<>"",M3=""),1,) -> 0 | AB3: 0 | AC3: =IF(rating_type_selected="Design",1-AB3,1) -> 1 | AD3: =AF3*AC3 -> 1 | AE3: =AD3/SUM(adj_points_from_mat2nd)*100 -> 1.117318436 | AF3: =R3/SUM(adj_after_threshold)*100 -> 1
B4: Man-2 | C4: Risk and opportunity management | N4: 2 | O4: 1 | P4: =N4/2*O4 -> 1 | Q4: =P4/SUM(adj_points_from_mat)*100 -> 1 | R4: 1 | S4: =AE4 -> 1.117318436 | X4: Man | Y4: 1 | Z4: 1 | AA4: 0 | AB4: 0 | AC4: 1 | AD4: =AF4*AC4 -> 1 | AE4: 1.117318436 | AF4: 1
B5: Man-3 | C5: Organisational structure, roles and responsibilities | N5: 2 | O5: 1 | P5: 1 | Q5: 1 | R5: 1 | S5: 1.117318436 | X5: Man | Y5: 1 | Z5: 1 | AA5: 0 | AB5: 0 | AC5: 1 | AD5: 1 | AE5: 1.117318436 | AF5: 1
B6: Man-4 | C6: Inspection and auditing | N6: 2 | O6: 1 | P6: 1 | Q6: 1 | R6: 1 | S6: 1.117318436 | X6: Man | Y6: 1 | Z6: 1 | AA6: 0 | AB6: 0 | AC6: 1 | AD6: 1 | AE6: 1.117318436 | AF6: 1
B7: Man-5 | C7: Reporting and review | N7: 2 | O7: 1 | P7: 1 | Q7: 1 | R7: 1 | S7: 1.117318436 | X7: Man | Y7: 1 | Z7: 1 | AA7: 0 | AB7: 0 | AC7: 1 | AD7: 1 | AE7: 1.117318436 | AF7: 1
B8: Man-6 | C8: Knowledge sharing | N8: 2 | O8: 2.25 | P8: 2.25 | Q8: 2.25 | R8: 2.25 | S8: 2.51396648 | X8: Man | Y8: 2.25 | Z8: 2.5 | AA8: 0 | AB8: 0 | AC8: 1 | AD8: 2.25 | AE8: 2.51396648 | AF8: 2.25
B9: Man-7 | C9: Decision making | D9: To assess the requirements for incorporating sustainability aspects into decision making. | E9: ='Question Database'!C10 -> Context for Decision Making Is this a small project (<$20m) with no substantial issues to be decided upon? (Substantial - of considerable importance in relation to the size impact and location of the project and associated decisions) | F9: ? | H9: ="" ->  | J9: ="" ->  | K9: =IF(COUNTIF(E9:J9,"?")>0,2,SUMIFS(Tables!E:E,Tables!A:A,B9,Tables!B:B,F9,Tables!C:C,H9,Tables!D:D,J9)) -> 2 | N9: =IF(ISBLANK(L9),$K$9,L9) -> 2 | O9: 3.25 | P9: =N9/2*O9 -> 3.25 | Q9: 3.25 | R9: 3.25 | S9: 3.631284916 | X9: Man | Y9: 3.25 | Z9: 3 | AA9: 0 | AB9: 0 | AC9: 1 | AD9: 3.25 | AE9: 3.631284916 | AF9: 3.25
A10: Pro | B10: Pro-1 | C10: Commitment to sustainable procurement | D10: To integrate sustainability into procurement systems. This has been assigned a default materiality score of 2. | K10: 2 | N10: =IF(ISBLANK(L10),$K$10,L10) -> 2 | O10: 1.25 | P10: 1.25 | Q10: 1.25 | R10: 1.25 | S10: 1.396648045 | T10: No | X10: Pro | Y10: 1.25 | Z10: 1.5 | AA10: 0 | AB10: 0 | AC10: 1 | AD10: 1.25 | AE10: 1.396648045 | AF10: 1.25
B11: Pro-2 | C11: Identification of suppliers | N11: =IF(ISBLANK(L11),$K$10,L11) -> 2 | O11: 1.25 | P11: =N11/2*O11 -> 1.25 | Q11: =P11/SUM(adj_points_from_mat)*100 -> 1.25 | R11: 1.25 | S11: 1.396648045 | X11: Pro | Y11: 1.25 | Z11: 1 | AA11: 0 | AB11: 0 | AC11: 1 | AD11: 1.25 | AE11: 1.396648045 | AF11: 1.25
B12: Pro-3 | C12: Supplier evaluation and contract award | N12: 2 | O12: 1.25 | P12: 1.25 | Q12: 1.25 | R12: 1.25 | S12: 0 | X12: Pro | Y12: 1.25 | Z12: 1.5 | AA12: 0 | AB12: 1 | AC12: 0 | AD12: 0 | AE12: 0 | AF12: 1.25
B13: Pro-4 | C13: Managing supplier performance | N13: 2 | O13: 1.25 | P13: 1.25 | Q13: 1.25 | R13: 1.25 | S13: 0 | X13: Pro | Y13: 1.25 | Z13: 1 | AA13: 0 | AB13: 1 | AC13: 0 | AD13: 0 | AE13: 0 | AF13: 1.25
A14: Cli | B14: Cli-1 | C14: Climate change risk assessment | D14: To assess climate change risks and requirement for climate change adaptation measures. | E14: ='Question Database'!C15 -> Asset Life What is the design or remaining asset life? | F14: ? | G14: ='Question Database'!D15 -> Climate Change Vulnerability Is the asset located in an area close to the sea, on a flood plain, prone to bushfires, prone to cyclones, or prone to droughts? | H14: ? | J14: ="" ->  | K14: =IF(COUNTIF(E14:J14,"?")>0,2,SUMIFS(Tables!E:E,Tables!A:A,A14,Tables!B:B,F14,Tables!C:C,H14,Tables!D:D,J14)) -> 2 | N14: =IF(ISBLANK($L$14),$K$14,$L$14) -> 2 | O14: 2.5 | P14: 2.5 | Q14: 2.5 | R14: 2.5 | S14: 2.793296089 | T14: Design life Location map showing proximity to natural hazards | X14: Cli | Y14: 2.5 | Z14: 2.5 | AA14: 0 | AB14: 0 | AC14: 1 | AD14: 2.5 | AE14: 2.793296089 | AF14: 2.5
B15: Cli-2 | C15: Adaptation options | N15: =IF(ISBLANK($L$15),$K$14,$L$15) -> 2 | O15: 2.5 | P15: 2.5 | Q15: 2.5 | R15: 2.5 | S15: 2.793296089 | X15: Cli | Y15: 2.5 | Z15: 2.5 | AA15: 0 | AB15: 0 | AC15: 1 | AD15: 2.5 | AE15: 2.793296089 | AF15: 2.5
A16: Ene | B16: Ene-1 | C16: Energy and carbon monitoring and reduction | D16: To understand the potential for minimising energy use from non renewable sources and GHG emissions across the infrastructure lifecycle. | E16: ='Question Database'!C17 -> Infrastructure Type What is the infrastructure asset type? (If mixed, use the most energy intensive asset type) | F16: ='Asset Input'!F16:K16 -> Road (surface) | G16: ='Question Database'!D17 -> Construction Energy Intensity Does the construction/maintenance involve earthmoving, tunnelling and/or use of diesel plant and equipment (i.e. energy intensive)? | H16: ? | J16: ="" ->  | K16: =IF(COUNTIF(E16:J16,"?")>0,2,SUMIFS(Tables!E:E,Tables!A:A,A16,Tables!B:B,F16,Tables!C:C,H16,Tables!D:D,J16)) -> 2 | N16: =IF(ISBLANK(L16),$K$16,L16) -> 2 | O16: 9 | P16: 9 | Q16: 9 | R16: 9 | S16: 10.05586592 | T16: Description of project/asset Construction/maintenance methodology | X16: Ene | Y16: 9 | Z16: 9.5 | AA16: 0 | AB16: 0 | AC16: 1 | AD16: 9 | AE16: 10.05586592 | AF16: 9
B17: Ene-2 | C17: Renewable energy | N17: =IF(ISBLANK(L17),$K$16,L17) -> 2 | O17: 1.5 | P17: 1.5 | Q17: 1.5 | R17: 1.5 | S17: =AE17 -> 1.675977654 | X17: Ene | Y17: 1.5 | Z17: 1.5 | AA17: 0 | AB17: 0 | AC17: 1 | AD17: 1.5 | AE17: 1.675977654 | AF17: 1.5
A18: Wat | B18: Wat-1 | C18: Water use monitoring and reduction | D18: To understand the potential for minimising water use from potable sources across the infrastructure lifecycle. | E18: ='Question Database'!C19 -> Operation Water Intensity Does the asset operation/maintenance have high water use requirements, such as cooling, washing, public ablution facilities or other processes? | F18: ? | G18: ='Question Database'!D19 -> Construction Water Intensity Does the asset/network have high water use requirements for construction/capital works activities such as dust suppression, washing, pavement compaction, concrete or other processes? | H18: ? | I18: ='Question Database'!E19 -> Water Scarcity Is the asset located in an area subject to water scarcity (e.g. drought prone, or had previous water restrictions)? | J18: ? | K18: =IF(COUNTIF(E18:J18,"?")>0,2,SUMIFS(Tables!E:E,Tables!A:A,A18,Tables!B:B,F18,Tables!C:C,H18,Tables!D:D,J18)) -> 2 | N18: =IF(ISBLANK(L18),$K$18,L18) -> 2 | O18: 4.5 | P18: 4.5 | Q18: 4.5 | R18: 4.5 | S18: 5.027932961 | T18: Description of project/asset Construction/maintenance methodology Location map showing water sources | X18: Wat | Y18: 4.5 | Z18: 3 | AA18: 0 | AB18: 0 | AC18: 1 | AD18: 4.5 | AE18: 5.027932961 | AF18: 4.5
B19: Wat-2 | C19: Replace potable water | N19: =IF(ISBLANK(L19),$K$18,L19) -> 2 | O19: 2.5 | P19: 2.5 | Q19: =P19/SUM(adj_points_from_mat)*100 -> 2.5 | R19: =IF(Q19<materiality_threshold,0,Q19) -> 2.5 | S19: 2.793296089 | X19: Wat | Y19: 2.5 | Z19: 2 | AA19: 0 | AB19: 0 | AC19: 1 | AD19: 2.5 | AE19: 2.793296089 | AF19: 2.5
A20: Mat | B20: Mat-1 | C20: Materials footprint measurement and reduction | D20: To identify the lifecycle environmental impacts of materials throughout the infrastructure lifecycle. | E20: ='Question Database'!C21 -> Materials Intensity As a percentage of the capital value of the project, what is the percentage spend on materials in the construction phase? | F20: ? | G20: ='Question Database'!D21 -> Materials Intensity As a percentage of the annual operational expenditure of the asset, what is the percentage spend on materials, including maintenance? | H20: ? | J20: ="" ->  | K20: =IF(COUNTIF(E20:J20,"?")>0,2,SUMIFS(Tables!E:E,Tables!A:A,A20,Tables!B:B,F20,Tables!C:C,H20,Tables!D:D,J20)) -> 2 | N20: =IF(ISBLANK(L20),$K$20,L20) -> 2 | O20: 6 | P20: 6 | Q20: 6 | R20: 6 | S20: 6.703910615 | T20: Construction/maintenance methodology | X20: Mat | Y20: 6 | Z20: 6 | AA20: 0 | AB20: 0 | AC20: 1 | AD20: =AF20*AC20 -> 6 | AE20: 6.703910615 | AF20: 6
B21: Mat-2 | C21: Environmentally labelled products and supply chains | N21: =IF(ISBLANK(L21),$K$20,L21) -> 2 | O21: 1 | P21: 1 | Q21: 1 | R21: 1 | S21: =AE21 -> 0 | X21: Mat | Y21: 1 | Z21: 1 | AA21: 0 | AB21: 1 | AC21: 0 | AD21: 0 | AE21: 0 | AF21: 1
A22: Dis | B22: Dis-1 | C22: Receiving water quality | D22: To identify impacts on local receiving water quality across project/asset's lifecycle. | E22: ='Question Database'!C23 -> Water Discharge Does the project/asset discharge to a waterway/waterbody/groundwater? | F22: ? | G22: ='Question Database'!D23 -> Pollution Risk Is there a risk of pollution to waterways from discharges (including groundwater)? | H22: ? | I22: ='Question Database'!E23 -> Water Sensitivity Are the receiving waters sensitive and/or highly valued? | J22: ? | K22: =IF(COUNTIF(E22:J22,"?")>0,2,SUMIFS(Tables!E:E,Tables!A:A,B22,Tables!B:B,F22,Tables!C:C,H22,Tables!D:D,J22)) -> 2 | N22: =IF(ISBLANK(L22),K22,L22) -> 2 | O22: 2.375 | P22: 2.375 | Q22: 2.375 | R22: 2.375 | S22: 2.653631285 | T22: Environmental licence Risk register Location map showing receiving waters | X22: Dis | Y22: 2.375 | Z22: 2.5 | AA22: 0 | AB22: 0 | AC22: 1 | AD22: 2.375 | AE22: 2.653631285 | AF22: 2.375
B23: Dis-2 | C23: Noise | D23: To identify noise impacts across project/asset's lifecycle. | E23: ='Question Database'!C24 -> Infrastructure Type What is the infrastructure asset type? (if mixed use choose the most high risk asset type for noise impact during operation) | F23: =asset_inp_infra_type -> Road (surface) | G23: ='Question Database'!D24 -> Noisy Activities Does the construction/maintenance/operation involve noisy activities (piling, grinding, rock hammering, demolition, blasting, tunnelling)? | H23: ? | I23: ='Question Database'!E24 -> Receiver Proximity How close are noise receivers? Please note adjacent is where the sensitive receptors are within 10m of the source of the noise or project boundary, whichever is most relevant. | J23: ? | K23: =IF(OR(COUNTIF(E23:J23,"?")>0,COUNTIF(E23:J23,"Answer above")>0),2,SUMIFS(Tables!E:E,Tables!A:A,B23,Tables!B:B,F23,Tables!C:C,H23,Tables!D:D,J23)) -> 2 | N23: =IF(ISBLANK(L23),K23,L23) -> 2 | O23: 2.375 | P23: 2.375 | Q23: 2.375 | R23: 2.375 | S23: =AE23 -> 2.653631285 | T23: Construction/maintenance methodology Location map showing noise receivers | X23: Dis | Y23: 2.375 | Z23: 2.5 | AA23: 0 | AB23: 0 | AC23: 1 | AD23: =AF23*AC23 -> 2.375 | AE23: 2.653631285 | AF23: 2.375
B24: Dis-3 | C24: Vibration | D24: To identify vibration impacts across project/asset's lifecycle. | E24: ='Question Database'!C25 -> Vibratory activities Does the construction/maintenance/ operation involve piling, grinding, rock hammering, vibratory rolling, tunnelling (vibratory activities)? | F24: ? | G24: ='Question Database'!D25 -> Receiver Proximity How close are vibration receivers? Please note adjacent is where the sensitive receptors are adjacent to the project boundary or the source of the vibration, whichever is most relevant. | H24: ? | J24: ="" ->  | K24: =IF(OR(COUNTIF(E24:J24,"?")>0,COUNTIF(E24:J24,"Answer above")>0),2,SUMIFS(Tables!E:E,Tables!A:A,B24,Tables!B:B,F24,Tables!C:C,H24,Tables!D:D,J24)) -> 2 | N24: 2 | O24: 2.375 | P24: 2.375 | Q24: 2.375 | R24: 2.375 | S24: =AE24 -> 2.653631285 | T24: Construction/maintenance methodology Location map showing vibration receivers | X24: Dis | Y24: 2.375 | Z24: 2.5 | AA24: 0 | AB24: 0 | AC24: 1 | AD24: 2.375 | AE24: 2.653631285 | AF24: 2.375
B25: Dis-4 | C25: Air quality | D25: To identify air quality impacts across project/asset's lifecycle. | E25: ='Question Database'!C26 -> Infrastructure Type What is the infrastructure asset type? (if mixed use choose the most high risk asset type for noise impact during operation) | F25: =asset_inp_infra_type -> Road (surface) | G25: ='Question Database'!D26 -> Construction Air Emissions Does the construction involve significant earthmoving, tunnelling and/or use of diesel plant and equipment (i.e. air emissions)? As per the selection made for the noise credit above. | H25: ? | I25: ='Question Database'!E26 -> Population Density Is the asset located in a densely populated area? | J25: ? | K25: =IF(OR(COUNTIF(E25:J25,"?")>0,COUNTIF(E25:J25,"Answer above")>0),2,SUMIFS(Tables!E:E,Tables!A:A,B25,Tables!B:B,F25,Tables!C:C,H25,Tables!D:D,J25)) -> 2 | N25: 2 | O25: 2.375 | P25: 2.375 | Q25: 2.375 | R25: 2.375 | S25: =AE25 -> 2.653631285 | T25: Location map showing surrounding population density | X25: Dis | Y25: 2.375 | Z25: 2.5 | AA25: 0 | AB25: 0 | AC25: 1 | AD25: =AF25*AC25 -> 2.375 | AE25: 2.653631285 | AF25: 2.375
B26: Dis-5 | C26: Light pollution | D26: To identify impacts across project/asset's lifecycle. | E26: =IF(E16="?","Answer above",E16) -> Infrastructure Type What is the infrastructure asset type? (If mixed, use the most energy intensive asset type) | F26: =asset_inp_infra_type -> Road (surface) | G26: ='Question Database'!D27 -> Nightworks Does the construction/ maintenance/operation involve nightworks which requires lighting? | H26: ? | I26: ='Question Database'!E27 -> Light Proximity How close are light receivers? Please note adjacent is where the sensitive receptors are within 10m of the source of light or project boundary, whichever is most relevant. | J26: ? | K26: =IF(OR(COUNTIF(E26:J26,"?")>0,COUNTIF(E26:J26,"Answer above")>0),2,SUMIFS(Tables!E:E,Tables!A:A,B26,Tables!B:B,F26,Tables!C:C,H26,Tables!D:D,J26)) -> 2 | N26: =IF(ISBLANK(L26),K26,L26) -> 2 | O26: 1 | P26: =N26/2*O26 -> 1 | Q26: 1 | R26: 1 | S26: =AE26 -> 1.117318436 | T26: Construction/maintenance methodology Location map showing light receivers | X26: Dis | Y26: 1 | Z26: 1 | AA26: 0 | AB26: 0 | AC26: 1 | AD26: 1 | AE26: 1.117318436 | AF26: 1
A27: Lan | B27: Lan-1 | C27: Previous land use | D27: To identify land that has previously been developed and where it can be reused. This has been assigned a default materiality score of 2. | K27: 2 | N27: 2 | O27: 2.5 | P27: 2.5 | Q27: 2.5 | R27: 2.5 | S27: =AE27 -> 2.793296089 | T27: No | X27: Lan | Y27: 2.5 | Z27: 2.5 | AA27: 0 | AB27: 0 | AC27: 1 | AD27: 2.5 | AE27: 2.793296089 | AF27: 2.5
B28: Lan-2 | C28: Conservation of on-site resources | D28: To identify where soil resources can be conserved. | E28: ='Question Database'!C29 -> Topsoil Is there uncontaminated topsoil and/or subsoil present that will be disturbed by construction / maintenance? | F28: ? | H28: ="" ->  | J28: ="" ->  | K28: =IF(COUNTIF(E28:J28,"?")>0,2,SUMIFS(Tables!E:E,Tables!A:A,B28,Tables!B:B,F28,Tables!C:C,H28,Tables!D:D,J28)) -> 2 | N28: 2 | O28: 1 | P28: 1 | Q28: 1 | R28: 1 | S28: 1.117318436 | T28: Construction/maintenance methodology | X28: Lan | Y28: 1 | Z28: 1 | AA28: 0 | AB28: 0 | AC28: 1 | AD28: 1 | AE28: 1.117318436 | AF28: 1
B29: Lan-3 | C29: Contamination and remediation | D29: To assess contamination risks and perform sustainable remediation. | E29: ='Question Database'!C30 -> Contamination Risk What is the contamination risk associated with the project/asset? Please note that present and significant should be chosen if the risk of contamination identified in an assessment is high or significant or where a remediation action plan is in place. | F29: ? | H29: ="" ->  | J29: ="" ->  | K29: =IF(COUNTIF(E29:J29,"?")>0,2,SUMIFS(Tables!E:E,Tables!A:A,B29,Tables!B:B,F29,Tables!C:C,H29,Tables!D:D,J29)) -> 2 | N29: 2 | O29: 2 | P29: 2 | Q29: 2 | R29: 2 | S29: 2.234636872 | T29: Contamination study | X29: Lan | Y29: 2 | Z29: 2 | AA29: 0 | AB29: 0 | AC29: 1 | AD29: =AF29*AC29 -> 2 | AE29: 2.234636872 | AF29: 2
B30: Lan-4 | C30: Flooding | D30: To identify risks from flooding. | E30: ='Question Database'!C31 -> Flood Risk Is the asset located on or near a flood plain or is stormwater drainage a known issue? | F30: ? | G30: ='Question Database'!D31 -> Flood Sensitivity Are there sensitive land uses upstream or downstream of the asset? | H30: ? | J30: ="" ->  | K30: =IF(COUNTIF(E30:J30,"?")>0,2,SUMIFS(Tables!E:E,Tables!A:A,B30,Tables!B:B,F30,Tables!C:C,H30,Tables!D:D,J30)) -> 2 | N30: 2 | O30: 1.5 | P30: 1.5 | Q30: 1.5 | R30: 1.5 | S30: 1.675977654 | T30: Flood maps Location map showing potential flood impacts | X30: Lan | Y30: 1.5 | Z30: 1.5 | AA30: 0 | AB30: 0 | AC30: 1 | AD30: 1.5 | AE30: 1.675977654 | AF30: 1.5
A31: Was | B31: Was-1 | C31: Waste management | D31: To identify the potential for sustainable waste management plans and practices. | E31: ='Question Database'!C32 -> Materials Intensity As a percentage of the capital value of the project, what is the percentage spend on materials in the construction phase? As per the selection made for materials category above. | F31: =F20 -> ? | G31: ='Question Database'!D32 -> Materials Intensity As a percentage of the annual operational expenditure of the asset, what is the percentage spend on materials, including maintenance? | H31: =H20 -> ? | I31: ='Question Database'!E32 -> Waste Generation Does the construction/maintenance involve earthmoving, tunnelling, demolition, spoil removal or vegetation clearing (i.e. waste generating activities)? | J31: ? | K31: =IF(OR(COUNTIF(E31:J31,"?")>0,COUNTIF(E31:I31,"Answer above")>0),2,SUMIFS(Tables!E:E,Tables!A:A,B31,Tables!B:B,F31,Tables!C:C,H31,Tables!D:D,J31)) -> 2 | N31: 2 | O31: 2 | P31: 2 | Q31: 2 | R31: 2 | S31: 2.234636872 | T31: Construction/maintenance methodology | X31: Was | Y31: 2 | Z31: 2 | AA31: 0 | AB31: 0 | AC31: 1 | AD31: 2 | AE31: 2.234636872 | AF31: 2
B32: Was-2 | C32: Diversion from landfill | K32: =IF(OR(COUNTIF(E32:I32,"?")>0,COUNTIF(E32:I32,"Answer above")>0),2,SUMIFS(Tables!E:E,Tables!A:A,B32,Tables!B:B,E32,Tables!C:C,G32,Tables!D:D,I32)) -> 0 | N32: =IF(ISBLANK(L32),K31,L32) -> 2 | O32: 3.5 | P32: 3.5 | Q32: 3.5 | R32: 3.5 | S32: 0 | T32: No | X32: Was | Y32: 3.5 | Z32: 3.5 | AA32: 0 | AB32: 1 | AC32: 0 | AD32: 0 | AE32: 0 | AF32: 3.5
B33: Was-3 | C33: Deconstruction/ Disassembly/ Adaptability | D33: To understand the potential for design and planning for deconstruction, disassembly and adaptability of infrastructure in the future. | E33: ='Question Database'!C34 -> Asset Life What is the design or remaining asset life? As per the selection for climate change category above. | F33: =F14 -> ? | G33: ='Question Database'!D34 -> Materials Intensity Percentage of spend on materials (across the infrastructure lifecycle) As per the selection made for materials category above. | H33: =F20 -> ? | I33: ='Question Database'!E34 -> Deconstruction Likelihood Is the asset likely to be adapted/upgraded or decommissioned during its life? | J33: ? | K33: =IF(OR(COUNTIF(E33:J33,"?")>0,COUNTIF(E33:J33,"Answer above")>0),2,SUMIFS(Tables!E:E,Tables!A:A,B33,Tables!B:B,F33,Tables!C:C,H33,Tables!D:D,J33)) -> 2 | N33: 2 | O33: 1.5 | P33: 1.5 | Q33: 1.5 | R33: 1.5 | S33: =AE33 -> 1.675977654 | T33: Deconstruction statement | X33: Was | Y33: 1.5 | Z33: 1.5 | AA33: 0 | AB33: 0 | AC33: 1 | AD33: 1.5 | AE33: 1.675977654 | AF33: 1.5
A34: Eco | B34: Eco-1 | C34: Ecological value | D34: To identify impacts to local ecological value and habitat connectivity. | E34: ='Question Database'!C35 -> Habitat Area Percentage of construction land take that is ecological habitat. | F34: ? | G34: ='Question Database'!D35 -> Habitat Proximity Proximity to nearby ecological habitat. Please note adjacent is where the ecological habitat are adjacent to the project/asset boundary. | H34: ? | J34: ="" ->  | K34: =IF(COUNTIF(E34:J34,"?")>0,2,SUMIFS(Tables!E:E,Tables!A:A,A34,Tables!B:B,F34,Tables!C:C,H34,Tables!D:D,J34)) -> 2 | N34: =IF(ISBLANK(L34),$K$34,L34) -> 2 | O34: 7.5 | P34: 7.5 | Q34: 7.5 | R34: 7.5 | S34: =AE34 -> 8.379888268 | T34: Map showing construction footprint and ecological habitat Location map showing surrounding ecological habitats including sensitivity | X34: Eco | Y34: 7.5 | Z34: 7.5 | AA34: 0 | AB34: 0 | AC34: 1 | AD34: =AF34*AC34 -> 7.5 | AE34: 8.379888268 | AF34: 7.5
B35: Eco-2 | C35: Habitat connectivity | N35: =IF(ISBLANK(L35),$K$34,L35) -> 2 | O35: 3 | P35: 3 | Q35: 3 | R35: 3 | S35: 3.351955307 | X35: Eco | Y35: 3 | Z35: 3 | AA35: 0 | AB35: 0 | AC35: 1 | AD35: 3 | AE35: 3.351955307 | AF35: 3
A36: Hea | B36: Hea-1 | C36: Community health and well being | D36: To identify the potential for making a positive contribution to community health and wellbeing. This has been assigned a default materiality score of 2. | K36: 2 | N36: =IF(ISBLANK($L$36),$K$36,$L$36) -> 2 | O36: 2.5 | P36: 2.5 | Q36: 2.5 | R36: 2.5 | S36: 2.793296089 | T36: No | X36: Hea | Y36: 2.5 | Z36: 2.5 | AA36: 0 | AB36: 0 | AC36: 1 | AD36: 2.5 | AE36: 2.793296089 | AF36: 2.5
B37: Hea-2 | C37: Crime prevention | D37: To assess the impact to design and practice in response to the likelihood of crime. | E37: ='Question Database'!C38 -> Public Interaction Is there public interaction around the project construction site? Public Interaction Is there public interaction around the project construction site? | F37: ? | H37: ="" ->  | J37: ="" ->  | K37: =IF(COUNTIF(E37:J37,"?")>0,2,SUMIFS(Tables!E:E,Tables!A:A,B37,Tables!B:B,F37,Tables!C:C,H37,Tables!D:D,J37)) -> 2 | N37: =IF(ISBLANK($L$37),$K$37,$L$37) -> 2 | O37: 2.5 | P37: 2.5 | Q37: 2.5 | R37: 2.5 | S37: 2.793296089 | X37: Hea | Y37: 2.5 | Z37: 2.5 | AA37: 0 | AB37: 0 | AC37: 1 | AD37: 2.5 | AE37: 2.793296089 | AF37: 2.5
A38: Her | B38: Her-1 | C38: Heritage assessment and management | D38: To assess the management and monitoring of impacts on heritage. | E38: ='Question Database'!C39 -> Heritage Presence Are there heritage sites or objects (indigenous or non-indigenous) within or nearby to the asset? These are heritage sites listed on registers. | F38: ? | G38: ='Question Database'!D39 -> Heritage Value Are there heritage sites or objects that are highly valued by stakeholders? These may not be isted on registers. | H38: ? | J38: ="" ->  | K38: =IF(COUNTIF(E38:J38,"?")>0,2,SUMIFS(Tables!E:E,Tables!A:A,A38,Tables!B:B,F38,Tables!C:C,H38,Tables!D:D,J38)) -> 2 | N38: =IF(ISBLANK(L38),$K$38,L38) -> 2 | O38: 2.5 | P38: 2.5 | Q38: 2.5 | R38: 2.5 | S38: 2.793296089 | T38: Location map showing heritage including value | X38: Her | Y38: 2.5 | Z38: 2.5 | AA38: 0 | AB38: 0 | AC38: 1 | AD38: 2.5 | AE38: 2.793296089 | AF38: 2.5
B39: Her-2 | C39: Monitoring of heritage | N39: =IF(ISBLANK(L39),$K$38,L39) -> 2 | O39: 2.5 | P39: 2.5 | Q39: 2.5 | R39: 2.5 | S39: 0 | X39: Her | Y39: 2.5 | Z39: 2.5 | AA39: 0 | AB39: 1 | AC39: 0 | AD39: 0 | AE39: 0 | AF39: 2.5
A40: Sta | B40: Sta-1 | C40: Stakeholder engagement strategy | D40: To assess the level of risk atributed to the engagement, and consideration of stakeholders and their concerns, in the context of the project/asset operation and maintenance. | E40: ='Question Database'!C41 -> Stakeholder Sensitivity Is there stakeholder interest in the project/asset? | F40: ? | H40: ="" ->  | J40: ="" ->  | K40: =IF(COUNTIF(E40:J40,"?")>0,2,SUMIFS(Tables!E:E,Tables!A:A,A40,Tables!B:B,F40,Tables!C:C,H40,Tables!D:D,J40)) -> 2 | N40: =IF(ISBLANK(L40),$K$40,L40) -> 2 | O40: 1.25 | P40: 1.25 | Q40: 1.25 | R40: 1.25 | S40: 1.396648045 | T40: Stakeholder analysis | X40: Sta | Y40: 1.25 | Z40: 1.5 | AA40: 0 | AB40: 0 | AC40: 1 | AD40: 1.25 | AE40: 1.396648045 | AF40: 1.25
B41: Sta-2 | C41: Level of engagement | N41: =IF(ISBLANK(L41),$K$40,L41) -> 2 | O41: 1.25 | P41: 1.25 | Q41: 1.25 | R41: 1.25 | S41: =AE41 -> 1.396648045 | X41: Sta | Y41: 1.25 | Z41: 1.5 | AA41: 0 | AB41: 0 | AC41: 1 | AD41: 1.25 | AE41: 1.396648045 | AF41: 1.25
B42: Sta-3 | C42: Effective communication | N42: 2 | O42: 1.25 | P42: 1.25 | Q42: 1.25 | R42: 1.25 | S42: =AE42 -> 1.396648045 | X42: Sta | Y42: 1.25 | Z42: 1.5 | AA42: 0 | AB42: 0 | AC42: 1 | AD42: 1.25 | AE42: 1.396648045 | AF42: 1.25
B43: Sta-4 | C43: Addressing community concerns | N43: 2 | O43: 1.25 | P43: 1.25 | Q43: 1.25 | R43: 1.25 | S43: 1.396648045 | X43: Sta | Y43: 1.25 | Z43: 1.5 | AA43: 0 | AB43: 0 | AC43: 1 | AD43: 1.25 | AE43: 1.396648045 | AF43: 1.25
A44: Urb | B44: Urb-1 | C44: Urban design | D44: To identify the potential for adoption of best practice urban design principles. | E44: =IF(E16="?","Answer above",E16) -> Infrastructure Type What is the infrastructure asset type? (If mixed, use the most energy intensive asset type) | F44: ='Asset Input'!F16:K16 -> Road (surface) | G44: =IF(I25="?","Answer above",I25) -> Population Density Is the asset located in a densely populated area? | H44: ? | J44: ="" ->  | K44: =IF(OR(COUNTIF(E44:J44,"?")>0,COUNTIF(E44:J44,"Answer above")>0),2,SUMIFS(Tables!E:E,Tables!A:A,A44,Tables!B:B,F44,Tables!C:C,H44,Tables!D:D,J44:J45)) -> 2 | N44: =IF(ISBLANK($L$44),$K$44,$L$44) -> 2 | O44: 4 | P44: 4 | Q44: 4 | R44: 4 | S44: 4.469273743 | T44: Description of project/asset | X44: Urb | Y44: 4 | Z44: 4 | AA44: 0 | AB44: 0 | AC44: 1 | AD44: 4 | AE44: 4.469273743 | AF44: 4
B45: Urb-2 | C45: Implementation | N45: =IF(ISBLANK($L$45),$K$44,$L$45) -> 2 | O45: 1 | P45: 1 | Q45: 1 | R45: 1 | S45: 0 | X45: Urb | Y45: 1 | Z45: 1 | AA45: 0 | AB45: 1 | AC45: 0 | AD45: 0 | AE45: 0 | AF45: 1
A46: Inn | B46: Inn-1 | C46: Innovation | D46: Bonus credit This has been assigned a default materiality score of 2. | E46: NA | G46: NA | I46: NA | K46: 2 | N46: =K46 -> 2 | O46: 10 | P46: 10 | Q46: 10 | R46: 10 | S46: 10 | T46: No | X46: Inn | Y46: 10 | Z46: 10 | AA46: 0 | AE46: 10 | AF46: 10

Sheet Assessor Tracking (hidden)
F1: i Data presented here is entered on Credit Summary Forms (except Assessor Notes) | Q1: Hide
B2: Credit | C2: Name of credit | D2: Descriptive | H2: Numerical and Heat Map | L2: Points 'done' | M2: Assessor Notes | N2: Cost Benefit Data (per CSFs)
D3: Indicative cost | E3: Difficulty | F3: Risk of non-achievement | G3: Overall status of credit | H3: Indicative cost | I3: Difficulty | J3: Risk of non-achievement | K3: Overall status of credit | L3: =ROUND(SUM(L4:L47),2)&" pts" -> 0 pts | N3: Cost Entered | O3: Benefit Entered
A4: Man | B4: Man-1 | C4: Sustainability leadership and commitment | D4: =man1IndicCost -> < Select > | E4: =man1Difficulty -> < Select > | F4: =man1Risk -> < Select > | G4: =Man1OverallStatus -> < Select > | H4: =IF(OR(D4="< Select >",D4=""),"N/A",INDEX(risk_achieve_table,MATCH(D4,risk_of_achieve,0),2)) -> N/A | I4: =IF(OR(E4="< Select >",E4=""),"N/A",INDEX(risk_achieve_table,MATCH(E4,risk_of_achieve,0),2)) -> N/A | J4: =IF(OR(F4="< Select >",F4=""),"N/A",INDEX(risk_achieve_table,MATCH(F4,risk_of_achieve,0),2)) -> N/A | K4: =IF(OR(G4="< Select >",G4=""),"N/A",INDEX(lists_actions_status,MATCH(G4,lists_actions_key,0),2)) -> N/A | L4: =IF(G4<>"Done",0,INDEX(summary_tbl_wide,MATCH(B4,summary_tbl_credits,0),9)) -> 0 | N4: =man1cbcost -> 0 | O4: =man1cbben -> 0 | Q4: =LEFT(B4,3) -> Man
B5: Man-2 | C5: Risk and opportunity management | D5: =man2IndicCost -> < Select > | E5: =man2Difficulty -> < Select > | F5: =man2Risk -> < Select > | G5: =man2OverallStatus -> < Select > | H5: N/A | I5: N/A | J5: N/A | K5: N/A | L5: 0 | N5: =man2cbcost -> 0 | O5: =man2cbben -> 0 | Q5: =LEFT(B5,3) -> Man
B6: Man-3 | C6: Organisational structure, roles and responsibilities | D6: =man3IndicCost -> < Select > | E6: =man3Difficulty -> < Select > | F6: =man3Risk -> < Select > | G6: =man3OverallStatus -> < Select > | H6: N/A | I6: N/A | J6: N/A | K6: N/A | L6: 0 | N6: =man3cbcost -> 0 | O6: =man3cbben -> 0 | Q6: Man
B7: Man-4 | C7: Inspection and auditing | D7: =man4IndicCost -> < Select > | E7: =man4Difficulty -> < Select > | F7: =man4Risk -> < Select > | G7: =man4OverallStatus -> < Select > | H7: N/A | I7: N/A | J7: N/A | K7: N/A | L7: 0 | N7: =man4cbcost -> 0 | O7: =man4cbben -> 0 | Q7: Man
B8: Man-5 | C8: Reporting and review | D8: =man5IndicCost -> < Select > | E8: =man5Difficulty -> < Select > | F8: =man5Risk -> < Select > | G8: =man5OverallStatus -> < Select > | H8: N/A | I8: N/A | J8: N/A | K8: N/A | L8: 0 | N8: =man5cbcost -> 0 | O8: =man5cbben -> 0 | Q8: Man
B9: Man-6 | C9: Knowledge sharing | D9: =man6IndicCost -> < Select > | E9: =man6Difficulty -> < Select > | F9: =man6Risk -> < Select > | G9: =man6OverallStatus -> < Select > | H9: N/A | I9: N/A | J9: N/A | K9: N/A | L9: 0 | N9: =man6cbcost -> 0 | O9: =man6cbben -> 0 | Q9: Man
B10: Man-7 | C10: Decision-making | D10: =man7IndicCost -> < Select > | E10: =man7Difficulty -> < Select > | F10: =man7Risk -> < Select > | G10: =man7OverallStatus -> < Select > | H10: N/A | I10: N/A | J10: N/A | K10: N/A | L10: 0 | N10: =man7cbcost -> 0 | O10: =man7cbben -> 0 | Q10: Man
A11: Pro | B11: Pro-1 | C11: Commitment to sustainable procurement | D11: =pro1IndicCost -> < Select > | E11: =pro1Difficult -> < Select > | F11: =Pro1Risk -> < Select > | G11: =Pro1OverallStatus -> < Select > | H11: N/A | I11: N/A | J11: N/A | K11: N/A | L11: 0 | N11: =pro1cbcost -> 0 | O11: =pro1cbben -> 0 | Q11: Pro
B12: Pro-2 | C12: Identification of suppliers | D12: =pro2IndicCost -> < Select > | E12: =pro2Difficulty -> < Select > | F12: =pro2Risk -> < Select > | G12: =pro2OverallStatus -> < Select > | H12: N/A | I12: N/A | J12: N/A | K12: N/A | L12: 0 | N12: =pro2cbcost -> 0 | O12: =pro2cbben -> 0 | Q12: Pro
B13: Pro-3 | C13: Supplier evaluation and contract award | D13: =pro3IndicCost -> < Select > | E13: =pro3Difficulty -> < Select > | F13: =pro3Risk -> < Select > | G13: =pro3OverallStatus -> < Select > | H13: N/A | I13: N/A | J13: N/A | K13: N/A | L13: 0 | N13: =pro3cbcost -> 0 | O13: =pro3cbben -> 0 | Q13: Pro
B14: Pro-4 | C14: Managing supplier performance | D14: =pro4IndicCost -> < Select > | E14: =pro4Difficulty -> < Select > | F14: =pro4Risk -> < Select > | G14: =pro4OverallStatus -> < Select > | H14: N/A | I14: N/A | J14: N/A | K14: N/A | L14: 0 | N14: =pro4cbcost -> 0 | O14: =pro4cbben -> 0 | Q14: Pro
A15: Cli | B15: Cli-1 | C15: Climate change risk assessment | D15: =cli1IndicCost -> < Select > | E15: =cli1Difficulty -> < Select > | F15: =cli1Risk -> < Select > | G15: =cli1OverallStatus -> < Select > | H15: N/A | I15: N/A | J15: N/A | K15: N/A | L15: 0 | N15: =cli1cbcost -> 0 | O15: =cli1cbben -> 0 | Q15: Cli
B16: Cli-2 | C16: Adaptation options | D16: =cli2IndicCost -> < Select > | E16: =cli2Difficulty -> < Select > | F16: =cli2Risk -> < Select > | G16: =cli2OverallStatus -> < Select > | H16: N/A | I16: N/A | J16: N/A | K16: N/A | L16: 0 | N16: =cli2cbcost -> 0 | O16: =cli2cbben -> 0 | Q16: Cli
A17: Ene | B17: Ene-1 | C17: Energy and carbon monitoring and reduction | D17: =ene1IndicCost -> < Select > | E17: =ene1Difficulty -> < Select > | F17: =ene1Risk -> < Select > | G17: =ene1OverallStatus -> < Select > | H17: N/A | I17: N/A | J17: N/A | K17: N/A | L17: 0 | N17: =ene1cbcost -> 0 | O17: =ene1cbben -> 0 | Q17: Ene
B18: Ene-2 | C18: Renewable energy | D18: =ene2IndicCost -> < Select > | E18: =ene2Difficulty -> < Select > | F18: =ene2Risk -> < Select > | G18: =ene2OverallStatus -> < Select > | H18: =IF(OR(D18="< Select >",D18=""),"N/A",INDEX(risk_achieve_table,MATCH(D18,risk_of_achieve,0),2)) -> N/A | I18: =IF(OR(E18="< Select >",E18=""),"N/A",INDEX(risk_achieve_table,MATCH(E18,risk_of_achieve,0),2)) -> N/A | J18: =IF(OR(F18="< Select >",F18=""),"N/A",INDEX(risk_achieve_table,MATCH(F18,risk_of_achieve,0),2)) -> N/A | K18: =IF(OR(G18="< Select >",G18=""),"N/A",INDEX(lists_actions_status,MATCH(G18,lists_actions_key,0),2)) -> N/A | L18: 0 | N18: =ene2cbcost -> 0 | O18: =ene2cbben -> 0 | Q18: Ene
A19: Wat | B19: Wat-1 | C19: Water use monitoring and reduction | D19: =wat1IndicCost -> < Select > | E19: =wat1Difficulty -> < Select > | F19: =wat1Risk -> < Select > | G19: =wat1OverallStatus -> < Select > | H19: N/A | I19: N/A | J19: N/A | K19: N/A | L19: 0 | N19: =wat1cbcost -> 0 | O19: =wat1cbben -> 0 | Q19: Wat
B20: Wat-2 | C20: Replace potable water | D20: =wat2IndicCost -> < Select > | E20: =wat2Difficulty -> < Select > | F20: =wat2Risk -> < Select > | G20: =Wat2OverallStatus -> < Select > | H20: =IF(OR(D20="< Select >",D20=""),"N/A",INDEX(risk_achieve_table,MATCH(D20,risk_of_achieve,0),2)) -> N/A | I20: =IF(OR(E20="< Select >",E20=""),"N/A",INDEX(risk_achieve_table,MATCH(E20,risk_of_achieve,0),2)) -> N/A | J20: =IF(OR(F20="< Select >",F20=""),"N/A",INDEX(risk_achieve_table,MATCH(F20,risk_of_achieve,0),2)) -> N/A | K20: =IF(OR(G20="< Select >",G20=""),"N/A",INDEX(lists_actions_status,MATCH(G20,lists_actions_key,0),2)) -> N/A | L20: 0 | N20: =wat2cbcost -> 0 | O20: =wat2cbben -> 0 | Q20: Wat
A21: Mat | B21: Mat-1 | C21: Materials footprint measurement and reduction | D21: =mat1IndicCost -> < Select > | E21: =mat1Difficulty -> < Select > | F21: =mat1Risk -> < Select > | G21: =mat1OverallStatus -> < Select > | H21: N/A | I21: N/A | J21: N/A | K21: N/A | L21: 0 | N21: =mat1cbcost -> 0 | O21: =mat1cbben -> 0 | Q21: Mat
B22: Mat-2 | C22: Environmentally labelled products and supply chains | D22: =mat2IndicCost -> < Select > | E22: =mat2Difficulty -> < Select > | F22: =mat2Risk -> < Select > | G22: =mat2OverallStatus -> < Select > | H22: =IF(OR(D22="< Select >",D22=""),"N/A",INDEX(risk_achieve_table,MATCH(D22,risk_of_achieve,0),2)) -> N/A | I22: =IF(OR(E22="< Select >",E22=""),"N/A",INDEX(risk_achieve_table,MATCH(E22,risk_of_achieve,0),2)) -> N/A | J22: =IF(OR(F22="< Select >",F22=""),"N/A",INDEX(risk_achieve_table,MATCH(F22,risk_of_achieve,0),2)) -> N/A | K22: =IF(OR(G22="< Select >",G22=""),"N/A",INDEX(lists_actions_status,MATCH(G22,lists_actions_key,0),2)) -> N/A | L22: 0 | N22: =mat2cbcost -> 0 | O22: =mat2cbben -> 0 | Q22: Mat
A23: Dis | B23: Dis-1 | C23: Receiving water quality | D23: =dis1IndicCost -> < Select > | E23: =dis1Difficulty -> < Select > | F23: =dis1Risk -> < Select > | G23: =dis1OverallStatus -> < Select > | H23: N/A | I23: N/A | J23: N/A | K23: N/A | L23: 0 | N23: =dis1cbcost -> 0 | O23: =dis1cbben -> 0 | Q23: Dis
B24: Dis-2 | C24: Noise | D24: =dis2IndicCost -> < Select > | E24: =dis2Difficulty -> < Select > | F24: =dis2Risk -> < Select > | G24: =dis2OverallStatus -> < Select > | H24: N/A | I24: N/A | J24: N/A | K24: N/A | L24: 0 | N24: =dis2cbcost -> 0 | O24: =dis2cbben -> 0 | Q24: Dis
B25: Dis-3 | C25: Vibration | D25: =dis3IndicCost -> < Select > | E25: =dis3Difficulty -> < Select > | F25: =dis3Risk -> < Select > | G25: =dis3OverallStatus -> < Select > | H25: N/A | I25: N/A | J25: N/A | K25: N/A | L25: 0 | N25: =dis3cbcost -> 0 | O25: =dis3cbben -> 0 | Q25: Dis
B26: Dis-4 | C26: Air quality | D26: =dis4IndicCost -> < Select > | E26: =dis4Difficulty -> < Select > | F26: =dis4Risk -> < Select > | G26: =dis4OverallStatus -> < Select > | H26: N/A | I26: N/A | J26: N/A | K26: N/A | L26: 0 | N26: =dis4cbcost -> 0 | O26: =dis4cbben -> 0 | Q26: Dis
B27: Dis-5 | C27: Light pollution | D27: =dis5IndicCost -> < Select > | E27: =dis5Difficulty -> < Select > | F27: =dis5Risk -> < Select > | G27: =dis5OverallStatus -> < Select > | H27: N/A | I27: N/A | J27: N/A | K27: N/A | L27: 0 | N27: =dis5cbcost -> 0 | O27: =dis5cbben -> 0 | Q27: Dis
A28: Lan | B28: Lan-1 | C28: Previous land use | D28: =lan1IndicCost -> < Select > | E28: =lan1Difficulty -> < Select > | F28: =lan1Risk -> < Select > | G28: =lan1OverallStatus -> < Select > | H28: N/A | I28: N/A | J28: N/A | K28: N/A | L28: 0 | N28: =lan1cbcost -> 0 | O28: =lan1cbben -> 0 | Q28: Lan
B29: Lan-2 | C29: Conservation of on site resources | D29: =lan2IndicCost -> < Select > | E29: =lan2Difficulty -> < Select > | F29: =lan2Risk -> < Select > | G29: =lan2OverallStatus -> < Select > | H29: N/A | I29: N/A | J29: N/A | K29: N/A | L29: 0 | N29: =lan2cbcost -> 0 | O29: =lan2cbben -> 0 | Q29: Lan
B30: Lan-3 | C30: Contamination and remediation | D30: =lan3IndicCost -> < Select > | E30: =lan3Difficulty -> < Select > | F30: =lan3Risk -> < Select > | G30: =lan3OverallStatus -> < Select > | H30: N/A | I30: N/A | J30: N/A | K30: N/A | L30: 0 | N30: =lan3cbcost -> 0 | O30: =lan3cbben -> 0 | Q30: Lan
B31: Lan-4 | C31: Flooding design | D31: =lan4IndicCost -> < Select > | E31: =lan4Difficulty -> < Select > | F31: =lan4Risk -> < Select > | G31: =lan4OverallStatus -> < Select > | H31: N/A | I31: N/A | J31: N/A | K31: N/A | L31: 0 | N31: =lan4cbcost -> 0 | O31: =lan4cbben -> 0 | Q31: Lan
A32: Was | B32: Was-1 | C32: Waste management | D32: =was1IndicCost -> < Select > | E32: =was1Difficulty -> < Select > | F32: =was1Risk -> < Select > | G32: =was1OverallStatus -> < Select > | H32: N/A | I32: N/A | J32: N/A | K32: N/A | L32: 0 | N32: =was1cbcost -> 0 | O32: =was1cbben -> 0 | Q32: Was
B33: Was-2 | C33: Diversion from landfill | D33: =was2IndicCost -> < Select > | E33: =was2Difficulty -> < Select > | F33: =was2Risk -> < Select > | G33: =was2OverallStatus -> < Select > | H33: N/A | I33: N/A | J33: N/A | K33: N/A | L33: 0 | N33: =was2cbcost -> 0 | O33: =was2cbben -> 0 | Q33: Was
B34: Was-3 | C34: Deconstruction/ Disassembly/ Adaptability | D34: =was3IndicCost -> < Select > | E34: =was3Difficulty -> < Select > | F34: =was3Risk -> < Select > | G34: =was3OverallStatus -> < Select > | H34: N/A | I34: N/A | J34: N/A | K34: N/A | L34: 0 | N34: =was3cbcost -> 0 | O34: =was3cbben -> 0 | Q34: Was
A35: Eco | B35: Eco-1 | C35: Ecological value | D35: =eco1IndicCost -> < Select > | E35: =eco1Difficulty -> < Select > | F35: =eco1Risk -> < Select > | G35: =eco1OverallStatus -> < Select > | H35: N/A | I35: N/A | J35: N/A | K35: N/A | L35: 0 | N35: =eco1cbcost -> 0 | O35: =eco1cbben -> 0 | Q35: Eco
B36: Eco-2 | C36: Habitat connectivity | D36: =eco2IndicCost -> < Select > | E36: =eco2Difficulty -> < Select > | F36: =eco2Risk -> < Select > | G36: =eco2OverallStatus -> < Select > | H36: N/A | I36: N/A | J36: N/A | K36: N/A | L36: 0 | N36: =eco2cbcost -> 0 | O36: =eco2cbben -> 0 | Q36: Eco
A37: Hea | B37: Hea-1 | C37: Community health and well-being | D37: =hea1IndicCost -> < Select > | E37: =hea1Difficulty -> < Select > | F37: =hea1Risk -> < Select > | G37: =hea1OverallStatus -> < Select > | H37: N/A | I37: N/A | J37: N/A | K37: N/A | L37: 0 | N37: =hea1cbcost -> 0 | O37: =hea1cbben -> 0 | Q37: Hea
B38: Hea-2 | C38: Crime prevention | D38: =hea2IndicCost -> < Select > | E38: =hea2Difficulty -> < Select > | F38: =hea2Risk -> < Select > | G38: =hea2OverallStatus -> < Select > | H38: N/A | I38: N/A | J38: N/A | K38: N/A | L38: 0 | N38: =hea2cbcost -> 0 | O38: =hea2cbben -> 0 | Q38: Hea
A39: Her | B39: Her-1 | C39: Heritage assessment and management | D39: =her1IndicCost -> < Select > | E39: =her1Difficulty -> < Select > | F39: =her1Risk -> < Select > | G39: =her1OverallStatus -> < Select > | H39: N/A | I39: N/A | J39: N/A | K39: N/A | L39: 0 | N39: =her1cbcost -> 0 | O39: =her1cbben -> 0 | Q39: Her
B40: Her-2 | C40: Monitoring and management of heritage | D40: =her2IndicCost -> < Select > | E40: =her2Difficulty -> < Select > | F40: =her2Risk -> < Select > | G40: =her2OverallStatus -> < Select > | H40: N/A | I40: N/A | J40: N/A | K40: N/A | L40: 0 | N40: =her2cbcost -> 0 | O40: =her2cbben -> 0 | Q40: Her
A41: Sta | B41: Sta-1 | C41: Stakeholder engagement strategy | D41: =sta1IndicCost -> < Select > | E41: =sta1Difficulty -> < Select > | F41: =sta1Risk -> < Select > | G41: =sta1OverallStatus -> < Select > | H41: N/A | I41: N/A | J41: N/A | K41: N/A | L41: 0 | N41: =sta1cbcost -> 0 | O41: =sta1cbben -> 0 | Q41: Sta
B42: Sta-2 | C42: Level of engagement | D42: =sta2IndicCost -> < Select > | E42: =sta2Difficulty -> < Select > | F42: =sta2Risk -> < Select > | G42: =sta2OverallStatus -> < Select > | H42: N/A | I42: N/A | J42: N/A | K42: N/A | L42: 0 | N42: =sta2cbcost -> 0 | O42: =sta2cbben -> 0 | Q42: Sta
B43: Sta-3 | C43: Effective communication | D43: =sta3IndicCost -> < Select > | E43: =sta3Difficulty -> < Select > | F43: =sta3Risk -> < Select > | G43: =sta3OverallStatus -> < Select > | H43: N/A | I43: N/A | J43: N/A | K43: N/A | L43: 0 | N43: =sta3cbcost -> 0 | O43: =sta3cbben -> 0 | Q43: Sta
B44: Sta-4 | C44: Addressing community concerns | D44: =sta4IndicCost -> < Select > | E44: =sta4Difficulty -> < Select > | F44: =sta4Risk -> < Select > | G44: =sta4OverallStatus -> < Select > | H44: N/A | I44: N/A | J44: N/A | K44: N/A | L44: 0 | N44: =sta3cbcost -> 0 | O44: =sta4cbben -> 0 | Q44: Sta
A45: Urb | B45: Urb-1 | C45: Urban design | D45: =urb1IndicCost -> < Select > | E45: =urb1Difficulty -> < Select > | F45: =urb1Risk -> < Select > | G45: =urb1OverallStatus -> < Select > | H45: N/A | I45: N/A | J45: N/A | K45: N/A | L45: 0 | N45: =urb1cbcost -> 0 | O45: =urb1cbben -> 0 | Q45: Urb
B46: Urb-2 | C46: Implementation | D46: =urb2IndicCost -> < Select > | E46: =urb2Difficulty -> < Select > | F46: =urb2Risk -> < Select > | G46: =urb2OverallStatus -> < Select > | H46: N/A | I46: N/A | J46: N/A | K46: N/A | L46: 0 | N46: =urb2cbcost -> 0 | O46: =urb2cbben -> 0 | Q46: Urb
A47: Inn | B47: Inn-1 | C47: Innovation | D47: =inn1IndicCost -> < Select > | E47: =inn1Difficulty -> < Select > | F47: =inn1Risk -> < Select > | G47: =inn1OverallStatus -> < Select > | H47: N/A | I47: N/A | J47: N/A | K47: N/A | L47: 0 | N47: =inn1cbcost -> 0 | O47: =inn1cbben -> 0 | Q47: Inn

Sheet Weightings Charts (hidden)
C4: Weighting
B5: Category | C5: Default | D5: Final | E5: Change
B6: Man | C6: =SUMIF(weightings_categories,B6,weightings_default_pts) -> 10.5 | D6: =SUMIF(weightings_categories,B6,weightings_adjusted_points) -> 11.73184358 | E6: =D6-C6 -> 1.231843575
B7: Pro | C7: 5 | D7: 2.793296089 | E7: =D7-C7 -> -2.206703911
B8: Cli | C8: 5 | D8: 5.586592179 | E8: 0.5865921788
B9: Ene | C9: 10.5 | D9: 11.73184358 | E9: 1.231843575
B10: Wat | C10: 7 | D10: 7.82122905 | E10: 0.8212290503
B11: Mat | C11: 7 | D11: 6.703910615 | E11: -0.2960893855
B12: Dis | C12: 10.5 | D12: 11.73184358 | E12: 1.231843575
B13: Lan | C13: 7 | D13: 7.82122905 | E13: 0.8212290503
B14: Was | C14: 7 | D14: 3.910614525 | E14: -3.089385475
B15: Eco | C15: 10.5 | D15: 11.73184358 | E15: 1.231843575
B16: Hea | C16: 5 | D16: 5.586592179 | E16: 0.5865921788
B17: Her | C17: 5 | D17: 2.793296089 | E17: -2.206703911
B18: Sta | C18: 5 | D18: 5.586592179 | E18: 0.5865921788
B19: Urb | C19: 5 | D19: 4.469273743 | E19: -0.530726257
B20: Inn | C20: 10 | D20: 10 | E20: 0
B22: Management and governance | F22: Using resources | J22: Emisions, pollution and waste | N22: Ecology | R22: People and place
B23: Credit | C23: Default | D23: Final | F23: Credit | G23: Default | H23: Final | J23: Credit | K23: Default | L23: Final | N23: Credit | O23: Default | P23: Final | R23: Credit | S23: Default | T23: Final
B24: =Weightings!B3 -> Man-1 | C24: =Weightings!O3 -> 1 | D24: =Weightings!S3 -> 1.117318436 | F24: =B37 -> Ene-1 | G24: =C37 -> 9 | H24: 10.05586592 | J24: =B43 -> Dis-1 | K24: =C43 -> 2.375 | L24: 2.653631285 | N24: =B55 -> Eco-1 | O24: =C55 -> 7.5 | P24: 8.379888268 | R24: =B57 -> Hea-1 | S24: =C57 -> 2.5 | T24: 2.793296089
B25: =Weightings!B4 -> Man-2 | C25: =Weightings!O4 -> 1 | D25: =Weightings!S4 -> 1.117318436 | F25: Ene-2 | G25: =C38 -> 1.5 | H25: 1.675977654 | J25: =B44 -> Dis-2 | K25: 2.375 | L25: 2.653631285 | N25: =B56 -> Eco-2 | O25: =C56 -> 3 | P25: =D56 -> 3.351955307 | R25: =B58 -> Hea-2 | S25: 2.5 | T25: 2.793296089
B26: =Weightings!B5 -> Man-3 | C26: =Weightings!O5 -> 1 | D26: =Weightings!S5 -> 1.117318436 | F26: Wat-1 | G26: 4.5 | H26: 5.027932961 | J26: Dis-3 | K26: 2.375 | L26: 2.653631285 | R26: Her-1 | S26: 2.5 | T26: 2.793296089
B27: =Weightings!B6 -> Man-4 | C27: =Weightings!O6 -> 1 | D27: =Weightings!S6 -> 1.117318436 | F27: Wat-2 | G27: 2.5 | H27: 2.793296089 | J27: Dis-4 | K27: 2.375 | L27: 2.653631285 | R27: Her-2 | S27: 2.5 | T27: 0
B28: =Weightings!B7 -> Man-5 | C28: =Weightings!O7 -> 1 | D28: =Weightings!S7 -> 1.117318436 | F28: Mat-1 | G28: 6 | H28: 6.703910615 | J28: Dis-5 | K28: 1 | L28: 1.117318436 | N28: Innovation | R28: Sta-1 | S28: 1.25 | T28: 1.396648045
B29: =Weightings!B8 -> Man-6 | C29: =Weightings!O8 -> 2.25 | D29: =Weightings!S8 -> 2.51396648 | F29: Mat-2 | G29: 1 | H29: 0 | J29: Lan-1 | K29: 2.5 | L29: 2.793296089 | N29: Credit | O29: Default | P29: Final | R29: Sta-2 | S29: 1.25 | T29: 1.396648045
B30: =Weightings!B9 -> Man-7 | C30: =Weightings!O9 -> 3.25 | D30: =Weightings!S9 -> 3.631284916 | J30: Lan-2 | K30: 1 | L30: 1.117318436 | N30: =B67 -> Inn-1 | O30: =C67 -> 10 | P30: =D67 -> 10 | R30: Sta-3 | S30: 1.25 | T30: 1.396648045
B31: =Weightings!B10 -> Pro-1 | C31: =Weightings!O10 -> 1.25 | D31: =Weightings!S10 -> 1.396648045 | J31: Lan-3 | K31: 2 | L31: 2.234636872 | R31: Sta-4 | S31: 1.25 | T31: 1.396648045
B32: =Weightings!B11 -> Pro-2 | C32: =Weightings!O11 -> 1.25 | D32: =Weightings!S11 -> 1.396648045 | J32: Lan-4 | K32: 1.5 | L32: 1.675977654 | R32: Urb-1 | S32: 4 | T32: 4.469273743
B33: =Weightings!B12 -> Pro-3 | C33: =Weightings!O12 -> 1.25 | D33: =Weightings!S12 -> 0 | J33: Was-1 | K33: 2 | L33: 2.234636872 | R33: Urb-2 | S33: 1 | T33: 0
B34: =Weightings!B13 -> Pro-4 | C34: =Weightings!O13 -> 1.25 | D34: =Weightings!S13 -> 0 | J34: Was-2 | K34: 3.5 | L34: 0
B35: =Weightings!B14 -> Cli-1 | C35: =Weightings!O14 -> 2.5 | D35: =Weightings!S14 -> 2.793296089 | J35: Was-3 | K35: 1.5 | L35: 1.675977654
B36: =Weightings!B15 -> Cli-2 | C36: =Weightings!O15 -> 2.5 | D36: =Weightings!S15 -> 2.793296089
B37: =Weightings!B16 -> Ene-1 | C37: =Weightings!O16 -> 9 | D37: =Weightings!S16 -> 10.05586592
B38: =Weightings!B17 -> Ene-2 | C38: =Weightings!O17 -> 1.5 | D38: =Weightings!S17 -> 1.675977654
B39: =Weightings!B18 -> Wat-1 | C39: =Weightings!O18 -> 4.5 | D39: =Weightings!S18 -> 5.027932961
B40: =Weightings!B19 -> Wat-2 | C40: =Weightings!O19 -> 2.5 | D40: =Weightings!S19 -> 2.793296089
B41: =Weightings!B20 -> Mat-1 | C41: =Weightings!O20 -> 6 | D41: =Weightings!S20 -> 6.703910615
B42: =Weightings!B21 -> Mat-2 | C42: =Weightings!O21 -> 1 | D42: =Weightings!S21 -> 0
B43: =Weightings!B22 -> Dis-1 | C43: =Weightings!O22 -> 2.375 | D43: =Weightings!S22 -> 2.653631285
B44: =Weightings!B23 -> Dis-2 | C44: =Weightings!O23 -> 2.375 | D44: =Weightings!S23 -> 2.653631285
B45: =Weightings!B24 -> Dis-3 | C45: =Weightings!O24 -> 2.375 | D45: =Weightings!S24 -> 2.653631285
B46: =Weightings!B25 -> Dis-4 | C46: =Weightings!O25 -> 2.375 | D46: =Weightings!S25 -> 2.653631285
B47: =Weightings!B26 -> Dis-5 | C47: =Weightings!O26 -> 1 | D47: =Weightings!S26 -> 1.117318436
B48: =Weightings!B27 -> Lan-1 | C48: =Weightings!O27 -> 2.5 | D48: =Weightings!S27 -> 2.793296089
B49: =Weightings!B28 -> Lan-2 | C49: =Weightings!O28 -> 1 | D49: =Weightings!S28 -> 1.117318436
B50: =Weightings!B29 -> Lan-3 | C50: =Weightings!O29 -> 2 | D50: =Weightings!S29 -> 2.234636872
B51: =Weightings!B30 -> Lan-4 | C51: =Weightings!O30 -> 1.5 | D51: =Weightings!S30 -> 1.675977654
B52: =Weightings!B31 -> Was-1 | C52: =Weightings!O31 -> 2 | D52: =Weightings!S31 -> 2.234636872
B53: =Weightings!B32 -> Was-2 | C53: =Weightings!O32 -> 3.5 | D53: =Weightings!S32 -> 0
B54: =Weightings!B33 -> Was-3 | C54: =Weightings!O33 -> 1.5 | D54: =Weightings!S33 -> 1.675977654
B55: =Weightings!B34 -> Eco-1 | C55: =Weightings!O34 -> 7.5 | D55: =Weightings!S34 -> 8.379888268
B56: =Weightings!B35 -> Eco-2 | C56: =Weightings!O35 -> 3 | D56: =Weightings!S35 -> 3.351955307
B57: =Weightings!B36 -> Hea-1 | C57: =Weightings!O36 -> 2.5 | D57: =Weightings!S36 -> 2.793296089
B58: =Weightings!B37 -> Hea-2 | C58: =Weightings!O37 -> 2.5 | D58: =Weightings!S37 -> 2.793296089
B59: =Weightings!B38 -> Her-1 | C59: =Weightings!O38 -> 2.5 | D59: =Weightings!S38 -> 2.793296089
B60: =Weightings!B39 -> Her-2 | C60: =Weightings!O39 -> 2.5 | D60: =Weightings!S39 -> 0
B61: =Weightings!B40 -> Sta-1 | C61: =Weightings!O40 -> 1.25 | D61: =Weightings!S40 -> 1.396648045
B62: =Weightings!B41 -> Sta-2 | C62: =Weightings!O41 -> 1.25 | D62: =Weightings!S41 -> 1.396648045
B63: =Weightings!B42 -> Sta-3 | C63: =Weightings!O42 -> 1.25 | D63: =Weightings!S42 -> 1.396648045
B64: =Weightings!B43 -> Sta-4 | C64: =Weightings!O43 -> 1.25 | D64: =Weightings!S43 -> 1.396648045
B65: =Weightings!B44 -> Urb-1 | C65: =Weightings!O44 -> 4 | D65: =Weightings!S44 -> 4.469273743
B66: =Weightings!B45 -> Urb-2 | C66: =Weightings!O45 -> 1 | D66: =Weightings!S45 -> 0
B67: =Weightings!B46 -> Inn-1 | C67: =Weightings!O46 -> 10 | D67: =Weightings!S46 -> 10

Sheet Scorecard Charts (hidden)
C3: Progress with Working Score
B4: Category | C4: Target Score | D4: Working Score | E4: Difference
B5: Man | C5: =INDEX(category_rollups_table_short,MATCH(B5,category_rollups_category_key,0),5) -> 18 | D5: =INDEX(category_rollups_table_short,MATCH(B5,category_rollups_category_key,0),7) -> 0 | E5: =D5-C5 -> -18
B6: Pro | C6: 12 | D6: 0 | E6: =D6-C6 -> -12
B7: Cli | C7: 6 | D7: 0 | E7: =D7-C7 -> -6
B8: Ene | C8: 6 | D8: 0 | E8: -6
B9: Wat | C9: 6 | D9: 0 | E9: -6
B10: Mat | C10: 6 | D10: 0 | E10: -6
B11: Dis | C11: 13 | D11: 0 | E11: -13
B12: Lan | C12: 11 | D12: 0 | E12: -11
B13: Was | C13: 8 | D13: 0 | E13: -8
B14: Eco | C14: 6 | D14: 0 | E14: -6
B15: Hea | C15: 5 | D15: 0 | E15: -5
B16: Her | C16: 6 | D16: 0 | E16: -6
B17: Sta | C17: 10 | D17: 0 | E17: -10
B18: Urb | C18: 5 | D18: 0 | E18: -5
B19: Inn | C19: 10 | D19: 0 | E19: -10

Sheet Cost-Benefit (hidden)
B3: Rating Management | I3: Costs | Q3: Savings/Benefits
B4: Item | I4: Notes/comment | O4: Amount | Q4: Notes/comment | W4: Amount
B5: ISCA rating fees
B6: Registration
B7: Support
B8: Verification
B9: Subtotal | O9: =SUM(O6:P8) -> 0 | W9: =SUM(W6:X8) -> 0
B11: Assessment costs | M11: Hours | N11: Rate | U11: Hours | V11: Rate
B12: Assessor's time | O12: =M12*N12 -> 0 | W12: =U12*V12 -> 0
B13: Others' time | O13: =M13*N13 -> 0 | W13: =U13*V13 -> 0
O14: 0 | W14: 0
O15: 0 | W15: 0
O16: 0 | W16: 0
B17: Other costs | O17: 0 | W17: 0
B18: Subtotal | O18: =SUM(O12:P17) -> 0 | W18: =SUM(W12:X17) -> 0
B20: Credit initiatives | I20: Costs | Q20: Savings/Benefits
B21: (Date Entered in Credit Summaries) | I21: Notes/comment | O21: Amount | Q21: Notes/comment | W21: Amount
B22: Man | C22: Management Systems | I22: 2 | O22: =INDEX(category_rollups_table_short,MATCH(B22,category_rollups_category_key,0),25) -> 0 | W22: =INDEX(category_rollups_table_short,MATCH(B22,category_rollups_category_key,0),25) -> 0
B23: Pro | C23: Procurement and purchasing | I23: 2 | O23: 0 | W23: 0
B24: Cli | C24: Climate change adaptation | I24: 2 | O24: 0 | W24: 0
B25: Ene | C25: Energy and carbon | I25: 2 | O25: 0 | W25: 0
B26: Wat | C26: Water | I26: 2 | O26: 0 | W26: 0
B27: Mat | C27: Materials | I27: 2 | O27: 0 | W27: 0
B28: Dis | C28: Discharges | I28: 2 | O28: 0 | W28: 0
B29: Lan | C29: Land | I29: 2 | O29: 0 | W29: 0
B30: Was | C30: Waste | I30: 2 | O30: 0 | W30: 0
B31: Eco | C31: Ecology | I31: 2 | O31: 0 | W31: 0
B32: Hea | C32: Community health, well-being and safety | I32: 2 | O32: 0 | W32: 0
B33: Her | C33: Heritage | I33: 2 | O33: 0 | W33: 0
B34: Sta | C34: Stakeholder participation | I34: 2 | O34: 0 | W34: 0
B35: Urb | C35: Urban and landscape design | I35: 2 | O35: 0 | W35: 0
B36: Inn | C36: Innovation | I36: 2 | O36: 0 | W36: 0
C37: Subtotal | O37: =SUM(O22:P36) -> 0 | W37: =SUM(W22:X36) -> 0
B39: Overall Asset Matters | I39: Costs | Q39: Savings/Benefits
I40: Notes/comment | O40: Amount | Q40: Notes/comment | W40: Amount
B41: Community | O41: 0 | W41: 0
B42: Social licence / reputation | O42: 0 | W42: 0
B43: Tendering | O43: 0 | W43: 0
B44: Risk management | O44: 0 | W44: 0
B45: Marketing/Communications | O45: 0 | W45: 0
B46: Corporate Branding & Profile | O46: 0 | W46: 0
B47: Capacity Building | O47: 0 | W47: 0
B48: Subtotal | O48: =SUM(O41:P47) -> 0 | W48: =SUM(W41:X47) -> 0
C50: TOTAL | O50: =O37+O18+O9+O48 -> 0 | W50: =W37+W18+W9+W48 -> 0
B52: Cost-Benefit Analysis | I52: Net Benefit/Cost | Q52: BCR
B53: What is the overall cost-benefit of applying IS? | I53: Benefit - Cost = | O53: =W50-O50 -> 0 | Q53: Benefit Cost Ratio (benefit/cost) = | W53: =W50/O50 -> 
B54: Please provide details of any cost-benefit case studies for specific initiatives:
B55: Please provide a short summary (200-500 words) of the cost-benefit of an IS rating. Please note that this may be used for communication and publicity purposes.

Sheet Spider Chart
D4: Choose first series to plot: | E4: Working Score %
D6: Compare with series: | E6: Working Score %

Sheet Summary
H1: i Click on blue pencils to edit data presented here.
B2: Hide | C2: Credit | D2: Name of credit | E2: Materiality Score | F2: Verified R2 Level (Design) | G2: Verified R2 Score (Design) | H2: Score Possible | I2: No. Levels | J2: Target Level | K2: Target Score | L2: Working Level | M2: Working Score | N2: Assessed R1 Level | O2: Assessed R1 Score | P2: Verified R1 Level | Q2: Verified R1 Score | R2: Assessed R2 Level | S2: Assessed R2 Score | T2: Verified R2 Level | U2: Final Score
A3: Ʃ | D3: Total | G3: =SUM(G5:G48) -> 0 | H3: =SUM(H5:H48) -> 110 | K3: =SUM(K5:K48) -> 0 | M3: =SUM(M5:M48) -> 0 | O3: =SUM(O5:O48) -> 0 | Q3: =SUM(Q5:Q48) -> 0 | S3: =SUM(S5:S48) -> 0 | U3: =SUM(U5:U48) -> 0 | V3: Ʃ
A4: & | D4: Rating | G4: =IF(G3>thres_75,"Leading",IF(G3>thres_50,"Excellent",IF(G3>thresh_25,"Commended","Ineligible"))) -> Ineligible | H4: =IF(H3>thres_75,"Leading",IF(H3>thres_50,"Excellent",IF(H3>thresh_25,"Commended","Ineligible"))) -> Leading | K4: =IF(K3>thres_75,"Leading",IF(K3>thres_50,"Excellent",IF(K3>thresh_25,"Commended","Ineligible"))) -> Ineligible | M4: =IF(M3>thres_75,"Leading",IF(M3>thres_50,"Excellent",IF(M3>thresh_25,"Commended","Ineligible"))) -> Ineligible | O4: =IF(O3>thres_75,"Leading",IF(O3>thres_50,"Excellent",IF(O3>thresh_25,"Commended","Ineligible"))) -> Ineligible | Q4: =IF(Q3>thres_75,"Leading",IF(Q3>thres_50,"Excellent",IF(Q3>thresh_25,"Commended","Ineligible"))) -> Ineligible | S4: =IF(S3>thres_75,"Leading",IF(S3>thres_50,"Excellent",IF(S3>thresh_25,"Commended","Ineligible"))) -> Ineligible | U4: =IF(U3>thres_75,"Leading",IF(U3>thres_50,"Excellent",IF(U3>thresh_25,"Commended","Ineligible"))) -> Ineligible | X4: Icon | Y4: Status
A5: Man | B5: =LEFT(C5,3) -> Man | C5: Man-1 | D5: Sustainability leadership and commitment | E5: =IF(H5=0,"Scoped Out",INDEX(weightings_main_tbl,MATCH(C5,weightings_credit_lst,0),13)) -> 2 | F5: ='Man-1'!Q9 -> 0 | G5: =F5/I5 * H5 -> 0 | H5: =ROUND(INDEX(weightings_main_tbl,MATCH(C5,weightings_credit_lst,0),18),2) -> 1.12 | I5: 3 | J5: =man1tl -> 0 | K5: =H5/I5*J5 -> 0 | L5: =man1wl -> 0 | M5: =L5/I5*H5 -> 0 | N5: =man1lar1 -> 0 | O5: =N5/I5*H5 -> 0 | P5: =man1vr1lvl -> 0 | Q5: =P5/I5*H5 -> 0 | R5: =man1lar2 -> 0 | S5: =R5/I5*H5 -> 0 | T5: =man1vr2lvl -> 0 | U5: =T5/I5*H5 -> 0 | V5: =IF(E5="Scoped Out",-2,IF(AND(M5=0,K5=0), 0.5, IF(AND(U5<S5,S5<>0),0,IF(AND(Q5<O5,O5<>0),0.5,1)))) -> 0.5 | X5: 1 | Y5: Complete
B6: =LEFT(C6,3) -> Man | C6: Man-2 | D6: Risk and opportunity management | E6: 2 | F6: ='Man-2'!Q9 -> 0 | G6: =F6/I6 * H6 -> 0 | H6: 1.12 | I6: 2 | J6: =man2tl -> 0 | K6: =H6/I6*J6 -> 0 | L6: =man2wl -> 0 | M6: =L6/I6*H6 -> 0 | N6: =man2lar1 -> 0 | O6: 0 | P6: =man2vr1lvl -> 0 | Q6: 0 | R6: =man2lar2 -> 0 | S6: 0 | T6: =man2vr2lvl -> 0 | U6: 0 | V6: =IF(E6="Scoped Out",-2,IF(AND(M6=0,K6=0), 0.5, IF(AND(U6<S6,S6<>0),0,IF(AND(Q6<O6,O6<>0),0.5,1)))) -> 0.5 | X6: 0.5 | Y6: Incomplete
B7: Man | C7: Man-3 | D7: Organisational structure, roles and responsibilities | E7: 2 | F7: ='Man-3'!Q9 -> 0 | G7: 0 | H7: 1.12 | I7: 2 | J7: =man3tl -> 0 | K7: 0 | L7: =man3wl -> 0 | M7: 0 | N7: =man3lar1 -> 0 | O7: 0 | P7: =man3vr1lvl -> 0 | Q7: 0 | R7: =man3lar2 -> 0 | S7: 0 | T7: =man3vr2lvl -> 0 | U7: 0 | V7: 0.5 | X7: 0 | Y7: Not Achieved
B8: Man | C8: Man-4 | D8: Inspection and auditing | E8: 2 | F8: ='Man-4'!Q9 -> 0 | G8: 0 | H8: 1.12 | I8: 2 | J8: =man4tl -> 0 | K8: 0 | L8: =man4wl -> 0 | M8: =L8/I8*H8 -> 0 | N8: =man4lar1 -> 0 | O8: 0 | P8: =man4vr1lvl -> 0 | Q8: 0 | R8: =man4lar2 -> 0 | S8: 0 | T8: =man4vr2lvl -> 0 | U8: 0 | V8: 0.5 | X8: -2 | Y8: Scoped Out
B9: Man | C9: Man-5 | D9: Reporting and review | E9: 2 | F9: ='Man-5'!Q9 -> 0 | G9: 0 | H9: 1.12 | I9: 3 | J9: =man5tl -> 0 | K9: 0 | L9: =man5wl -> 0 | M9: 0 | N9: =man5lar1 -> 0 | O9: 0 | P9: =man5vr1lvl -> 0 | Q9: 0 | R9: =man5lar2 -> 0 | S9: 0 | T9: =man5vr2lvl -> 0 | U9: 0 | V9: 0.5
B10: Man | C10: Man-6 | D10: Knowledge sharing | E10: 2 | F10: ='Man-6'!Q9 -> 0 | G10: 0 | H10: 2.51 | I10: 3 | J10: =man6tl -> 0 | K10: 0 | L10: =man6wl -> 0 | M10: 0 | N10: =man6lar1 -> 0 | O10: 0 | P10: =man6vr1lvl -> 0 | Q10: 0 | R10: =man6lar2 -> 0 | S10: 0 | T10: =man6vr2lvl -> 0 | U10: 0 | V10: 0.5
B11: Man | C11: Man-7 | D11: Decision-making | E11: 2 | F11: ='Man-7'!Q9 -> 0 | G11: 0 | H11: 3.63 | I11: 3 | J11: =man7tl -> 0 | K11: 0 | L11: =man7wl -> 0 | M11: 0 | N11: =man7lar1 -> 0 | O11: 0 | P11: =man7vr1lvl -> 0 | Q11: 0 | R11: =man7lar2 -> 0 | S11: 0 | T11: =man7vr2lvl -> 0 | U11: 0 | V11: 0.5
A12: Pro | B12: Pro | C12: Pro-1 | D12: Commitment to sustainable procurement | E12: 2 | F12: ='Pro-1'!Q9 -> 0 | G12: 0 | H12: 1.4 | I12: 3 | J12: =pro1tl -> 0 | K12: 0 | L12: =pro1wl -> 0 | M12: 0 | N12: =pro1lar1 -> 0 | O12: 0 | P12: =pro1vr1lvl -> 0 | Q12: 0 | R12: =pro1lar2 -> 0 | S12: 0 | T12: =pro1vr2lvl -> 0 | U12: 0 | V12: 0.5
B13: Pro | C13: Pro-2 | D13: Identification of suppliers | E13: 2 | F13: ='Pro-2'!Q9 -> 0 | G13: 0 | H13: 1.4 | I13: 3 | J13: =pro2tl -> 0 | K13: 0 | L13: =pro1wl -> 0 | M13: 0 | N13: =pro2lar1 -> 0 | O13: 0 | P13: =pro2vr1lvl -> 0 | Q13: 0 | R13: =pro2lar2 -> 0 | S13: 0 | T13: =pro2vr2lvl -> 0 | U13: 0 | V13: 0.5
B14: Pro | C14: Pro-3 | D14: Supplier evaluation and contract award | E14: Scoped Out | F14: ='Pro-3'!Q9 -> 0 | G14: 0 | H14: 0 | I14: 3 | J14: =pro3tl -> 0 | K14: 0 | L14: =pro3wl -> 0 | M14: 0 | N14: =pro3lar1 -> 0 | O14: 0 | P14: =pro3vr1lvl -> 0 | Q14: 0 | R14: =pro3lar2 -> 0 | S14: 0 | T14: =pro3vr2lvl -> 0 | U14: 0 | V14: -2
B15: Pro | C15: Pro-4 | D15: Managing supplier performance | E15: Scoped Out | F15: ='Pro-4'!Q9 -> 0 | G15: 0 | H15: 0 | I15: 3 | J15: =pro4tl -> 0 | K15: 0 | L15: =pro4wl -> 0 | M15: 0 | N15: =pro4lar1 -> 0 | O15: 0 | P15: =pro4vr1lvl -> 0 | Q15: 0 | R15: =pro4lar2 -> 0 | S15: 0 | T15: =pro4vr2lvl -> 0 | U15: 0 | V15: -2
A16: Cli | B16: Cli | C16: Cli-1 | D16: Climate change risk assessment | E16: 2 | F16: ='Cli-1'!Q9 -> 0 | G16: 0 | H16: 2.79 | I16: 3 | J16: =cli1tl -> 0 | K16: 0 | L16: =cli1wl -> 0 | M16: 0 | N16: =cli1lar1 -> 0 | O16: 0 | P16: =cli1vr1lvl -> 0 | Q16: 0 | R16: =cli1lar2 -> 0 | S16: 0 | T16: =cli1vr2lvl -> 0 | U16: 0 | V16: 0.5
B17: Cli | C17: Cli-2 | D17: Adaptation options | E17: 2 | F17: ='Cli-2'!Q9 -> 0 | G17: 0 | H17: 2.79 | I17: 3 | J17: =cli2tl -> 0 | K17: 0 | L17: =cli2wl -> 0 | M17: 0 | N17: =cli2lar1 -> 0 | O17: 0 | P17: =cli2vr1lvl -> 0 | Q17: 0 | R17: =cli2lar2 -> 0 | S17: 0 | T17: =cli2vr2lvl -> 0 | U17: 0 | V17: 0.5
A18: Ene | B18: Ene | C18: Ene-1 | D18: Energy and carbon monitoring and reduction | E18: 2 | F18: ='Ene-1'!Q9 -> 0 | G18: 0 | H18: 10.06 | I18: 3 | J18: =ene1tl -> 0 | K18: 0 | L18: =ene1wl -> 0 | M18: 0 | N18: =ene1lar1 -> 0 | O18: 0 | P18: =ene1vr1lvl -> 0 | Q18: 0 | R18: =ene1lar2 -> 0 | S18: 0 | T18: =ene1vr2lvl -> 0 | U18: 0 | V18: 0.5
B19: Ene | C19: Ene-2 | D19: Renewable energy | E19: 2 | F19: ='Ene-2'!Q9 -> 0 | G19: 0 | H19: 1.68 | I19: 3 | J19: =ene2tl -> 0 | K19: 0 | L19: =ene2wl -> 0 | M19: 0 | N19: =ene2lar1 -> 0 | O19: 0 | P19: =ene2vr1lvl -> 0 | Q19: 0 | R19: =ene2lar2 -> 0 | S19: 0 | T19: =ene2vr2lvl -> 0 | U19: 0 | V19: 0.5
A20: Wat | B20: Wat | C20: Wat-1 | D20: Water use monitoring and reduction | E20: 2 | F20: ='Wat-1'!Q9 -> 0 | G20: 0 | H20: 5.03 | I20: 3 | J20: =wat1tl -> 0 | K20: 0 | L20: =wat1wl -> 0 | M20: 0 | N20: =wat1lar1 -> 0 | O20: 0 | P20: =wat1vr1lvl -> 0 | Q20: 0 | R20: =wat1lar2 -> 0 | S20: 0 | T20: =wat1vr2lvl -> 0 | U20: 0 | V20: 0.5
B21: Wat | C21: Wat-2 | D21: Replace potable water | E21: 2 | F21: ='Wat-2'!Q9 -> 0 | G21: 0 | H21: 2.79 | I21: 3 | J21: =wat2tl -> 0 | K21: 0 | L21: =wat2wl -> 0 | M21: 0 | N21: =wat2lar1 -> 0 | O21: 0 | P21: =wat2vr1lvl -> 0 | Q21: 0 | R21: =wat2lar2 -> 0 | S21: 0 | T21: =wat2vr2lvl -> 0 | U21: 0 | V21: 0.5
A22: Mat | B22: Mat | C22: Mat-1 | D22: Materials footprint measurement and reduction | E22: 2 | F22: ='Mat-1'!Q9 -> 0 | G22: 0 | H22: 6.7 | I22: 3 | J22: =mat1tl -> 0 | K22: 0 | L22: =mat1wl -> 0 | M22: 0 | N22: =mat1lar1 -> 0 | O22: 0 | P22: =mat1vr1lvl -> 0 | Q22: 0 | R22: =mat1lar2 -> 0 | S22: 0 | T22: =mat1vr2lvl -> 0 | U22: 0 | V22: 0.5
B23: Mat | C23: Mat-2 | D23: Environmentally labelled products and supply chains | E23: Scoped Out | F23: ='Mat-2'!Q9 -> 0 | G23: 0 | H23: 0 | I23: 3 | J23: =mat2tl -> 0 | K23: =H23/I23*J23 -> 0 | L23: =mat1wl -> 0 | M23: =L23/I23*H23 -> 0 | N23: =mat1lar1 -> 0 | O23: 0 | P23: =mat1vr1lvl -> 0 | Q23: 0 | R23: =mat1lar2 -> 0 | S23: 0 | T23: =mat1vr2lvl -> 0 | U23: 0 | V23: -2
A24: Dis | B24: Dis | C24: Dis-1 | D24: Receiving water quality | E24: 2 | F24: ='Dis-1'!Q9 -> 0 | G24: 0 | H24: 2.65 | I24: 3 | J24: =dis1tl -> 0 | K24: 0 | L24: =dis1wl -> 0 | M24: 0 | N24: =dis1lar1 -> 0 | O24: 0 | P24: =dis1vr1lvl -> 0 | Q24: 0 | R24: =dis1lar2 -> 0 | S24: 0 | T24: =dis1vr2lvl -> 0 | U24: 0 | V24: 0.5
B25: Dis | C25: Dis-2 | D25: Noise | E25: 2 | F25: ='Dis-2'!Q9 -> 0 | G25: 0 | H25: 2.65 | I25: 3 | J25: =dis2tl -> 0 | K25: 0 | L25: =dis2wl -> 0 | M25: 0 | N25: =dis2lar1 -> 0 | O25: 0 | P25: =dis2vr1lvl -> 0 | Q25: 0 | R25: =dis2lar2 -> 0 | S25: 0 | T25: =dis2vr2lvl -> 0 | U25: 0 | V25: 0.5
B26: Dis | C26: Dis-3 | D26: Vibration | E26: 2 | F26: ='Dis-3'!Q9 -> 0 | G26: 0 | H26: 2.65 | I26: 3 | J26: =dis3tl -> 0 | K26: 0 | L26: =dis3wl -> 0 | M26: 0 | N26: =dis3lar1 -> 0 | O26: 0 | P26: =dis3vr1lvl -> 0 | Q26: 0 | R26: =dis3lar2 -> 0 | S26: 0 | T26: =dis3vr2lvl -> 0 | U26: 0 | V26: 0.5
B27: Dis | C27: Dis-4 | D27: Air quality | E27: 2 | F27: ='Dis-4'!Q9 -> 0 | G27: 0 | H27: 2.65 | I27: 3 | J27: =dis4tl -> 0 | K27: 0 | L27: =dis4wl -> 0 | M27: 0 | N27: =dis4lar1 -> 0 | O27: 0 | P27: =dis4vr1lvl -> 0 | Q27: 0 | R27: =dis4lar2 -> 0 | S27: 0 | T27: =dis4vr2lvl -> 0 | U27: 0 | V27: 0.5
B28: Dis | C28: Dis-5 | D28: Light pollution | E28: 2 | F28: ='Dis-5'!Q9 -> 0 | G28: 0 | H28: 1.12 | I28: 1 | J28: =dis5tl -> 0 | K28: 0 | L28: =dis5wl -> 0 | M28: 0 | N28: =dis5lar1 -> 0 | O28: 0 | P28: =dis5vr1lvl -> 0 | Q28: 0 | R28: =dis5lar2 -> 0 | S28: 0 | T28: =dis5vr2lvl -> 0 | U28: 0 | V28: 0.5
A29: Lan | B29: Lan | C29: Lan-1 | D29: Previous land use | E29: 2 | F29: ='Lan-1'!Q9 -> 0 | G29: 0 | H29: 2.79 | I29: 3 | J29: =lan1tl -> 0 | K29: 0 | L29: =lan1wl -> 0 | M29: 0 | N29: =lan1lar1 -> 0 | O29: 0 | P29: =lan1vr1lvl -> 0 | Q29: 0 | R29: =lan1lar2 -> 0 | S29: 0 | T29: =lan1vr2lvl -> 0 | U29: 0 | V29: 0.5
B30: Lan | C30: Lan-2 | D30: Conservation of on site resources | E30: 2 | F30: ='Lan-2'!Q9 -> 0 | G30: 0 | H30: 1.12 | I30: 3 | J30: =lan2tl -> 0 | K30: 0 | L30: =lan2wl -> 0 | M30: 0 | N30: =lan2lar1 -> 0 | O30: 0 | P30: =lan2vr1lvl -> 0 | Q30: 0 | R30: =lan2lar2 -> 0 | S30: 0 | T30: =lan2vr2lvl -> 0 | U30: 0 | V30: 0.5
B31: Lan | C31: Lan-3 | D31: Contamination and remediation | E31: 2 | F31: ='Lan-3'!Q9 -> 0 | G31: 0 | H31: 2.23 | I31: 3 | J31: =lan3tl -> 0 | K31: 0 | L31: =lan3wl -> 0 | M31: 0 | N31: =lan3lar1 -> 0 | O31: 0 | P31: =lan3vr1lvl -> 0 | Q31: 0 | R31: =lan3lar2 -> 0 | S31: 0 | T31: =lan3vr2lvl -> 0 | U31: 0 | V31: 0.5
B32: Lan | C32: Lan-4 | D32: Flooding design | E32: 2 | F32: ='Lan-4'!Q9 -> 0 | G32: 0 | H32: 1.68 | I32: 2 | J32: =lan4tl -> 0 | K32: 0 | L32: =lan4wl -> 0 | M32: 0 | N32: =lan4lar1 -> 0 | O32: 0 | P32: =lan4vr1lvl -> 0 | Q32: 0 | R32: =lan4lar2 -> 0 | S32: 0 | T32: =lan4vr2lvl -> 0 | U32: 0 | V32: 0.5
A33: Was | B33: Was | C33: Was-1 | D33: Waste management | E33: 2 | F33: ='Was-1'!Q9 -> 0 | G33: 0 | H33: 2.23 | I33: 2 | J33: =was1tl -> 0 | K33: 0 | L33: =was1wl -> 0 | M33: 0 | N33: =was1lar1 -> 0 | O33: 0 | P33: =was1vr1lvl -> 0 | Q33: 0 | R33: =was1lar2 -> 0 | S33: 0 | T33: =was1vr2lvl -> 0 | U33: 0 | V33: 0.5
B34: Was | C34: Was-2 | D34: Diversion from landfill | E34: Scoped Out | F34: ='Was-2'!Q9 -> 0 | G34: 0 | H34: 0 | I34: 3 | J34: =was2tl -> 0 | K34: 0 | L34: =was2wl -> 0 | M34: 0 | N34: =was2lar1 -> 0 | O34: 0 | P34: =was2vr1lvl -> 0 | Q34: 0 | R34: =was2lar2 -> 0 | S34: 0 | T34: =was2vr2lvl -> 0 | U34: 0 | V34: -2
B35: Was | C35: Was-3 | D35: Deconstruction/ Disassembly/ Adaptability | E35: 2 | F35: ='Was-3'!Q9 -> 0 | G35: 0 | H35: 1.68 | I35: 3 | J35: =was3tl -> 0 | K35: 0 | L35: =was3wl -> 0 | M35: 0 | N35: =was3lar1 -> 0 | O35: 0 | P35: =was3vr1lvl -> 0 | Q35: 0 | R35: =was3lar2 -> 0 | S35: 0 | T35: =was3vr2lvl -> 0 | U35: 0 | V35: 0.5
A36: Eco | B36: Eco | C36: Eco-1 | D36: Ecological value | E36: 2 | F36: ='Eco-1'!Q9 -> 0 | G36: 0 | H36: 8.38 | I36: 3 | J36: =eco1tl -> 0 | K36: 0 | L36: =eco1wl -> 0 | M36: 0 | N36: =eco1lar1 -> 0 | O36: 0 | P36: =eco1vr1lvl -> 0 | Q36: 0 | R36: =eco1lar2 -> 0 | S36: 0 | T36: =eco1vr2lvl -> 0 | U36: 0 | V36: 0.5
B37: Eco | C37: Eco-2 | D37: Habitat connectivity | E37: 2 | F37: ='Eco-2'!Q9 -> 0 | G37: 0 | H37: 3.35 | I37: 3 | J37: =eco2tl -> 0 | K37: 0 | L37: =eco2wl -> 0 | M37: 0 | N37: =eco2lar1 -> 0 | O37: 0 | P37: =eco2vr1lvl -> 0 | Q37: 0 | R37: =eco2lar2 -> 0 | S37: 0 | T37: =eco2vr2lvl -> 0 | U37: 0 | V37: 0.5
A38: Hea | B38: Hea | C38: Hea-1 | D38: Community health and well-being | E38: 2 | F38: ='Hea-1'!Q9 -> 0 | G38: 0 | H38: 2.79 | I38: 3 | J38: =hea1tl -> 0 | K38: 0 | L38: =hea1wl -> 0 | M38: 0 | N38: =hea1lar1 -> 0 | O38: 0 | P38: =hea1vr1lvl -> 0 | Q38: 0 | R38: =hea1lar2 -> 0 | S38: 0 | T38: =hea1vr2lvl -> 0 | U38: 0 | V38: 0.5
B39: Hea | C39: Hea-2 | D39: Crime prevention | E39: 2 | F39: ='Hea-2'!Q9 -> 0 | G39: 0 | H39: 2.79 | I39: 2 | J39: =hea2tl -> 0 | K39: 0 | L39: =hea2wl -> 0 | M39: 0 | N39: =hea2lar1 -> 0 | O39: 0 | P39: =hea2vr1lvl -> 0 | Q39: 0 | R39: =hea2lar2 -> 0 | S39: 0 | T39: =hea2vr2lvl -> 0 | U39: 0 | V39: 0.5
A40: Her | B40: Her | C40: Her-1 | D40: Heritage assessment and management | E40: 2 | F40: ='Her-1'!Q9 -> 0 | G40: 0 | H40: 2.79 | I40: 3 | J40: =her1tl -> 0 | K40: 0 | L40: =her1wl -> 0 | M40: 0 | N40: =her1lar1 -> 0 | O40: 0 | P40: =her1vr1lvl -> 0 | Q40: 0 | R40: =her1lar2 -> 0 | S40: 0 | T40: =her1vr2lvl -> 0 | U40: 0 | V40: 0.5
B41: Her | C41: Her-2 | D41: Monitoring and management of heritage | E41: Scoped Out | F41: ='Her-2'!Q9 -> 0 | G41: 0 | H41: 0 | I41: 3 | J41: =her2tl -> 0 | K41: 0 | L41: =her2wl -> 0 | M41: 0 | N41: =her2lar1 -> 0 | O41: 0 | P41: =her2vr1lvl -> 0 | Q41: 0 | R41: =her2lar2 -> 0 | S41: 0 | T41: =her2vr2lvl -> 0 | U41: 0 | V41: -2
A42: Sta | B42: Sta | C42: Sta-1 | D42: Stakeholder engagement strategy | E42: 2 | F42: ='Sta-1'!Q9 -> 0 | G42: 0 | H42: 1.4 | I42: 3 | J42: =sta1tl -> 0 | K42: 0 | L42: =sta1wl -> 0 | M42: 0 | N42: =sta1lar1 -> 0 | O42: 0 | P42: =sta1vr1lvl -> 0 | Q42: 0 | R42: =sta1lar2 -> 0 | S42: 0 | T42: =sta1vr2lvl -> 0 | U42: 0 | V42: 0.5
B43: Sta | C43: Sta-2 | D43: Level of engagement | E43: 2 | F43: ='Sta-2'!Q9 -> 0 | G43: 0 | H43: 1.4 | I43: 3 | J43: =sta2tl -> 0 | K43: 0 | L43: =sta2wl -> 0 | M43: 0 | N43: =sta2lar1 -> 0 | O43: 0 | P43: =sta2vr1lvl -> 0 | Q43: 0 | R43: =sta2lar2 -> 0 | S43: 0 | T43: =sta2vr2lvl -> 0 | U43: 0 | V43: 0.5
B44: Sta | C44: Sta-3 | D44: Effective communication | E44: 2 | F44: ='Sta-3'!Q9 -> 0 | G44: 0 | H44: 1.4 | I44: 2 | J44: =sta3tl -> 0 | K44: 0 | L44: =sta3wl -> 0 | M44: 0 | N44: =sta3lar1 -> 0 | O44: 0 | P44: =sta3vr1lvl -> 0 | Q44: 0 | R44: =sta3lar2 -> 0 | S44: 0 | T44: =sta3vr2lvl -> 0 | U44: 0 | V44: 0.5
B45: Sta | C45: Sta-4 | D45: Addressing community concerns | E45: 2 | F45: ='Sta-4'!Q9 -> 0 | G45: 0 | H45: 1.4 | I45: 2 | J45: =sta4tl -> 0 | K45: 0 | L45: =sta4wl -> 0 | M45: 0 | N45: =sta4lar1 -> 0 | O45: 0 | P45: =sta4vr1lvl -> 0 | Q45: 0 | R45: =sta4lar2 -> 0 | S45: 0 | T45: =sta4vr2lvl -> 0 | U45: 0 | V45: 0.5
A46: Urb | B46: Urb | C46: Urb-1 | D46: Urban design | E46: 2 | F46: ='Urb-1'!Q9 -> 0 | G46: 0 | H46: 4.47 | I46: 3 | J46: =urb1tl -> 0 | K46: 0 | L46: =urb1wl -> 0 | M46: 0 | N46: =urb1lar1 -> 0 | O46: 0 | P46: =urb1vr1lvl -> 0 | Q46: 0 | R46: =urb1lar2 -> 0 | S46: 0 | T46: =urb1vr2lvl -> 0 | U46: 0 | V46: 0.5
B47: Urb | C47: Urb-2 | D47: Implementation | E47: Scoped Out | F47: ='Urb-2'!Q9 -> 0 | G47: 0 | H47: 0 | I47: 2 | J47: =urb2tl -> 0 | K47: 0 | L47: =urb2wl -> 0 | M47: 0 | N47: =urb2lar1 -> 0 | O47: 0 | P47: =urb2vr1lvl -> 0 | Q47: 0 | R47: =urb2lar2 -> 0 | S47: 0 | T47: =urb2vr2lvl -> 0 | U47: 0 | V47: -2
A48: Inn | B48: Inn | C48: Inn-1 | D48: Innovation | E48: 2 | F48: ='Inn-1'!Q9 -> 0 | G48: 0 | H48: 10 | I48: 10 | J48: =inn1tl -> 0 | K48: 0 | L48: =inn1wl -> 0 | M48: 0 | N48: =inn1lar1 -> 0 | O48: 0 | P48: =inn1vr1lvl -> 0 | Q48: 0 | R48: =inn1lar2 -> 0 | S48: 0 | T48: =inn1vr2lvl -> 0 | U48: 0 | V48: 0.5

Sheet Question Database (hidden)
B2: Question Database | G2: Question Database (Max String Length 255)
B3: Credit List | C3: Question 1 | D3: Question 2 | E3: Question 3 | G3: Credit List | H3: Question 1 | I3: Question 2 | J3: Question 3
B4: Man-1 | G4: Man-1 | H4: =LEFT(C4, 255) ->  | I4: =LEFT(D4, 255) -> 
B5: Man-2 | G5: Man-2 | H5: =LEFT(C5, 255) -> 
B6: Man-3 | G6: Man-3
B7: Man-4 | G7: Man-4
B8: Man-5 | G8: Man-5
B9: Man-6 | G9: Man-6
B10: Man-7 | C10: Context for Decision Making Is this a small project (<$20m) with no substantial issues to be decided upon? (Substantial - of considerable importance in relation to the size impact and location of the project and associated decisions) | G10: Man-7 | H10: Context for Decision Making Is this a small project (<$20m) with no substantial issues to be decided upon? (Substantial - of considerable importance in relation to the size impact and location of the project and associated decisions)
B11: Pro-1 | G11: Pro-1
B12: Pro-2 | G12: Pro-2
B13: Pro-3 | G13: Pro-3
B14: Pro-4 | G14: Pro-4
B15: Cli-1 | C15: Asset Life What is the design or remaining asset life? | D15: Climate Change Vulnerability Is the asset located in an area close to the sea, on a flood plain, prone to bushfires, prone to cyclones, or prone to droughts? | G15: Cli-1 | H15: Asset Life What is the design or remaining asset life? | I15: Climate Change Vulnerability Is the asset located in an area close to the sea, on a flood plain, prone to bushfires, prone to cyclones, or prone to droughts?
B16: Cli-2 | G16: Cli-2
B17: Ene-1 | C17: Infrastructure Type What is the infrastructure asset type? (If mixed, use the most energy intensive asset type) | D17: Construction Energy Intensity Does the construction/maintenance involve earthmoving, tunnelling and/or use of diesel plant and equipment (i.e. energy intensive)? | G17: Ene-1 | H17: Infrastructure Type What is the infrastructure asset type? (If mixed, use the most energy intensive asset type) | I17: Construction Energy Intensity Does the construction/maintenance involve earthmoving, tunnelling and/or use of diesel plant and equipment (i.e. energy intensive)?
B18: Ene-2 | G18: Ene-2
B19: Wat-1 | C19: Operation Water Intensity Does the asset operation/maintenance have high water use requirements, such as cooling, washing, public ablution facilities or other processes? | D19: Construction Water Intensity Does the asset/network have high water use requirements for construction/capital works activities such as dust suppression, washing, pavement compaction, concrete or other processes? | E19: Water Scarcity Is the asset located in an area subject to water scarcity (e.g. drought prone, or had previous water restrictions)? | G19: Wat-1 | H19: Operation Water Intensity Does the asset operation/maintenance have high water use requirements, such as cooling, washing, public ablution facilities or other processes? | I19: Construction Water Intensity Does the asset/network have high water use requirements for construction/capital works activities such as dust suppression, washing, pavement compaction, concrete or other processes? | J19: Water Scarcity Is the asset located in an area subject to water scarcity (e.g. drought prone, or had previous water restrictions)?
B20: Wat-2 | G20: Wat-2 | I20: =LEFT(D20, 255) ->  | J20: =LEFT(E20, 255) -> 
B21: Mat-1 | C21: Materials Intensity As a percentage of the capital value of the project, what is the percentage spend on materials in the construction phase? | D21: Materials Intensity As a percentage of the annual operational expenditure of the asset, what is the percentage spend on materials, including maintenance? | G21: Mat-1 | H21: Materials Intensity As a percentage of the capital value of the project, what is the percentage spend on materials in the construction phase? | I21: Materials Intensity As a percentage of the annual operational expenditure of the asset, what is the percentage spend on materials, including maintenance?
B22: Mat-2 | G22: Mat-2
B23: Dis-1 | C23: Water Discharge Does the project/asset discharge to a waterway/waterbody/groundwater? | D23: Pollution Risk Is there a risk of pollution to waterways from discharges (including groundwater)? | E23: Water Sensitivity Are the receiving waters sensitive and/or highly valued? | G23: Dis-1 | H23: Water Discharge Does the project/asset discharge to a waterway/waterbody/groundwater? | I23: Pollution Risk Is there a risk of pollution to waterways from discharges (including groundwater)? | J23: Water Sensitivity Are the receiving waters sensitive and/or highly valued?
B24: Dis-2 | C24: Infrastructure Type What is the infrastructure asset type? (if mixed use choose the most high risk asset type for noise impact during operation) | D24: Noisy Activities Does the construction/maintenance/operation involve noisy activities (piling, grinding, rock hammering, demolition, blasting, tunnelling)? | E24: Receiver Proximity How close are noise receivers? Please note adjacent is where the sensitive receptors are within 10m of the source of the noise or project boundary, whichever is most relevant. | G24: Dis-2 | H24: Infrastructure Type What is the infrastructure asset type? (if mixed use choose the most high risk asset type for noise impact during operation) | I24: Noisy Activities Does the construction/maintenance/operation involve noisy activities (piling, grinding, rock hammering, demolition, blasting, tunnelling)? | J24: Receiver Proximity How close are noise receivers? Please note adjacent is where the sensitive receptors are within 10m of the source of the noise or project boundary, whichever is most relevant.
B25: Dis-3 | C25: Vibratory activities Does the construction/maintenance/ operation involve piling, grinding, rock hammering, vibratory rolling, tunnelling (vibratory activities)? | D25: Receiver Proximity How close are vibration receivers? Please note adjacent is where the sensitive receptors are adjacent to the project boundary or the source of the vibration, whichever is most relevant. | G25: Dis-3 | H25: Vibratory activities Does the construction/maintenance/ operation involve piling, grinding, rock hammering, vibratory rolling, tunnelling (vibratory activities)? | I25: Receiver Proximity How close are vibration receivers? Please note adjacent is where the sensitive receptors are adjacent to the project boundary or the source of the vibration, whichever is most relevant.
B26: Dis-4 | C26: Infrastructure Type What is the infrastructure asset type? (if mixed use choose the most high risk asset type for noise impact during operation) | D26: Construction Air Emissions Does the construction involve significant earthmoving, tunnelling and/or use of diesel plant and equipment (i.e. air emissions)? As per the selection made for the noise credit above. | E26: Population Density Is the asset located in a densely populated area? | G26: Dis-4 | H26: Infrastructure Type What is the infrastructure asset type? (if mixed use choose the most high risk asset type for noise impact during operation) | I26: Construction Air Emissions Does the construction involve significant earthmoving, tunnelling and/or use of diesel plant and equipment (i.e. air emissions)? As per the selection made for the noise credit above. | J26: Population Density Is the asset located in a densely populated area?
B27: Dis-5 | C27: Infrastructure Type What is the infrastructure asset type? (if mixed use choose the most high risk asset type for noise impact during operation) | D27: Nightworks Does the construction/ maintenance/operation involve nightworks which requires lighting? | E27: Light Proximity How close are light receivers? Please note adjacent is where the sensitive receptors are within 10m of the source of light or project boundary, whichever is most relevant. | G27: Dis-5 | H27: Infrastructure Type What is the infrastructure asset type? (if mixed use choose the most high risk asset type for noise impact during operation) | I27: Nightworks Does the construction/ maintenance/operation involve nightworks which requires lighting? | J27: Light Proximity How close are light receivers? Please note adjacent is where the sensitive receptors are within 10m of the source of light or project boundary, whichever is most relevant.
B28: Lan-1 | G28: Lan-1
B29: Lan-2 | C29: Topsoil Is there uncontaminated topsoil and/or subsoil present that will be disturbed by construction / maintenance? | G29: Lan-2 | H29: Topsoil Is there uncontaminated topsoil and/or subsoil present that will be disturbed by construction / maintenance?
B30: Lan-3 | C30: Contamination Risk What is the contamination risk associated with the project/asset? Please note that present and significant should be chosen if the risk of contamination identified in an assessment is high or significant or where a remediation action plan is in place. | G30: Lan-3 | H30: Contamination Risk What is the contamination risk associated with the project/asset? Please note that present and significant should be chosen if the risk of contamination identified in an assessment is high or significant or where a remediation action | W30: =LEN(W52) -> 255
B31: Lan-4 | C31: Flood Risk Is the asset located on or near a flood plain or is stormwater drainage a known issue? | D31: Flood Sensitivity Are there sensitive land uses upstream or downstream of the asset? | G31: Lan-4 | H31: Flood Risk Is the asset located on or near a flood plain or is stormwater drainage a known issue? | I31: Flood Sensitivity Are there sensitive land uses upstream or downstream of the asset?
B32: Was-1 | C32: Materials Intensity As a percentage of the capital value of the project, what is the percentage spend on materials in the construction phase? As per the selection made for materials category above. | D32: Materials Intensity As a percentage of the annual operational expenditure of the asset, what is the percentage spend on materials, including maintenance? | E32: Waste Generation Does the construction/maintenance involve earthmoving, tunnelling, demolition, spoil removal or vegetation clearing (i.e. waste generating activities)? | G32: Was-1 | H32: Materials Intensity As a percentage of the capital value of the project, what is the percentage spend on materials in the construction phase? As per the selection made for materials category above. | I32: Materials Intensity As a percentage of the annual operational expenditure of the asset, what is the percentage spend on materials, including maintenance? | J32: Waste Generation Does the construction/maintenance involve earthmoving, tunnelling, demolition, spoil removal or vegetation clearing (i.e. waste generating activities)?
B33: Was-2 | G33: Was-2
B34: Was-3 | C34: Asset Life What is the design or remaining asset life? As per the selection for climate change category above. | D34: Materials Intensity Percentage of spend on materials (across the infrastructure lifecycle) As per the selection made for materials category above. | E34: Deconstruction Likelihood Is the asset likely to be adapted/upgraded or decommissioned during its life? | G34: Was-3 | H34: Asset Life What is the design or remaining asset life? As per the selection for climate change category above. | I34: Materials Intensity Percentage of spend on materials (across the infrastructure lifecycle) As per the selection made for materials category above. | J34: Deconstruction Likelihood Is the asset likely to be adapted/upgraded or decommissioned during its life?
B35: Eco-1 | C35: Habitat Area Percentage of construction land take that is ecological habitat. | D35: Habitat Proximity Proximity to nearby ecological habitat. Please note adjacent is where the ecological habitat are adjacent to the project/asset boundary. | G35: Eco-1 | H35: Habitat Area Percentage of construction land take that is ecological habitat. | I35: Habitat Proximity Proximity to nearby ecological habitat. Please note adjacent is where the ecological habitat are adjacent to the project/asset boundary.
B36: Eco-2 | G36: Eco-2
B37: Hea-1 | G37: Hea-1
B38: Hea-2 | C38: Public Interaction Is there public interaction around the project construction site? Public Interaction Is there public interaction around the project construction site? | G38: Hea-2 | H38: Public Interaction Is there public interaction around the project construction site? Public Interaction Is there public interaction around the project construction site?
B39: Her-1 | C39: Heritage Presence Are there heritage sites or objects (indigenous or non-indigenous) within or nearby to the asset? These are heritage sites listed on registers. | D39: Heritage Value Are there heritage sites or objects that are highly valued by stakeholders? These may not be isted on registers. | G39: Her-1 | H39: Heritage Presence Are there heritage sites or objects (indigenous or non-indigenous) within or nearby to the asset? These are heritage sites listed on registers. | I39: Heritage Value Are there heritage sites or objects that are highly valued by stakeholders? These may not be isted on registers.
B40: Her-2 | G40: Her-2
B41: Sta-1 | C41: Stakeholder Sensitivity Is there stakeholder interest in the project/asset? | G41: Sta-1 | H41: Stakeholder Sensitivity Is there stakeholder interest in the project/asset?
B42: Sta-2 | G42: Sta-2
B43: Sta-3 | G43: Sta-3
B44: Sta-4 | G44: Sta-4
B45: Urb-1 | C45: Infrastructure Type What is the infrastructure asset type? (if mixed use choose the most high risk asset type for urban design impact during operation) | D45: Population Density Is the asset/network located in a densely populated area? As per the selection made for air quality credit above. | G45: Urb-1 | H45: Infrastructure Type What is the infrastructure asset type? (if mixed use choose the most high risk asset type for urban design impact during operation) | I45: Population Density Is the asset/network located in a densely populated area? As per the selection made for air quality credit above.
B46: Urb-2 | G46: Urb-2
B47: Inn-1 | G47: Inn-1
B51: Man-7 - Q1 | C51: Cli - Q1 | D51: Cli - Q2 | E51: Ene - Q2 | F51: Wat - Q1 | G51: Wat - Q2 | H51: Wat - Q3 | I51: Mat - Q1 | J51: Mat - Q2 | K51: Dis-1 - Q1 | L51: Dis-1 - Q2 | M51: Dis-1 - Q3 | N51: Dis-2 - Q2 | O51: Dis-2 - Q3 | P51: Dis-3 - Q1 | Q51: Dis-3 - Q2 | R51: Dis-4 - Q2 | S51: Dis-4 - Q3 | T51: Dis-5 - Q2 | U51: Dis-5 - Q3 | V51: Lan-2 - Q1 | W51: Lan-3 - Q1 | X51: Lan-4 - Q1 | Y51: Lan-4 - Q2 | Z51: Was-1/2 - Q3 | AA51: Was-3 - Q3 | AB51: Eco - Q1 | AC51: Eco - Q2 | AD51: Hea-2 | AE51: Her - Q1 | AF51: Her - Q2 | AG51: Sta - Q1
B52: =H10 -> Context for Decision Making Is this a small project (<$20m) with no substantial issues to be decided upon? (Substantial - of considerable importance in relation to the size impact and location of the project and associated decisions) | C52: =H15 -> Asset Life What is the design or remaining asset life? | D52: =I15 -> Climate Change Vulnerability Is the asset located in an area close to the sea, on a flood plain, prone to bushfires, prone to cyclones, or prone to droughts? | E52: =I17 -> Construction Energy Intensity Does the construction/maintenance involve earthmoving, tunnelling and/or use of diesel plant and equipment (i.e. energy intensive)? | F52: =H19 -> Operation Water Intensity Does the asset operation/maintenance have high water use requirements, such as cooling, washing, public ablution facilities or other processes? | G52: =I19 -> Construction Water Intensity Does the asset/network have high water use requirements for construction/capital works activities such as dust suppression, washing, pavement compaction, concrete or other processes? | H52: Water Scarcity Is the asset located in an area subject to water scarcity (e.g. drought prone, or had previous water restrictions)? | I52: =H21 -> Materials Intensity As a percentage of the capital value of the project, what is the percentage spend on materials in the construction phase? | J52: =I21 -> Materials Intensity As a percentage of the annual operational expenditure of the asset, what is the percentage spend on materials, including maintenance? | K52: =H23 -> Water Discharge Does the project/asset discharge to a waterway/waterbody/groundwater? | L52: =I23 -> Pollution Risk Is there a risk of pollution to waterways from discharges (including groundwater)? | M52: Water Sensitivity Are the receiving waters sensitive and/or highly valued? | N52: =I24 -> Noisy Activities Does the construction/maintenance/operation involve noisy activities (piling, grinding, rock hammering, demolition, blasting, tunnelling)? | O52: =J24 -> Receiver Proximity How close are noise receivers? Please note adjacent is where the sensitive receptors are within 10m of the source of the noise or project boundary, whichever is most relevant. | P52: =H25 -> Vibratory activities Does the construction/maintenance/ operation involve piling, grinding, rock hammering, vibratory rolling, tunnelling (vibratory activities)? | Q52: =I25 -> Receiver Proximity How close are vibration receivers? Please note adjacent is where the sensitive receptors are adjacent to the project boundary or the source of the vibration, whichever is most relevant. | R52: =I26 -> Construction Air Emissions Does the construction involve significant earthmoving, tunnelling and/or use of diesel plant and equipment (i.e. air emissions)? As per the selection made for the noise credit above. | S52: =J26 -> Population Density Is the asset located in a densely populated area? | T52: =I27 -> Nightworks Does the construction/ maintenance/operation involve nightworks which requires lighting? | U52: =J27 -> Light Proximity How close are light receivers? Please note adjacent is where the sensitive receptors are within 10m of the source of light or project boundary, whichever is most relevant. | V52: =H29 -> Topsoil Is there uncontaminated topsoil and/or subsoil present that will be disturbed by construction / maintenance? | W52: =H30 -> Contamination Risk What is the contamination risk associated with the project/asset? Please note that present and significant should be chosen if the risk of contamination identified in an assessment is high or significant or where a remediation action | X52: =H31 -> Flood Risk Is the asset located on or near a flood plain or is stormwater drainage a known issue? | Y52: =I31 -> Flood Sensitivity Are there sensitive land uses upstream or downstream of the asset? | Z52: =J32 -> Waste Generation Does the construction/maintenance involve earthmoving, tunnelling, demolition, spoil removal or vegetation clearing (i.e. waste generating activities)? | AA52: =J34 -> Deconstruction Likelihood Is the asset likely to be adapted/upgraded or decommissioned during its life? | AB52: =H35 -> Habitat Area Percentage of construction land take that is ecological habitat. | AC52: =I35 -> Habitat Proximity Proximity to nearby ecological habitat. Please note adjacent is where the ecological habitat are adjacent to the project/asset boundary. | AD52: =H38 -> Public Interaction Is there public interaction around the project construction site? Public Interaction Is there public interaction around the project construction site? | AE52: =H39 -> Heritage Presence Are there heritage sites or objects (indigenous or non-indigenous) within or nearby to the asset? These are heritage sites listed on registers. | AF52: =I39 -> Heritage Value Are there heritage sites or objects that are highly valued by stakeholders? These may not be isted on registers. | AG52: =H41 -> Stakeholder Sensitivity Is there stakeholder interest in the project/asset?
B53: ? | C53: ? | D53: ? | E53: ? | F53: ? | G53: ? | H53: ? | I53: ? | J53: ? | K53: ? | L53: ? | M53: ? | N53: ? | O53: ? | P53: ? | Q53: ? | R53: ? | S53: ? | T53: ? | U53: ? | V53: ? | W53: ? | X53: ? | Y53: ? | Z53: ? | AA53: ? | AB53: ? | AC53: ? | AD53: ? | AE53: ? | AF53: ? | AG53: ?
B54: Yes | C54: Short (<10 years) | D54: No | E54: No | F54: No | G54: No | H54: No | I54: Low (<10%) | J54: Low (<10%) | K54: No | L54: No | M54: No | N54: No | O54: Distant (>100m) | P54: No | Q54: Distant (>20m) | R54: No | S54: No (non-urban) | T54: No | U54: Distant (>100m) | V54: No | W54: Nil | X54: No | Y54: No | Z54: No | AA54: No | AB54: Low (<10%) | AC54: Distant (>100m) | AD54: No | AE54: No | AF54: No | AG54: No
B55: No | C55: Medium (10-50 years) | D55: Yes | E55: Yes | F55: Yes | G55: Yes | H55: Yes | I55: Medium (10%-50%) | J55: Medium (10%-30%) | K55: Yes | L55: Yes | M55: Yes | N55: Yes | O55: Close (<100m) | P55: Yes | Q55: Close (<20m) | R55: Yes | S55: Yes (urban) | T55: Yes | U55: Close (<100m) | V55: Yes | W55: Present and low | X55: Yes | Y55: Yes | Z55: Yes | AA55: Yes | AB55: Medium (10%-30%) | AC55: Close (<100m) | AD55: Yes | AE55: Yes (or unknown) | AF55: Yes | AG55: Yes
C56: Long (>50 years) | I56: High (>50%) | J56: High (>30%) | O56: Adjacent | Q56: Adjacent | U56: Adjacent | W56: Present and significant | AB56: High (>30%) | AC56: Adjacent
W57: Unknown

Sheet Tables (hidden)
A1: Cat/Credit | B1: Question 1 | C1: Question 2 | D1: Question 3 | E1: Materiality Score | G1: Notes
A2: Man | B2: ="" ->  | C2: ="" ->  | D2: ="" ->  | E2: 2
A3: Man-7 | B3: Yes | C3: ="" ->  | D3: ="" ->  | E3: 0
A4: Man-7 | B4: No | C4: ="" ->  | D4: ="" ->  | E4: 2
A5: Pro | B5: ="" ->  | C5: ="" ->  | D5: ="" ->  | E5: 2
A6: Cli | B6: Short (<10 years) | C6: No | D6: ="" ->  | E6: 0
A7: Cli | B7: Short (<10 years) | C7: Yes | D7: ="" ->  | E7: 0
A8: Cli | B8: Medium (10-50 years) | C8: No | D8: ="" ->  | E8: 1
A9: Cli | B9: Medium (10-50 years) | C9: Yes | D9: ="" ->  | E9: 2
A10: Cli | B10: Long (>50 years) | C10: No | D10: ="" ->  | E10: 2
A11: Cli | B11: Long (>50 years) | C11: Yes | D11: ="" ->  | E11: 4
A12: Ene | B12: Road (surface) | C12: No | D12: ="" ->  | E12: 1
A13: Ene | B13: Road (surface) | C13: Yes | D13: ="" ->  | E13: 3
A14: Ene | B14: Road (tunnel) | C14: No | D14: ="" ->  | E14: 1
A15: Ene | B15: Road (tunnel) | C15: Yes | D15: ="" ->  | E15: 3
A16: Ene | B16: Rail (electric) | C16: No | D16: ="" ->  | E16: 2
A17: Ene | B17: Rail (electric) | C17: Yes | D17: ="" ->  | E17: 3
A18: Ene | B18: Rail (diesel) | C18: No | D18: ="" ->  | E18: 2
A19: Ene | B19: Rail (diesel) | C19: Yes | D19: ="" ->  | E19: 3
A20: Ene | B20: Port | C20: No | D20: ="" ->  | E20: 2
A21: Ene | B21: Port | C21: Yes | D21: ="" ->  | E21: 3
A22: Ene | B22: Airport | C22: No | D22: ="" ->  | E22: 2
A23: Ene | B23: Airport | C23: Yes | D23: ="" ->  | E23: 3
A24: Ene | B24: Water (wastewater) | C24: No | D24: ="" ->  | E24: 2
A25: Ene | B25: Water (wastewater) | C25: Yes | D25: ="" ->  | E25: 3
A26: Ene | B26: Water (supply) | C26: No | D26: ="" ->  | E26: 1
A27: Ene | B27: Water (supply) | C27: Yes | D27: ="" ->  | E27: 2
A28: Ene | B28: Communication | C28: No | D28: ="" ->  | E28: 1
A29: Ene | B29: Communication | C29: Yes | D29: ="" ->  | E29: 2
A30: Ene | B30: Energy (transmission and distribution) | C30: No | D30: ="" ->  | E30: 2
A31: Ene | B31: Energy (transmission and distribution) | C31: Yes | D31: ="" ->  | E31: 3
A32: Ene | B32: Energy (renewable) | C32: No | D32: ="" ->  | E32: 2
A33: Ene | B33: Energy (renewable) | C33: Yes | D33: ="" ->  | E33: 3
A34: Wat | B34: No | C34: No | D34: No | E34: 0
A35: Wat | B35: No | C35: No | D35: Yes | E35: 1
A36: Wat | B36: No | C36: Yes | D36: No | E36: 1
A37: Wat | B37: No | C37: Yes | D37: Yes | E37: 3
A38: Wat | B38: Yes | C38: No | D38: No | E38: 1
A39: Wat | B39: Yes | C39: No | D39: Yes | E39: 3
A40: Wat | B40: Yes | C40: Yes | D40: No | E40: 2
A41: Wat | B41: Yes | C41: Yes | D41: Yes | E41: 4
A42: Mat | B42: Low (<10%) | C42: Low (<10%) | D42: ="" ->  | E42: 1 | G42: I don't remember why this is highlighted
A43: Mat | B43: Low (<10%) | C43: Medium (10%-30%) | D43: ="" ->  | E43: 2
A44: Mat | B44: Low (<10%) | C44: High (>30%) | D44: ="" ->  | E44: 3
A45: Mat | B45: Medium (10%-50%) | C45: Low (<10%) | D45: ="" ->  | E45: 2
A46: Mat | B46: Medium (10%-50%) | C46: Medium (10%-30%) | D46: ="" ->  | E46: 3
A47: Mat | B47: Medium (10%-50%) | C47: High (>30%) | D47: ="" ->  | E47: 3
A48: Mat | B48: High (>50%) | C48: Low (<10%) | D48: ="" ->  | E48: 3
A49: Mat | B49: High (>50%) | C49: Medium (10%-30%) | D49: ="" ->  | E49: 4
A50: Mat | B50: High (>50%) | C50: High (>30%) | D50: ="" ->  | E50: 4
A51: Dis-1 | B51: No | C51: No | D51: No | E51: 0
A52: Dis-1 | B52: No | C52: No | D52: Yes | E52: 0
A53: Dis-1 | B53: No | C53: Yes | D53: No | E53: 0
A54: Dis-1 | B54: No | C54: Yes | D54: Yes | E54: 0
A55: Dis-1 | B55: Yes | C55: No | D55: No | E55: 1
A56: Dis-1 | B56: Yes | C56: No | D56: Yes | E56: 2
A57: Dis-1 | B57: Yes | C57: Yes | D57: No | E57: 2
A58: Dis-1 | B58: Yes | C58: Yes | D58: Yes | E58: 3
A59: Dis-2 | B59: Road (surface) | C59: No | D59: Distant (>100m) | E59: 1
A60: Dis-2 | B60: Road (surface) | C60: No | D60: Close (<100m) | E60: 2
A61: Dis-2 | B61: Road (surface) | C61: No | D61: Adjacent | E61: 3
A62: Dis-2 | B62: Road (surface) | C62: Yes | D62: Distant (>100m) | E62: 2
A63: Dis-2 | B63: Road (surface) | C63: Yes | D63: Close (<100m) | E63: 3
A64: Dis-2 | B64: Road (surface) | C64: Yes | D64: Adjacent | E64: 4
A65: Dis-2 | B65: Road (tunnel) | C65: No | D65: Distant (>100m) | E65: 0
A66: Dis-2 | B66: Road (tunnel) | C66: No | D66: Close (<100m) | E66: 1
A67: Dis-2 | B67: Road (tunnel) | C67: No | D67: Adjacent | E67: 2
A68: Dis-2 | B68: Road (tunnel) | C68: Yes | D68: Distant (>100m) | E68: 1
A69: Dis-2 | B69: Road (tunnel) | C69: Yes | D69: Close (<100m) | E69: 2
A70: Dis-2 | B70: Road (tunnel) | C70: Yes | D70: Adjacent | E70: 3
A71: Dis-2 | B71: Rail (electric) | C71: No | D71: Distant (>100m) | E71: 1
A72: Dis-2 | B72: Rail (electric) | C72: No | D72: Close (<100m) | E72: 2
A73: Dis-2 | B73: Rail (electric) | C73: No | D73: Adjacent | E73: 3
A74: Dis-2 | B74: Rail (electric) | C74: Yes | D74: Distant (>100m) | E74: 2
A75: Dis-2 | B75: Rail (electric) | C75: Yes | D75: Close (<100m) | E75: 3
A76: Dis-2 | B76: Rail (electric) | C76: Yes | D76: Adjacent | E76: 4
A77: Dis-2 | B77: Rail (diesel) | C77: No | D77: Distant (>100m) | E77: 1
A78: Dis-2 | B78: Rail (diesel) | C78: No | D78: Close (<100m) | E78: 2
A79: Dis-2 | B79: Rail (diesel) | C79: No | D79: Adjacent | E79: 3
A80: Dis-2 | B80: Rail (diesel) | C80: Yes | D80: Distant (>100m) | E80: 2
A81: Dis-2 | B81: Rail (diesel) | C81: Yes | D81: Close (<100m) | E81: 3
A82: Dis-2 | B82: Rail (diesel) | C82: Yes | D82: Adjacent | E82: 4
A83: Dis-2 | B83: Port | C83: No | D83: Distant (>100m) | E83: 1
A84: Dis-2 | B84: Port | C84: No | D84: Close (<100m) | E84: 2
A85: Dis-2 | B85: Port | C85: No | D85: Adjacent | E85: 3
A86: Dis-2 | B86: Port | C86: Yes | D86: Distant (>100m) | E86: 2
A87: Dis-2 | B87: Port | C87: Yes | D87: Close (<100m) | E87: 3
A88: Dis-2 | B88: Port | C88: Yes | D88: Adjacent | E88: 4
A89: Dis-2 | B89: Airport | C89: No | D89: Distant (>100m) | E89: 1
A90: Dis-2 | B90: Airport | C90: No | D90: Close (<100m) | E90: 2
A91: Dis-2 | B91: Airport | C91: No | D91: Adjacent | E91: 3
A92: Dis-2 | B92: Airport | C92: Yes | D92: Distant (>100m) | E92: 2
A93: Dis-2 | B93: Airport | C93: Yes | D93: Close (<100m) | E93: 3
A94: Dis-2 | B94: Airport | C94: Yes | D94: Adjacent | E94: 4
A95: Dis-2 | B95: Water (wastewater) | C95: No | D95: Distant (>100m) | E95: 0
A96: Dis-2 | B96: Water (wastewater) | C96: No | D96: Close (<100m) | E96: 1
A97: Dis-2 | B97: Water (wastewater) | C97: No | D97: Adjacent | E97: 2
A98: Dis-2 | B98: Water (wastewater) | C98: Yes | D98: Distant (>100m) | E98: 1
A99: Dis-2 | B99: Water (wastewater) | C99: Yes | D99: Close (<100m) | E99: 2
A100: Dis-2 | B100: Water (wastewater) | C100: Yes | D100: Adjacent | E100: 3
A101: Dis-2 | B101: Water (supply) | C101: No | D101: Distant (>100m) | E101: 0
A102: Dis-2 | B102: Water (supply) | C102: No | D102: Close (<100m) | E102: 1
A103: Dis-2 | B103: Water (supply) | C103: No | D103: Adjacent | E103: 2
A104: Dis-2 | B104: Water (supply) | C104: Yes | D104: Distant (>100m) | E104: 1
A105: Dis-2 | B105: Water (supply) | C105: Yes | D105: Close (<100m) | E105: 2
A106: Dis-2 | B106: Water (supply) | C106: Yes | D106: Adjacent | E106: 3
A107: Dis-2 | B107: Communication | C107: No | D107: Distant (>100m) | E107: 0
A108: Dis-2 | B108: Communication | C108: No | D108: Close (<100m) | E108: 0
A109: Dis-2 | B109: Communication | C109: No | D109: Adjacent | E109: 1
A110: Dis-2 | B110: Communication | C110: Yes | D110: Distant (>100m) | E110: 0
A111: Dis-2 | B111: Communication | C111: Yes | D111: Close (<100m) | E111: 1
A112: Dis-2 | B112: Communication | C112: Yes | D112: Adjacent | E112: 2
A113: Dis-2 | B113: Energy (transmission and distribution) | C113: No | D113: Distant (>100m) | E113: 0
A114: Dis-2 | B114: Energy (transmission and distribution) | C114: No | D114: Close (<100m) | E114: 1
A115: Dis-2 | B115: Energy (transmission and distribution) | C115: No | D115: Adjacent | E115: 2
A116: Dis-2 | B116: Energy (transmission and distribution) | C116: Yes | D116: Distant (>100m) | E116: 1
A117: Dis-2 | B117: Energy (transmission and distribution) | C117: Yes | D117: Close (<100m) | E117: 2
A118: Dis-2 | B118: Energy (transmission and distribution) | C118: Yes | D118: Adjacent | E118: 3
A119: Dis-2 | B119: Energy (renewable) | C119: No | D119: Distant (>100m) | E119: 0
A120: Dis-2 | B120: Energy (renewable) | C120: No | D120: Close (<100m) | E120: 1
A121: Dis-2 | B121: Energy (renewable) | C121: No | D121: Adjacent | E121: 2
A122: Dis-2 | B122: Energy (renewable) | C122: Yes | D122: Distant (>100m) | E122: 1
A123: Dis-2 | B123: Energy (renewable) | C123: Yes | D123: Close (<100m) | E123: 2
A124: Dis-2 | B124: Energy (renewable) | C124: Yes | D124: Adjacent | E124: 3
A125: Dis-3 | B125: No | C125: Distant (>20m) | D125: ="" ->  | E125: 0
A126: Dis-3 | B126: No | C126: Close (<20m) | D126: ="" ->  | E126: 0
A127: Dis-3 | B127: No | C127: Adjacent | D127: ="" ->  | E127: 0
A128: Dis-3 | B128: Yes | C128: Distant (>20m) | D128: ="" ->  | E128: 1
A129: Dis-3 | B129: Yes | C129: Close (<20m) | D129: ="" ->  | E129: 2
A130: Dis-3 | B130: Yes | C130: Adjacent | D130: ="" ->  | E130: 3
A131: Dis-4 | B131: Road (surface) | C131: No | D131: No (non-urban) | E131: 2
A132: Dis-4 | B132: Road (surface) | C132: No | D132: Yes (urban) | E132: 3
A133: Dis-4 | B133: Road (surface) | C133: Yes | D133: No (non-urban) | E133: 3
A134: Dis-4 | B134: Road (surface) | C134: Yes | D134: Yes (urban) | E134: 4
A135: Dis-4 | B135: Road (tunnel) | C135: No | D135: No (non-urban) | E135: 3
A136: Dis-4 | B136: Road (tunnel) | C136: No | D136: Yes (urban) | E136: 4
A137: Dis-4 | B137: Road (tunnel) | C137: Yes | D137: No (non-urban) | E137: 3
A138: Dis-4 | B138: Road (tunnel) | C138: Yes | D138: Yes (urban) | E138: 4
A139: Dis-4 | B139: Rail (electric) | C139: No | D139: No (non-urban) | E139: 0
A140: Dis-4 | B140: Rail (electric) | C140: No | D140: Yes (urban) | E140: 1
A141: Dis-4 | B141: Rail (electric) | C141: Yes | D141: No (non-urban) | E141: 1
A142: Dis-4 | B142: Rail (electric) | C142: Yes | D142: Yes (urban) | E142: 2
A143: Dis-4 | B143: Rail (diesel) | C143: No | D143: No (non-urban) | E143: 2
A144: Dis-4 | B144: Rail (diesel) | C144: No | D144: Yes (urban) | E144: 3
A145: Dis-4 | B145: Rail (diesel) | C145: Yes | D145: No (non-urban) | E145: 3
A146: Dis-4 | B146: Rail (diesel) | C146: Yes | D146: Yes (urban) | E146: 4
A147: Dis-4 | B147: Port | C147: No | D147: No (non-urban) | E147: 1
A148: Dis-4 | B148: Port | C148: No | D148: Yes (urban) | E148: 2
A149: Dis-4 | B149: Port | C149: Yes | D149: No (non-urban) | E149: 2
A150: Dis-4 | B150: Port | C150: Yes | D150: Yes (urban) | E150: 3
A151: Dis-4 | B151: Airport | C151: No | D151: No (non-urban) | E151: 2
A152: Dis-4 | B152: Airport | C152: No | D152: Yes (urban) | E152: 3
A153: Dis-4 | B153: Airport | C153: Yes | D153: No (non-urban) | E153: 3
A154: Dis-4 | B154: Airport | C154: Yes | D154: Yes (urban) | E154: 4
A155: Dis-4 | B155: Water (wastewater) | C155: No | D155: No (non-urban) | E155: 1
A156: Dis-4 | B156: Water (wastewater) | C156: No | D156: Yes (urban) | E156: 2
A157: Dis-4 | B157: Water (wastewater) | C157: Yes | D157: No (non-urban) | E157: 2
A158: Dis-4 | B158: Water (wastewater) | C158: Yes | D158: Yes (urban) | E158: 3
A159: Dis-4 | B159: Water (supply) | C159: No | D159: No (non-urban) | E159: 0
A160: Dis-4 | B160: Water (supply) | C160: No | D160: Yes (urban) | E160: 0
A161: Dis-4 | B161: Water (supply) | C161: Yes | D161: No (non-urban) | E161: 1
A162: Dis-4 | B162: Water (supply) | C162: Yes | D162: Yes (urban) | E162: 2
A163: Dis-4 | B163: Communication | C163: No | D163: No (non-urban) | E163: 0
A164: Dis-4 | B164: Communication | C164: No | D164: Yes (urban) | E164: 0
A165: Dis-4 | B165: Communication | C165: Yes | D165: No (non-urban) | E165: 1
A166: Dis-4 | B166: Communication | C166: Yes | D166: Yes (urban) | E166: 2
A167: Dis-4 | B167: Energy (transmission and distribution) | C167: No | D167: No (non-urban) | E167: 0
A168: Dis-4 | B168: Energy (transmission and distribution) | C168: No | D168: Yes (urban) | E168: 0
A169: Dis-4 | B169: Energy (transmission and distribution) | C169: Yes | D169: No (non-urban) | E169: 1
A170: Dis-4 | B170: Energy (transmission and distribution) | C170: Yes | D170: Yes (urban) | E170: 2
A171: Dis-4 | B171: Energy (renewable) | C171: No | D171: No (non-urban) | E171: 0
A172: Dis-4 | B172: Energy (renewable) | C172: No | D172: Yes (urban) | E172: 0
A173: Dis-4 | B173: Energy (renewable) | C173: Yes | D173: No (non-urban) | E173: 1
A174: Dis-4 | B174: Energy (renewable) | C174: Yes | D174: Yes (urban) | E174: 2
A175: Dis-5 | B175: Road (surface) | C175: No | D175: Distant (>100m) | E175: 1
A176: Dis-5 | B176: Road (surface) | C176: No | D176: Close (<100m) | E176: 2
A177: Dis-5 | B177: Road (surface) | C177: No | D177: Adjacent | E177: 3
A178: Dis-5 | B178: Road (surface) | C178: Yes | D178: Distant (>100m) | E178: 2
A179: Dis-5 | B179: Road (surface) | C179: Yes | D179: Close (<100m) | E179: 3
A180: Dis-5 | B180: Road (surface) | C180: Yes | D180: Adjacent | E180: 4
A181: Dis-5 | B181: Road (tunnel) | C181: No | D181: Distant (>100m) | E181: 1
A182: Dis-5 | B182: Road (tunnel) | C182: No | D182: Close (<100m) | E182: 2
A183: Dis-5 | B183: Road (tunnel) | C183: No | D183: Adjacent | E183: 3
A184: Dis-5 | B184: Road (tunnel) | C184: Yes | D184: Distant (>100m) | E184: 2
A185: Dis-5 | B185: Road (tunnel) | C185: Yes | D185: Close (<100m) | E185: 3
A186: Dis-5 | B186: Road (tunnel) | C186: Yes | D186: Adjacent | E186: 4
A187: Dis-5 | B187: Rail (electric) | C187: No | D187: Distant (>100m) | E187: 0
A188: Dis-5 | B188: Rail (electric) | C188: No | D188: Close (<100m) | E188: 1
A189: Dis-5 | B189: Rail (electric) | C189: No | D189: Adjacent | E189: 2
A190: Dis-5 | B190: Rail (electric) | C190: Yes | D190: Distant (>100m) | E190: 1
A191: Dis-5 | B191: Rail (electric) | C191: Yes | D191: Close (<100m) | E191: 2
A192: Dis-5 | B192: Rail (electric) | C192: Yes | D192: Adjacent | E192: 3
A193: Dis-5 | B193: Rail (diesel) | C193: No | D193: Distant (>100m) | E193: 0
A194: Dis-5 | B194: Rail (diesel) | C194: No | D194: Close (<100m) | E194: 1
A195: Dis-5 | B195: Rail (diesel) | C195: No | D195: Adjacent | E195: 2
A196: Dis-5 | B196: Rail (diesel) | C196: Yes | D196: Distant (>100m) | E196: 1
A197: Dis-5 | B197: Rail (diesel) | C197: Yes | D197: Close (<100m) | E197: 2
A198: Dis-5 | B198: Rail (diesel) | C198: Yes | D198: Adjacent | E198: 3
A199: Dis-5 | B199: Port | C199: No | D199: Distant (>100m) | E199: 1
A200: Dis-5 | B200: Port | C200: No | D200: Close (<100m) | E200: 2
... 126 more rows

Sheet Lists (hidden)
A1: 0 | B1: Scoped out | D1: 24.99 | E1: Commended threshold | G1: < Select > | H1: N/A | J1: Actions status | K1: Code | M1: < Select > | N1: 3 | P1: Degree of connectivity | Q1: No | R1: Definition | U1: 3 | V1: 2 | W1: 1 | X1: 0 | Z1: IAP2 Level | AA1: No | AB1: Participation goal | AD1: 5 | AE1: World 1st | AG1: < Select > | AI1: < Select > | AJ1: 0
A2: 1 | B2: Low (1) | D2: 49.99 | E2: Excellent treshold | G2: Technical clarification | H2: TC | J2: < Select > | K2: 1 | M2: Very low | N2: 1 | P2: High | Q2: 3 | R2: Connectivity is equivalent to native vegetation in good condition >100m wide that forms a sole link between other native vegetation in good condition | T2: Level | U2: High | V2: Moderate | W2: Low | X2: Nil | Z2: Empower | AA2: 3 | AB2: Goal: To place final decision-making in the hands of the public | AD2: 3 | AE2: Australian 1st | AG2: Innovative technology or process | AI2: <3% | AJ2: 0
A3: 2 | B3: Moderate (2) | D3: 74.99 | E3: Leading threshold | G3: Credit interpretation request | H3: CIR | J3: Done | K3: 2 | M3: Low | N3: 2 | P3: Moderate | Q3: 2 | R3: Connectivity is equivalent to low condition native vegetation >100m wide or native vegetation in good condition 50-100m wide that forms part of a sole link between other vegetation in good condition | T3: Level 1 | U3: N/A | V3: The existing degree of habitat connectivity is maintained | W3: The existing degree of habitat connectivity is maintained | X3: Connectivity is increased to 'low' including some use of offsets | Z3: Collaborate | AA3: 3 | AB3: Goal: to partner with the public in each aspect of the decision including the development of alternatives and the identification of the preferred solution | AD3: 1 | AE3: Other | AG3: Market transformation | AI3: 3% | AJ3: 1
A4: 3 | B4: High (3) | G4: Correction | H4: COR | J4: Abandoned | K4: 0 | M4: Moderate | N4: 3 | P4: Low | Q4: 1 | R4: Connectivity is equivalent to low condition native vegetation >100m wide or native vegetation in good condition >50m wide that is part of one of several links to other native vegetation in good condition | T4: Level 2 | U4: The existing degree of habitat connectivity is maintained without using any offsets | V4: The existing degree of habitat connectivity is enhanced across the asset/network including some use of offsets | W4: The existing degree of habitat connectivity is enhanced across the asset/network including some use of offsets | X4: Connectivity is enhanced above 'low' including some use of offsets | Z4: Involve | AA4: 2 | AB4: Goal: to work directly with the public throughout the process to ensure that public concerns and aspirations are consistently understood and considered | AD4: 0 | AE4: < Select > | AG4: Improving on credit benchmarks | AI4: 3 to 9% | AJ4: 2
A5: 4 | B5: Very high (4) | G5: Draft proposed ruling | H5: DR | J5: Redundant | K5: 2 | M5: High | N5: 4 | P5: Nil | Q5: 0 | R5: No habitat connectivity | T5: Level 3 | U5: The existing degree of habitat connectivity is enhanced without using any offsets | V5: The existing degree of habitat connectivity is enhanced across the asset/network without using any offsets | W5: The existing degree of habitat connectivity is enhanced across the asset/network without using any offsets | X5: Connectivity is enhanced above 'low' without using any offsets | Z5: Consult | AA5: 1 | AB5: Goal: to obtain public feedback on analysis, alternatives and/ or discussions | AG5: Innovation challenge | AI5: >9% | AJ5: 3
J6: Behind | K6: 0 | M6: Very high | N6: 5 | Z6: Inform | AA6: 0 | AB6: Goal: to provide the public with balanced and objective information to assist them in understanding the problem, alternatives, opportunities and/ or solutions | AG6: Global sustainability
J7: On hold | K7: 1 | U7: =4-U1 -> 1 | V7: =4-V1 -> 2 | W7: 3 | X7: 4 | AG7: N/A
J8: On track | K8: 2
J9: Ahead | K9: 2
J10: Not started | K10: 1

Sheet WeightLists (hidden)
A1: Materiality Threshold | B1: Materiality Scoring | C1: Materiality Description | D1: Rating Type | E1: Infrastructure
A2: 0.5 | B2: 0 | C2: Nil | D2: Design | E2: ?
B3: 1 | C3: Low | D3: As Built | E3: Road (surface)
B4: 2 | C4: Medium | E4: Road (tunnel)
B5: 3 | C5: High | E5: Rail (electric)
B6: 4 | C6: Very High | E6: Rail (diesel)
E7: Port
E8: Airport
C9: Rating type set to: | D9: =rating_type_selected -> Design | E9: Water (wastewater)
C10: Country set to: | D10: =IF(country=2,"New Zealand","Australia") -> Australia | E10: Water (supply)
E11: Communication
E12: Energy (transmission and distribution)
E13: Energy (renewable)

Sheet Category Rollups (hidden)
B1: 4 | C1: 5 | D1: 6 | E1: 7 | F1: 8 | G1: 9 | H1: 10 | I1: 11 | J1: 12 | K1: 13 | L1: 14 | M1: 15 | N1: 16 | O1: 17 | V1: =spider1 -> Working Score % | W1: =spider2 -> Working Score % | Z1: Cross-tab of actions and status by category
A2: Category | B2: Score Possible | C2: No. Levels | D2: Target Level | E2: Target Score | F2: Working Level | G2: Working Score | H2: Assessed R1 Level | I2: Assessed R1 Score | J2: Verified R1 Level | K2: Verified R1 Score | L2: Assessed R2 Level | M2: Assessed R2 Score | N2: Verified R2 Level | O2: Final Score | P2: Target Score % | Q2: Working Score % | R2: Assessed R1 Score % | S2: Verified R1 Score % | T2: Assessed R2 Score % | U2: Final Score % | V2: First Series | W2: Compare with | X2: Cost | Y2: Benefit | Z2: Done | AA2: Abandoned | AB2: Redundant | AC2: Behind | AD2: On hold | AE2: On track | AF2: Ahead | AG2: Not started
A3: Man | B3: =SUMIF(summary_cat_key,$A3,OFFSET(summary_cat_key,0,B$1)) -> 0 | C3: 0 | D3: 11.74 | E3: 18 | F3: 0 | G3: 0 | H3: 0 | I3: =SUMIF(summary_cat_key,$A3,OFFSET(summary_cat_key,0,I$1)) -> 0 | J3: 0 | K3: 0 | L3: 0 | M3: 0 | N3: 0 | O3: 0 | P3: =E3/B3 ->  | Q3: =G3/B3 ->  | R3: =I3/B3 ->  | S3: =K3/B3 ->  | T3: =M3/B3 ->  | U3: =O3/B3 ->  | V3: =INDEX(A3:U3,MATCH(spider1,category_rollups_headingkey,0)) ->  | W3: =INDEX(A3:U3,MATCH(spider2,category_rollups_headingkey,0)) ->  | X3: =SUMIF(assessor_track_cat_key,$A3,OFFSET(assessor_track_cat_key,0,-3)) -> 0 | Y3: =SUMIF(assessor_track_cat_key,$A3,OFFSET(assessor_track_cat_key,0,-2)) -> 0
A4: Pro | B4: 0 | C4: 0 | D4: 2.8 | E4: 12 | F4: 0 | G4: 0 | H4: 0 | I4: 0 | J4: 0 | K4: 0 | L4: 0 | M4: =SUMIF(summary_cat_key,$A4,OFFSET(summary_cat_key,0,M$1)) -> 0 | N4: 0 | O4: 0 | X4: 0 | Y4: 0
A5: Cli | B5: 0 | C5: 0 | D5: 5.58 | E5: 6 | F5: 0 | G5: 0 | H5: 0 | I5: 0 | J5: 0 | K5: 0 | L5: 0 | M5: 0 | N5: 0 | O5: 0 | X5: 0 | Y5: 0
A6: Ene | B6: 0 | C6: 0 | D6: 11.74 | E6: 6 | F6: 0 | G6: 0 | H6: 0 | I6: 0 | J6: 0 | K6: 0 | L6: 0 | M6: 0 | N6: 0 | O6: 0 | X6: 0 | Y6: 0 | AA6: make first column of Actions tables left 3 chars; set up table, use sumif…
A7: Wat | B7: 0 | C7: 0 | D7: 7.82 | E7: 6 | F7: 0 | G7: 0 | H7: 0 | I7: 0 | J7: 0 | K7: 0 | L7: 0 | M7: 0 | N7: 0 | O7: 0 | X7: 0 | Y7: 0
A8: Mat | B8: 0 | C8: 0 | D8: 6.7 | E8: 6 | F8: 0 | G8: 0 | H8: 0 | I8: 0 | J8: 0 | K8: 0 | L8: 0 | M8: 0 | N8: 0 | O8: 0 | X8: 0 | Y8: 0
A9: Dis | B9: 0 | C9: 0 | D9: 11.72 | E9: 13 | F9: 0 | G9: 0 | H9: 0 | I9: 0 | J9: 0 | K9: 0 | L9: 0 | M9: 0 | N9: 0 | O9: 0 | X9: 0 | Y9: 0
A10: Lan | B10: 0 | C10: 0 | D10: 7.82 | E10: 11 | F10: 0 | G10: 0 | H10: 0 | I10: 0 | J10: 0 | K10: 0 | L10: 0 | M10: 0 | N10: 0 | O10: 0 | X10: 0 | Y10: 0
A11: Was | B11: 0 | C11: 0 | D11: 3.91 | E11: 8 | F11: 0 | G11: 0 | H11: 0 | I11: 0 | J11: 0 | K11: 0 | L11: 0 | M11: 0 | N11: 0 | O11: 0 | X11: 0 | Y11: 0
A12: Eco | B12: 0 | C12: 0 | D12: 11.73 | E12: 6 | F12: 0 | G12: 0 | H12: 0 | I12: 0 | J12: 0 | K12: 0 | L12: 0 | M12: 0 | N12: 0 | O12: 0 | X12: 0 | Y12: 0
A13: Hea | B13: 0 | C13: 0 | D13: 5.58 | E13: 5 | F13: 0 | G13: 0 | H13: 0 | I13: 0 | J13: 0 | K13: 0 | L13: 0 | M13: 0 | N13: 0 | O13: 0 | X13: 0 | Y13: 0
A14: Her | B14: 0 | C14: 0 | D14: 2.79 | E14: 6 | F14: 0 | G14: 0 | H14: 0 | I14: 0 | J14: 0 | K14: 0 | L14: 0 | M14: 0 | N14: 0 | O14: 0 | X14: 0 | Y14: 0
A15: Sta | B15: 0 | C15: 0 | D15: 5.6 | E15: 10 | F15: 0 | G15: 0 | H15: 0 | I15: 0 | J15: 0 | K15: 0 | L15: 0 | M15: 0 | N15: 0 | O15: 0 | X15: 0 | Y15: 0
A16: Urb | B16: 0 | C16: 0 | D16: 4.47 | E16: 5 | F16: 0 | G16: 0 | H16: 0 | I16: 0 | J16: 0 | K16: 0 | L16: 0 | M16: 0 | N16: 0 | O16: 0 | X16: 0 | Y16: 0
A17: Inn | B17: 0 | C17: 0 | D17: 10 | E17: 10 | F17: 0 | G17: 0 | H17: 0 | I17: 0 | J17: 0 | K17: 0 | L17: 0 | M17: 0 | N17: 0 | O17: 0 | X17: 0 | Y17: 0

Sheet Man-1 (hidden)
D1: Man-1 | E1: =INDEX(weightings_main_tbl,MATCH(D1,weightings_credit_lst,0),2) -> Sustainability leadership and commitment | T1: =D1&" Verification" -> Man-1 Verification | AD1: =D1&" Verifier area (confidential)" -> Man-1 Verifier area (confidential)
B2: Credit Summary Form
B4: Section 1: Credit response
I6: Materiality:
I7: =INDEX(mat_table,MATCH(INDEX(weightings_main_tbl,MATCH(D1,weightings_credit_lst,0),13),mat_code,0),2) -> Moderate (2) | M7: Score | O7: Design | T7: Round One | Y7: Round Two
J9: Set credit target level: | M9: =K9/$K$11*$M$11 -> 0 | P9: Level verified: | U9: Level verified: | Z9: Level verified:
J11: Level available for this credit: | K11: =INDEX(summary_tbl_wide,MATCH(D1,summary_tbl_credits,0),7) -> 3 | M11: =ROUND(INDEX(weightings_main_tbl,MATCH(D1,weightings_credit_lst,0),18),2) -> 1.12 | P11: Verified score: | Q11: =M11/K11 * Q9 -> 0 | U11: Verified score: | V11: =V9/$K$11*$M$11 -> 0 | Z11: Verified score: | AA11: =AA9/$K$11*$M$11 -> 0
C13: Level 1 | E13: =MIN(E14:E17) -> 0 | F13: Level 2 | H13: =MIN(H14:H17) -> 0 | I13: Level 3 | K13: =MIN(K14:K17) -> 0
B14: Benchmark | C14: There are commitments to mitigating negative environmental, social and economic impacts | E14: 0 | F14: The requirements for Level 1 are achieved | H14: =E13 -> 0 | I14: The requirements for Level 2 are achieved | K14: =H13 -> 0
C15: AND | F15: AND | I15: AND
C16: These commitments are embedded into sustainability objectives and/or targets | E16: 0 | F16: The sustainability objectives and/or targets are reflected in project contracts. | H16: 0 | I16: The sustainability commitments go beyond mitigating negative impacts to restorative actions (i.e. net positive benefits for society and the environment) | K16: 0
I17: AND | K17: 0
I18: The sustainability commitments are publicly stated
J19: Working level: | K19: =IF(K30="Y",K38,E13+H13+K13) -> 0 | M19: =K19/$K$11*$M$11 -> 0
B20: Warnings | D20: Check ruling details | E20: =IF(K30="N",1,IF(OR(J36="",K38=""),0,1)) -> 0
J21: Set level assessed round 1: | M21: =K21/$K$11*$M$11 -> 0
D22: Check additional guidance | E22: =IF(SUM(L96:L103)>=1,0,1) -> 1
J23: Set level assessed round 2: | M23: =K23/$K$11*$M$11 -> 0
D24: Check evidence | E24: =IF(K125<K123,0,1) -> 0
B28: Section 2: Rulings
J30: Is a ruling used for this credit?
I36: Ruling number:
J38: New working score using ruling: | M38: =K38/$K$11*$M$11 -> 0
B41: Ruling description text box (copy from spreadsheet): | O41: Verification comment on ruling | T41: Verification comment on ruling | Y41: Verification comment on ruling
B49: Additional comments text box (as required)
B59: Section 3: Description of how criteria were met
AH64: Level verified: | AP64: Level verified: | AX64: Level verified: | BF64: Level verified:
B66: =D1 -> Man-1 | C66: How were the criteria met? (enter explanation in text boxes) | O66: Verification comment Round 2 | T66: Verification comment Round 1 | Y66: Verification comment Round 2 | AE66: Verifier 1 Round 1 comments | AM66: Verifier 2 Round 1 comments | AU66: Verifier 1 Round 2 comments | BC66: Verifier 2 Round 2 comments
B67: Level 1 | N67: Level 1 | AD67: Level 1 | AJ67: 0 | AL67: Level 1 | AR67: 0 | AT67: Level 1 | AZ67: 0 | BB67: Level 1 | BH67: 0
B74: Level 2 | N74: Level 2 | AD74: Level 2 | AJ74: 0 | AL74: Level 2 | AR74: 0 | AT74: Level 2 | AZ74: 0 | BB74: Level 2 | BH74: 0
B81: Level 3 | N81: Level 3 | AD81: Level 3 | AJ81: 0 | AL81: Level 3 | AR81: 0 | AT81: Level 3 | AZ81: 0 | BB81: Level 3 | BH81: 0
B90: Section 4: Additional guidance ('must' statements)
B94: =D1 -> Man-1 | C94: Additional guidance items (must statements)
B95: Level | C95: Must statements | K95: OK | L95: Calc | AE95: Verifier comment | AJ95: OK | AM95: Verifier comment | AR95: OK | AU95: Verifier comment | AZ95: OK | BC95: Verifier comment | BH95: OK
B96: 1 | C96: The policy must cover environmental, social and economic aspects | K96: 0 | L96: =IF(AND(B96<=$K$19,K96=0),1,0) -> 0 | AJ96: 0 | AR96: 0 | AZ96: 0 | BH96: 0
B97: 1 | C97: The policy must apply to the asset/network being rated | K97: 0 | L97: =IF(AND(B97<=$K$19,K97=0),1,0) -> 0 | AJ97: 0 | AR97: 0 | AZ97: 0 | BH97: 0
B98: 1 | C98: Policies must have been in place for the entire duration of the relevant Rating phases | K98: 0 | L98: 0 | AJ98: 0 | AR98: 0 | AZ98: 0 | BH98: 0
B99: 1 | C99: Policies must be endorsed by senior management | K99: 0 | L99: 0 | AJ99: 0 | AR99: 0 | AZ99: 0 | BH99: 0
B100: 1 | C100: Sustainability objectives and/or targets must cover environmental, social and economic aspects | K100: 0 | L100: 0 | AJ100: 0 | AR100: 0 | AZ100: 0 | BH100: 0
B101: 1 | C101: Every policy commitment must have at least one objective and/or target linked to it | K101: 0 | L101: 0 | AJ101: 0 | AR101: 0 | AZ101: 0 | BH101: 0
B102: 2 | C102: The sustainability objectives and/or targets must be reflected in the major project contracts (e.g. for designer, constructor, operator etc.). | K102: 0 | L102: 0 | AJ102: 0 | AR102: 0 | AZ102: 0 | BH102: 0
B103: 3 | C103: There must be at least 1 commitment to restorative actions | K103: 0 | L103: =IF(AND(B103<=$K$19,K103=0),1,0) -> 0 | AJ103: 0 | AR103: 0 | AZ103: 0 | BH103: 0
B107: Section 5: Evidence
B114: =D1 -> Man-1 | C114: Evidence documents
C115: Ref. code | D115: Credit level | E115: Name of document | I115: Pinpoint reference | K115: OK
K116: 0
K117: 0
K118: 0
K119: 0
K120: 0
K121: 0
J123: Number of documents: | K123: =COUNT(K116:K121) -> 6
J125: Number OK: | K125: =SUM(K116:K121) -> 0
B130: Assessor notes and project management
J133: ="Target level for "&D1&":" -> Target level for Man-1: | K133: =K9 -> 0
I135: Indicative cost: | J135: < Select > | K135: =INDEX(risk_achieve_table,MATCH(J135,risk_of_achieve,0),2) -> 3
I137: Difficulty: | J137: < Select > | K137: =INDEX(risk_achieve_table,MATCH(J137,risk_of_achieve,0),2) -> 3
I139: Risk of non-achievement: | J139: < Select > | K139: =INDEX(risk_achieve_table,MATCH(J139,risk_of_achieve,0),2) -> 3
I141: Overall status of credit: | J141: < Select > | K141: =INDEX(lists_actions_status,MATCH(J141,lists_actions_key,0),2) -> 1
B143: =D1 -> Man-1 | C143: Notes
B144: General comments
B151: =D1 -> Man-1 | C151: Actions to address this credit | U151: TEXT TO BE MADE WHITE TO HIDE IT WHEN SET UP
C152: ID | D152: Action description | I152: Owner | J152: Status | L152: Date | U152: Credit | V152: ID | W152: Action description | X152: Owner | Y152: Date | Z152: Status | AA152: x
J153: < Select > | K153: =INDEX(lists_actions_status,MATCH(J153,lists_actions_key,0),2) -> 1 | U153: =$D$1 -> Man-1 | V153: =IF(C153="","",C153) ->  | W153: =IF(D153="","",D153) ->  | X153: =IF(I153="","",I153) ->  | Y153: =IF(L153="","",L153) ->  | Z153: =IF(J153="< Select >","",J153) ->  | AA153: =K153 -> 1
J154: < Select > | K154: =INDEX(lists_actions_status,MATCH(J154,lists_actions_key,0),2) -> 1 | U154: =$D$1 -> Man-1 | V154: =IF(C154="","",C154) ->  | W154: =IF(D154="","",D154) ->  | X154: =IF(I154="","",I154) ->  | Y154: =IF(L154="","",L154) ->  | Z154: =IF(J154="< Select >","",J154) ->  | AA154: =K154 -> 1
J155: < Select > | K155: =INDEX(lists_actions_status,MATCH(J155,lists_actions_key,0),2) -> 1 | U155: Man-1 | AA155: 1
J156: < Select > | K156: =INDEX(lists_actions_status,MATCH(J156,lists_actions_key,0),2) -> 1 | U156: Man-1 | AA156: 1
J157: < Select > | K157: =INDEX(lists_actions_status,MATCH(J157,lists_actions_key,0),2) -> 1 | U157: Man-1 | AA157: 1
B161: Cost-benefit tracking
B164: =D1 -> Man-1 | C164: Collection of cost-benefit data
C165: Initative name | F165: Cost ($k) | G165: Benefit ($k) | H165: Comments
C171: Total: | F171: =SUM(F166:F170) -> 0 | G171: =SUM(G166:G170) -> 0

Sheet Man-2 (hidden)
D1: Man-2 | E1: =INDEX(weightings_main_tbl,MATCH(D1,weightings_credit_lst,0),2) -> Risk and opportunity management | T1: =D1&" Verification" -> Man-2 Verification | AD1: =D1&" Verifier area (confidential)" -> Man-2 Verifier area (confidential)
B2: Credit Summary Form
B4: Section 1: Credit response
I6: Materiality:
I7: =INDEX(mat_table,MATCH(INDEX(weightings_main_tbl,MATCH(D1,weightings_credit_lst,0),13),mat_code,0),2) -> Moderate (2) | M7: Score | O7: Round Two | T7: Round One | Y7: Round Two
J9: Set credit target level: | M9: =K9/$K$11*$M$11 -> 0 | P9: Level verified: | U9: Level verified: | Z9: Level verified:
J11: Level available for this credit: | K11: =INDEX(summary_tbl_wide,MATCH(D1,summary_tbl_credits,0),7) -> 2 | M11: =ROUND(INDEX(weightings_main_tbl,MATCH(D1,weightings_credit_lst,0),18),2) -> 1.12 | P11: Verified score: | Q11: =Q9/$K$11*$M$11 -> 0 | U11: Verified score: | V11: =V9/$K$11*$M$11 -> 0 | Z11: Verified score: | AA11: =AA9/$K$11*$M$11 -> 0
C13: Level 1 | E13: =MIN(E14:E17) -> 0 | F13: Level 2 | H13: =MIN(H14:H17) -> 0
B14: Benchmark | C14: Environmental, social and economic risks are assessed | E14: 0 | F14: The requirements for Level 1 are achieved | H14: =E13 -> 0 | I14: Not applicable
C15: AND | F15: AND
C16: The risk assessment is updated at least annually | E16: 0 | F16: Environmental, social and economic opportunities are also assessed | H16: 0
J19: Working level: | K19: =IF(K30="Y",K38,E13+H13) -> 0 | M19: =K19/$K$11*$M$11 -> 0
B20: Warnings | D20: Check ruling details | E20: =IF(K30="N",1,IF(OR(J36="",K38=""),0,1)) -> 0
J21: Set level assessed round 1: | M21: =K21/$K$11*$M$11 -> 0
D22: Check additional guidance | E22: =IF(SUM(L89:L94)>=1,0,1) -> 1
J23: Set level assessed round 2: | M23: =K23/$K$11*$M$11 -> 0
D24: Check evidence | E24: =IF(K115<K113,0,1) -> 0
B28: Section 2: Rulings
J30: Is a ruling used for this credit?
I36: Ruling number:
J38: New working score using ruling: | M38: =K38/$K$11*$M$11 -> 0
B41: Ruling description text box (copy from spreadsheet): | O41: Verification comment on ruling | T41: Verification comment on ruling | Y41: Verification comment on ruling
B49: Additional comments text box (as required)
B59: Section 3: Description of how criteria were met
AH64: Level verified: | AP64: Level verified: | AX64: Level verified: | BF64: Level verified:
B66: =D1 -> Man-2 | C66: How were the criteria met? (enter explanation in text boxes) | O66: Verification comment Round 2 | T66: Verification comment Round 1 | Y66: Verification comment Round 2 | AE66: Verifier 1 Round 1 comments | AM66: Verifier 2 Round 1 comments | AU66: Verifier 1 Round 2 comments | BC66: Verifier 2 Round 2 comments
B67: Level 1 | N67: Level 1 | AD67: Level 1 | AJ67: 0 | AL67: Level 1 | AR67: 0 | AT67: Level 1 | AZ67: 0 | BB67: Level 1 | BH67: 0
B74: Level 2 | N74: Level 2 | AD74: Level 2 | AJ74: 0 | AL74: Level 2 | AR74: 0 | AT74: Level 2 | AZ74: 0 | BB74: Level 2 | BH74: 0
B83: Section 4: Additional guidance ('must' statements)
B87: =D1 -> Man-2 | C87: Additional guidance items (must statements)
B88: Level | C88: Must statements | K88: OK | L88: Calc | AE88: Verifier comment | AJ88: OK | AM88: Verifier comment | AR88: OK | AU88: Verifier comment | AZ88: OK | BC88: Verifier comment | BH88: OK
B89: 1 | C89: Risk register(s) include environmental, social and economic risks (at least one of each) | K89: 0 | L89: =IF(AND(B89<=$K$19,K89=0),1,0) -> 0 | AJ89: 0 | AR89: 0 | AZ89: 0 | BH89: 0
B90: 1 | C90: Risk register(s) cover the whole asset/network scope being rated | K90: 0 | L90: =IF(AND(B90<=$K$19,K90=0),1,0) -> 0 | AJ90: 0 | AR90: 0 | AZ90: 0 | BH90: 0
B91: 2 | C91: Risk register(s) include environmental, social and economic opportunities (at least one of each) | K91: 0 | L91: 0 | AJ91: 0 | AR91: 0 | AZ91: 0 | BH91: 0
B92: 2 | C92: The program wide risk and opportunity assessment covers the scope of the small project within the program | K92: 0 | L92: 0 | AJ92: 0 | AR92: 0 | AZ92: 0 | BH92: 0
B93: 2 | C93: The program wide risk and opportunity assessment was conducted by an organisation with direct influence over the small project as well as the larger program or project | K93: 0 | L93: 0 | AJ93: 0 | AR93: 0 | AZ93: 0 | BH93: 0
B94: 2 | C94: The program wide risk and opportunity assessment was undertaken at a time to directly influence the small project (e.g. in advance of). | K94: 0 | L94: 0 | AJ94: 0 | AR94: 0 | AZ94: 0 | BH94: 0
B98: Section 5: Evidence
B105: =D1 -> Man-2 | C105: Evidence documents
C106: Ref. code | D106: Credit level | E106: Name of document | I106: Pinpoint reference | K106: OK
K107: 0
K108: 0
K109: 0
K110: 0 | T110: `
K111: 0
J113: Number of documents: | K113: =COUNT(K107:K111) -> 5
J115: Number OK: | K115: =SUM(K107:K111) -> 0
B118: Assessor notes and project management
J121: ="Target level for "&D1&":" -> Target level for Man-2: | K121: =K9 -> 0
I123: Indicative cost: | J123: < Select > | K123: =INDEX(risk_achieve_table,MATCH(J123,risk_of_achieve,0),2) -> 3
I125: Difficulty: | J125: < Select > | K125: =INDEX(risk_achieve_table,MATCH(J125,risk_of_achieve,0),2) -> 3
I127: Risk of non-achievement: | J127: < Select > | K127: =INDEX(risk_achieve_table,MATCH(J127,risk_of_achieve,0),2) -> 3
I129: Overall status of credit: | J129: < Select > | K129: =INDEX(lists_actions_status,MATCH(J129,lists_actions_key,0),2) -> 1
B131: =D1 -> Man-2 | C131: Notes
B132: General comments
B139: =D1 -> Man-2 | C139: Actions to address this credit
C140: ID | D140: Action description | I140: Owner | J140: Status | K140: OK | L140: Date | U140: Credit | V140: ID | W140: Action description | X140: Owner | Y140: Date | Z140: Status | AA140: x
J141: < Select > | K141: =INDEX(lists_actions_status,MATCH(J141,lists_actions_key,0),2) -> 1 | U141: =$D$1 -> Man-2 | V141: =IF(C141="","",C141) ->  | W141: =IF(D141="","",D141) ->  | X141: =IF(I141="","",I141) ->  | Y141: =IF(L141="","",L141) ->  | Z141: =IF(J141="< Select >","",J141) ->  | AA141: =K141 -> 1
J142: < Select > | K142: =INDEX(lists_actions_status,MATCH(J142,lists_actions_key,0),2) -> 1 | U142: =$D$1 -> Man-2 | V142: =IF(C142="","",C142) ->  | X142: =IF(I142="","",I142) ->  | Y142: =IF(L142="","",L142) ->  | Z142: =IF(J142="< Select >","",J142) ->  | AA142: =K142 -> 1
J143: < Select > | K143: =INDEX(lists_actions_status,MATCH(J143,lists_actions_key,0),2) -> 1 | U143: Man-2 | AA143: 1
J144: < Select > | K144: =INDEX(lists_actions_status,MATCH(J144,lists_actions_key,0),2) -> 1 | U144: Man-2 | AA144: 1
J145: < Select > | K145: =INDEX(lists_actions_status,MATCH(J145,lists_actions_key,0),2) -> 1 | U145: Man-2 | AA145: 1
B149: Cost-benefit tracking
B152: =D1 -> Man-2 | C152: Collection of cost-benefit data
C153: Initative name | F153: Cost ($k) | G153: Benefit ($k) | H153: Comments
C159: Total: | F159: =SUM(F154:F158) -> 0 | G159: =SUM(G154:G158) -> 0

Sheet combineVerifierComments (hidden)

Sheet colourArray (hidden)
A1: -2147483648 | B1: -2147483648 | C1: -2147483648 | D1: -2147483648 | E1: -2147483648 | F1: -2147483648 | G1: -2147483648 | H1: -2147483648 | I1: -2147483648 | J1: -2147483648 | K1: -2147483648 | L1: -2147483648 | M1: -2147483648 | N1: -2147483648 | O1: -2147483648 | P1: -2147483648 | Q1: -2147483648 | R1: -2147483648 | S1: -2147483648 | T1: -2147483648 | U1: -2147483648 | V1: -2147483648 | W1: -2147483648 | X1: -2147483648 | Y1: -2147483648 | Z1: -2147483648 | AA1: -2147483648 | AB1: -2147483648 | AC1: -2147483648 | AD1: -2147483648 | AE1: -2147483648 | AF1: -2147483648 | AG1: -2147483648 | AH1: -2147483648 | AI1: -2147483648 | AJ1: -2147483648 | AK1: -2147483648 | AL1: -2147483648 | AM1: -2147483648 | AN1: -2147483648 | AO1: -2147483648 | AP1: -2147483648 | AQ1: -2147483648 | AR1: -2147483648 | AS1: -2147483648 | AT1: -2147483648 | AU1: -2147483648 | AV1: -2147483648 | AW1: -2147483648 | AX1: -2147483648 | AY1: -2147483648 | AZ1: -2147483648 | BA1: -2147483648 | BB1: -2147483648 | BC1: -2147483648 | BD1: -2147483648 | BE1: -2147483648 | BF1: -2147483648 | BG1: -2147483648 | BH1: -2147483648 | BI1: -2147483648 | BJ1: -2147483648 | BK1: -2147483648 | BL1: -2147483648 | BM1: -2147483648 | BN1: -2147483648 | BO1: -2147483648 | BP1: -2147483648 | BQ1: -2147483648 | BR1: -2147483648 | BS1: -2147483648 | BT1: -2147483648 | BU1: -2147483648 | BV1: -2147483648 | BW1: -2147483648 | BX1: -2147483648 | BY1: -2147483648 | BZ1: -2147483648 | CA1: -2147483648 | CB1: -2147483648 | CC1: -2147483648 | CD1: -2147483648 | CE1: -2147483648 | CF1: -2147483648 | CG1: -2147483648 | CH1: -2147483648 | CI1: -2147483648 | CJ1: -2147483648 | CK1: -2147483648 | CL1: -2147483648 | CM1: -2147483648 | CN1: -2147483648 | CO1: -2147483648 | CP1: -2147483648 | CQ1: -2147483648 | CR1: -2147483648 | CS1: -2147483648 | CT1: -2147483648 | CU1: -2147483648 | CV1: -2147483648 | CW1: -2147483648 | CX1: -2147483648 | CY1: -2147483648 | CZ1: -2147483648 | DA1: -2147483648 | DB1: -2147483648 | DC1: -2147483648 | DD1: -2147483648 | DE1: -2147483648 | DF1: -2147483648 | DG1: -2147483648 | DH1: -2147483648 | DI1: -2147483648 | DJ1: -2147483648 | DK1: -2147483648 | DL1: -2147483648 | DM1: 13147904 | DN1: 13147904 | DO1: 13147904 | DP1: 13147904 | DQ1: 13147904 | DR1: 13147904 | DS1: 13147904 | DT1: 13147904 | DU1: 13147904 | DV1: 13147904 | DW1: 13147904 | DX1: 13147904 | DY1: 13147904 | DZ1: 13147904 | EA1: 13147904 | EB1: 13147904 | EC1: 13147904 | ED1: 13147904 | EE1: 13147904 | EF1: 13147904 | EG1: 13147904 | EH1: 13147904 | EI1: 13147904 | EJ1: 13147904 | EK1: 13147904 | EL1: 13147904 | EM1: 13147904
A2: -2147483648 | B2: -2147483648 | C2: -2147483648 | D2: -2147483648 | E2: -2147483648 | F2: -2147483648 | G2: -2147483648 | H2: -2147483648 | I2: -2147483648 | J2: -2147483648 | K2: -2147483648 | L2: -2147483648 | M2: -2147483648 | N2: -2147483648 | O2: -2147483648 | P2: -2147483648 | Q2: -2147483648 | R2: -2147483648 | S2: -2147483648 | T2: -2147483648 | U2: -2147483648 | V2: -2147483648 | W2: -2147483648 | X2: -2147483648 | Y2: -2147483648 | Z2: -2147483648 | AA2: -2147483648 | AB2: -2147483648 | AC2: -2147483648 | AD2: -2147483648 | AE2: -2147483648 | AF2: -2147483648 | AG2: -2147483648 | AH2: -2147483648 | AI2: -2147483648 | AJ2: -2147483648 | AK2: -2147483648 | AL2: -2147483648 | AM2: -2147483648 | AN2: -2147483648 | AO2: -2147483648 | AP2: -2147483648 | AQ2: -2147483648 | AR2: -2147483648 | AS2: -2147483648 | AT2: -2147483648 | AU2: -2147483648 | AV2: -2147483648 | AW2: -2147483648 | AX2: -2147483648 | AY2: -2147483648 | AZ2: -2147483648 | BA2: -2147483648 | BB2: -2147483648 | BC2: -2147483648 | BD2: -2147483648 | BE2: -2147483648 | BF2: -2147483648 | BG2: -2147483648 | BH2: -2147483648 | BI2: -2147483648 | BJ2: -2147483648 | BK2: -2147483648 | BL2: -2147483648 | BM2: -2147483648 | BN2: -2147483648 | BO2: -2147483648 | BP2: -2147483648 | BQ2: -2147483648 | BR2: -2147483648 | BS2: -2147483648 | BT2: -2147483648 | BU2: -2147483648 | BV2: -2147483648 | BW2: -2147483648 | BX2: -2147483648 | BY2: -2147483648 | BZ2: 5296274 | CA2: 5296274 | CB2: 5296274 | CC2: 5296274 | CD2: 5296274 | CE2: 5296274 | CF2: 5296274 | CG2: 5296274 | CH2: 5296274 | CI2: 5296274 | CJ2: 5296274 | CK2: 5296274 | CL2: 5296274 | CM2: 5296274 | CN2: 5296274 | CO2: 5296274 | CP2: 5296274 | CQ2: 5296274 | CR2: 5296274 | CS2: 5296274 | CT2: 5296274 | CU2: 5296274 | CV2: 5296274 | CW2: 5296274 | CX2: 5296274 | CY2: 5296274 | CZ2: 5296274 | DA2: 5296274 | DB2: 5296274 | DC2: 5296274 | DD2: 5296274 | DE2: 5296274 | DF2: 5296274 | DG2: 5296274 | DH2: 5296274 | DI2: 5296274 | DJ2: 5296274 | DK2: 5296274 | DL2: 5296274 | DM2: 5296274 | DN2: 5296274 | DO2: 5296274 | DP2: 5296274 | DQ2: 5296274

Sheet boldArray (hidden)
A1: FALSE | B1: FALSE | C1: FALSE | D1: FALSE | E1: FALSE | F1: FALSE | G1: FALSE | H1: FALSE | I1: FALSE | J1: FALSE | K1: FALSE | L1: FALSE | M1: FALSE | N1: FALSE | O1: FALSE | P1: FALSE | Q1: FALSE | R1: FALSE | S1: FALSE | T1: FALSE | U1: FALSE | V1: FALSE | W1: FALSE | X1: FALSE | Y1: FALSE | Z1: FALSE | AA1: FALSE | AB1: FALSE | AC1: FALSE | AD1: FALSE | AE1: FALSE | AF1: FALSE | AG1: FALSE | AH1: FALSE | AI1: FALSE | AJ1: FALSE | AK1: FALSE | AL1: FALSE | AM1: FALSE | AN1: FALSE | AO1: FALSE | AP1: FALSE | AQ1: FALSE | AR1: FALSE | AS1: FALSE | AT1: FALSE | AU1: FALSE | AV1: FALSE | AW1: FALSE | AX1: FALSE | AY1: FALSE | AZ1: FALSE | BA1: FALSE | BB1: FALSE | BC1: FALSE | BD1: FALSE | BE1: FALSE | BF1: FALSE | BG1: FALSE | BH1: FALSE | BI1: FALSE | BJ1: FALSE | BK1: FALSE | BL1: FALSE | BM1: FALSE | BN1: FALSE | BO1: FALSE | BP1: FALSE | BQ1: FALSE | BR1: FALSE | BS1: FALSE | BT1: FALSE | BU1: FALSE | BV1: FALSE | BW1: FALSE | BX1: FALSE | BY1: FALSE | BZ1: FALSE | CA1: FALSE | CB1: FALSE | CC1: FALSE | CD1: FALSE | CE1: FALSE | CF1: FALSE | CG1: FALSE | CH1: FALSE | CI1: FALSE | CJ1: FALSE | CK1: FALSE | CL1: FALSE | CM1: FALSE | CN1: FALSE | CO1: FALSE | CP1: FALSE | CQ1: FALSE | CR1: FALSE | CS1: FALSE | CT1: FALSE | CU1: FALSE | CV1: FALSE | CW1: FALSE | CX1: FALSE | CY1: FALSE | CZ1: FALSE | DA1: FALSE | DB1: FALSE | DC1: FALSE | DD1: FALSE | DE1: FALSE | DF1: FALSE | DG1: FALSE | DH1: FALSE | DI1: FALSE | DJ1: FALSE | DK1: FALSE | DL1: FALSE | DM1: FALSE | DN1: FALSE | DO1: FALSE | DP1: FALSE | DQ1: FALSE | DR1: FALSE | DS1: FALSE | DT1: FALSE | DU1: FALSE | DV1: FALSE | DW1: FALSE | DX1: FALSE | DY1: FALSE | DZ1: FALSE | EA1: FALSE | EB1: FALSE | EC1: FALSE | ED1: FALSE | EE1: FALSE | EF1: FALSE | EG1: FALSE | EH1: FALSE | EI1: FALSE | EJ1: FALSE | EK1: FALSE | EL1: FALSE | EM1: FALSE
A2: TRUE | B2: TRUE | C2: TRUE | D2: TRUE | E2: TRUE | F2: TRUE | G2: TRUE | H2: TRUE | I2: TRUE | J2: TRUE | K2: TRUE | L2: TRUE | M2: TRUE | N2: TRUE | O2: TRUE | P2: TRUE | Q2: TRUE | R2: TRUE | S2: TRUE | T2: TRUE | U2: TRUE | V2: TRUE | W2: TRUE | X2: TRUE | Y2: TRUE | Z2: TRUE | AA2: TRUE | AB2: TRUE | AC2: TRUE | AD2: TRUE | AE2: TRUE | AF2: TRUE | AG2: TRUE | AH2: TRUE | AI2: TRUE | AJ2: TRUE | AK2: TRUE | AL2: TRUE | AM2: TRUE | AN2: TRUE | AO2: TRUE | AP2: TRUE | AQ2: TRUE | AR2: TRUE | AS2: TRUE | AT2: TRUE | AU2: TRUE | AV2: TRUE | AW2: TRUE | AX2: TRUE | AY2: TRUE | AZ2: TRUE | BA2: TRUE | BB2: TRUE | BC2: TRUE | BD2: TRUE | BE2: TRUE | BF2: TRUE | BG2: TRUE | BH2: TRUE | BI2: TRUE | BJ2: TRUE | BK2: TRUE | BL2: TRUE | BM2: TRUE | BN2: TRUE | BO2: TRUE | BP2: TRUE | BQ2: TRUE | BR2: TRUE | BS2: TRUE | BT2: TRUE | BU2: TRUE | BV2: TRUE | BW2: TRUE | BX2: TRUE | BY2: TRUE | BZ2: TRUE | CA2: TRUE | CB2: TRUE | CC2: TRUE | CD2: TRUE | CE2: TRUE | CF2: TRUE | CG2: TRUE | CH2: TRUE | CI2: TRUE | CJ2: TRUE | CK2: TRUE | CL2: TRUE | CM2: TRUE | CN2: TRUE | CO2: TRUE | CP2: TRUE | CQ2: TRUE | CR2: TRUE | CS2: TRUE | CT2: TRUE | CU2: TRUE | CV2: TRUE | CW2: TRUE | CX2: TRUE | CY2: TRUE | CZ2: TRUE | DA2: TRUE | DB2: TRUE | DC2: TRUE | DD2: TRUE | DE2: TRUE | DF2: TRUE | DG2: TRUE | DH2: TRUE | DI2: TRUE | DJ2: TRUE | DK2: TRUE | DL2: TRUE | DM2: TRUE | DN2: TRUE | DO2: TRUE | DP2: TRUE | DQ2: TRUE

Sheet Man-3 (hidden)
D1: Man-3 | E1: =INDEX(weightings_main_tbl,MATCH(D1,weightings_credit_lst,0),2) -> Organisational structure, roles and responsibilities | T1: =D1&" Verification" -> Man-3 Verification | AD1: =D1&" Verifier area (confidential)" -> Man-3 Verifier area (confidential)
B2: Credit Summary Form
B4: Section 1: Credit response
I6: Materiality:
I7: =INDEX(mat_table,MATCH(INDEX(weightings_main_tbl,MATCH(D1,weightings_credit_lst,0),13),mat_code,0),2) -> Moderate (2) | M7: Score | O7: Round Two | T7: Round One | Y7: Round Two
J9: Set credit target level: | M9: =K9/$K$11*$M$11 -> 0 | P9: Level verified: | U9: Level verified: | Z9: Level verified:
J11: Level available for this credit: | K11: =INDEX(summary_tbl_wide,MATCH(D1,summary_tbl_credits,0),7) -> 2 | M11: =ROUND(INDEX(weightings_main_tbl,MATCH(D1,weightings_credit_lst,0),18),2) -> 1.12 | P11: Verified score: | Q11: =Q9/$K$11*$M$11 -> 0 | U11: Verified score: | V11: =V9/$K$11*$M$11 -> 0 | Z11: Verified score: | AA11: =AA9/$K$11*$M$11 -> 0
C13: Level 1 | E13: =MIN(E14:E17) -> 0 | F13: Level 2 | H13: =MIN(H14:H16) -> 0
B14: Benchmark | C14: A member(s) of the senior management team has central responsibility for managing sustainability. | E14: 0 | F14: The requirements for Level 1 are achieved | H14: =E13 -> 0 | I14: Not applicable
C15: AND | F15: AND
C16: A principal participant in the asset management/ operations team is an IS Accredited Professional whose role is to provide sustainability advice | E16: 0 | F16: An independent sustainability professional is engaged to monitor and review sustainability performance | H16: 0
J19: Working score: | K19: =IF(K30="Y",K38,E13+H13) -> 0 | M19: =K19/$K$11*$M$11 -> 0
B20: Warnings | D20: Check ruling details | E20: =IF(K30="N",1,IF(OR(J36="",K38=""),0,1)) -> 0
J21: Set level assessed round 1: | M21: =K21/$K$11*$M$11 -> 0
D22: Check additional guidance | E22: =IF(SUM(L89:L95)>=1,0,1) -> 1
J23: Set level assessed round 2: | M23: =K23/$K$11*$M$11 -> 0
D24: Check evidence | E24: =IF(K117<K115,0,1) -> 0
B28: Section 2: Rulings
J30: Is a ruling used for this credit?
I36: Ruling number:
J38: New working score using ruling: | M38: =K38/$K$11*$M$11 -> 0
B41: Ruling description text box (copy from spreadsheet): | O41: Verification comment on ruling | T41: Verification comment on ruling | Y41: Verification comment on ruling
B49: Additional comments text box (as required)
B59: Section 3: Description of how criteria were met
AH64: Level verified: | AP64: Level verified: | AX64: Level verified: | BF64: Level verified:
B66: =D1 -> Man-3 | C66: How were the criteria met? (enter explanation in text boxes) | O66: Verification comment Round 2 | T66: Verification comment Round 1 | Y66: Verification comment Round 2 | AE66: Verifier 1 Round 1 comments | AM66: Verifier 2 Round 1 comments | AU66: Verifier 1 Round 2 comments | BC66: Verifier 2 Round 2 comments
B67: Level 1 | N67: Level 1 | AD67: Level 1 | AJ67: 0 | AL67: Level 1 | AR67: 0 | AT67: Level 1 | AZ67: 0 | BB67: Level 1 | BH67: 0
B74: Level 2 | N74: Level 2 | AD74: Level 2 | AJ74: 0 | AL74: Level 2 | AR74: 0 | AT74: Level 2 | AZ74: 0 | BB74: Level 2 | BH74: 0
B83: Section 4: Additional guidance ('must' statements)
B87: =D1 -> Man-3 | C87: Additional guidance items (must statements)
B88: Level | C88: Must statements | K88: OK | L88: Calc | AE88: Verifier comment | AJ88: OK | AM88: Verifier comment | AR88: OK | AU88: Verifier comment | AZ88: OK | BC88: Verifier comment | BH88: OK
B89: 1 | C89: The IS Accredited Professional (ISAP) participated throughout the rating | K89: 0 | L89: =IF(AND(B89<=$K$19,K89=0),1,0) -> 0 | AJ89: 0 | AR89: 0 | AZ89: 0 | BH89: 0
B90: 1 | C90: Evidence of ongoing involvement is provided | K90: 0 | L90: =IF(AND(B90<=$K$19,K90=0),1,0) -> 0 | AJ90: 0 | AR90: 0 | AZ90: 0 | BH90: 0
B91: 2 | C91: The independent sustainability professional has at least 10 years’ experience practicing in one or more of these aspects | K91: 0 | L91: 0 | AJ91: 0 | AR91: 0 | AZ91: 0 | BH91: 0
B92: 2 | C92: The independent sustainability professional has at least five years’ experience providing sustainability advice | K92: 0 | L92: 0 | AJ92: 0 | AR92: 0 | AZ92: 0 | BH92: 0
B93: 2 | C93: The independent sustainability professional has no vested interest in the asset/network | K93: 0 | L93: 0 | AJ93: 0 | AR93: 0 | AZ93: 0 | BH93: 0
B94: 2 | C94: To demonstrate independence, the person(s) must not work directly on the asset/network | K94: 0 | L94: 0 | AJ94: 0 | AR94: 0 | AZ94: 0 | BH94: 0
B95: 2 | C95: To demonstrate independence, the person(s) must be engaged to act independently of the asset/network | K95: 0 | L95: 0 | AJ95: 0 | AR95: 0 | AZ95: 0 | BH95: 0
B96: 2 | C96: This independent sustainability professional must not be involved in any activities in relation to the asset/network which would undermine their independence | K96: 0 | L96: =IF(AND(B96<=$K$19,K96=0),1,0) -> 0 | AJ96: 0 | AR96: 0 | AZ96: 0 | BH96: 0
B100: Section 5: Evidence
B107: =D1 -> Man-3 | C107: Evidence documents
C108: Ref. code | D108: Credit level | E108: Name of document | I108: Pinpoint reference | K108: OK
K109: 0
K110: 0
K111: 0
K112: 0
K113: 0
J115: Number of documents: | K115: =COUNT(K109:K113) -> 5
J117: Number OK: | K117: =SUM(K109:K113) -> 0
B120: Assessor notes and project management
J123: ="Target level for "&D1&":" -> Target level for Man-3: | K123: =K9 -> 0
I125: Indicative cost: | J125: < Select > | K125: =INDEX(risk_achieve_table,MATCH(J125,risk_of_achieve,0),2) -> 3
I127: Difficulty: | J127: < Select > | K127: =INDEX(risk_achieve_table,MATCH(J127,risk_of_achieve,0),2) -> 3
I129: Risk of non-achievement: | J129: < Select > | K129: =INDEX(risk_achieve_table,MATCH(J129,risk_of_achieve,0),2) -> 3
I131: Overall status of credit: | J131: < Select > | K131: =INDEX(lists_actions_status,MATCH(J131,lists_actions_key,0),2) -> 1
B133: =D1 -> Man-3 | C133: Notes
B134: General comments
B141: =D1 -> Man-3 | C141: Actions to address this credit
C142: ID | D142: Action description | I142: Owner | J142: Status | L142: Date | U142: Credit | V142: ID | W142: Action description | X142: Owner | Y142: Date | Z142: Status | AA142: x
J143: < Select > | K143: =INDEX(lists_actions_status,MATCH(J143,lists_actions_key,0),2) -> 1 | U143: =$D$1 -> Man-3 | V143: =IF(C143="","",C143) ->  | W143: =IF(D143="","",D143) ->  | X143: =IF(I143="","",I143) ->  | Y143: =IF(L143="","",L143) ->  | Z143: =IF(J143="< Select >","",J143) ->  | AA143: =K143 -> 1
J144: < Select > | K144: =INDEX(lists_actions_status,MATCH(J144,lists_actions_key,0),2) -> 1 | U144: =$D$1 -> Man-3 | V144: =IF(C144="","",C144) ->  | X144: =IF(I144="","",I144) ->  | Y144: =IF(L144="","",L144) ->  | Z144: =IF(J144="< Select >","",J144) ->  | AA144: =K144 -> 1
J145: < Select > | K145: =INDEX(lists_actions_status,MATCH(J145,lists_actions_key,0),2) -> 1 | U145: Man-3 | AA145: 1
J146: < Select > | K146: =INDEX(lists_actions_status,MATCH(J146,lists_actions_key,0),2) -> 1 | U146: Man-3 | AA146: 1
J147: < Select > | K147: =INDEX(lists_actions_status,MATCH(J147,lists_actions_key,0),2) -> 1 | U147: Man-3 | AA147: 1
B151: Cost-benefit tracking
B154: =D1 -> Man-3 | C154: Collection of cost-benefit data
C155: Initative name | F155: Cost ($k) | G155: Benefit ($k) | H155: Comments
C161: Total: | F161: =SUM(F156:F160) -> 0 | G161: =SUM(G156:G160) -> 0

Sheet Man-4 (hidden)
D1: Man-4 | E1: =INDEX(weightings_main_tbl,MATCH(D1,weightings_credit_lst,0),2) -> Inspection and auditing | T1: =D1&" Verification" -> Man-4 Verification | AD1: =D1&" Verifier area (confidential)" -> Man-4 Verifier area (confidential)
B2: Credit Summary Form
B4: Section 1: Credit response
I6: Materiality:
I7: =INDEX(mat_table,MATCH(INDEX(weightings_main_tbl,MATCH(D1,weightings_credit_lst,0),13),mat_code,0),2) -> Moderate (2) | M7: Score | O7: Round Two | T7: Round One | Y7: Round Two
J9: Set credit target level: | M9: =K9/$K$11*$M$11 -> 0 | P9: Level verified: | U9: Level verified: | Z9: Level verified:
J11: Level available for this credit: | K11: =INDEX(summary_tbl_wide,MATCH(D1,summary_tbl_credits,0),7) -> 2 | M11: =ROUND(INDEX(weightings_main_tbl,MATCH(D1,weightings_credit_lst,0),18),2) -> 1.12 | P11: Verified score: | Q11: =Q9/$K$11*$M$11 -> 0 | U11: Verified score: | V11: =V9/$K$11*$M$11 -> 0 | Z11: Verified score: | AA11: =AA9/$K$11*$M$11 -> 0
B13: Benchmark | C13: Level 1 | E13: =MIN(E14:E18) -> 0 | F13: Level 2 | H13: =MIN(H14:H18) -> 0
C14: Internal environmental inspections of site management are undertaken at least weekly during construction. | E14: 0 | F14: Internal sustainability inspections of site management are undertaken at least weekly during construction. | H14: =E13 -> 0 | I14: Not applicable
C15: AND | F15: AND
C16: Environmental audits of the management system are conducted. At least one external review or audit is conducted during design. | E16: 0 | F16: Sustainability audits of the management system are conducted. At least one external review or audit is conducted during design. | H16: 0
C17: AND | E17: 0 | F17: AND | H17: 0
C18: During construction at least four audits are conducted per year where at least one is external. | F18: During construction at least four audits are conducted per year where at least one is external.
J19: Working level: | K19: =IF(K30="Y",K38,E13+H13) -> 0 | M19: =K19/$K$11*$M$11 -> 0
B20: Warnings | D20: Check ruling details | E20: =IF(K30="N",1,IF(OR(J36="",K38=""),0,1)) -> 0
J21: Set level assessed round 1: | M21: =K21/$K$11*$M$11 -> 0
D22: Check additional guidance | E22: =IF(SUM(L89:L93)>=1,0,1) -> 1
J23: Set level assessed round 2: | M23: =K23/$K$11*$M$11 -> 0
D24: Check evidence | E24: =IF(K114<K112,0,1) -> 0
B28: Section 2: Rulings
J30: Is a ruling used for this credit?
I36: Ruling number:
J38: New working score using ruling: | M38: =K38/$K$11*$M$11 -> 0
B41: Ruling description text box (copy from spreadsheet): | O41: Verification comment on ruling | T41: Verification comment on ruling | Y41: Verification comment on ruling
B49: Additional comments text box (as required)
B59: Section 3: Description of how criteria were met
AH64: Level verified: | AP64: Level verified: | AX64: Level verified: | BF64: Level verified:
B66: =D1 -> Man-4 | C66: How were the criteria met? (enter explanation in text boxes) | O66: Verification comment Round 2 | T66: Verification comment Round 1 | Y66: Verification comment Round 2 | AE66: Verifier 1 Round 1 comments | AM66: Verifier 2 Round 1 comments | AU66: Verifier 1 Round 2 comments | BC66: Verifier 2 Round 2 comments
B67: Level 1 | N67: Level 1 | AD67: Level 1 | AJ67: 0 | AL67: Level 1 | AR67: 0 | AT67: Level 1 | AZ67: 0 | BB67: Level 1 | BH67: 0
B74: Level 2 | N74: Level 2 | AD74: Level 2 | AJ74: 0 | AL74: Level 2 | AR74: 0 | AT74: Level 2 | AZ74: 0 | BB74: Level 2 | BH74: 0
B83: Section 4: Additional guidance ('must' statements)
B87: =D1 -> Man-4 | C87: Additional guidance items (must statements)
B88: Level | C88: Must statements | K88: OK | L88: Calc | AE88: Verifier comment | AJ88: OK | AM88: Verifier comment | AR88: OK | AU88: Verifier comment | AZ88: OK | BC88: Verifier comment | BH88: OK
B89: 1 | C89: Internal inspections must be undertaken by a manager, a sustainability or environmental professional, as appropriate | K89: 0 | L89: =IF(AND(B89<=$K$19,K89=0),1,0) -> 0 | AJ89: 0 | AR89: 0 | AZ89: 0 | BH89: 0
B90: 1 | C90: Sustainability inspections must use a checklist which covers environmental and social aspects and the inspection must be documented in a report. | K90: 0 | L90: =IF(AND(B90<=$K$19,K90=0),1,0) -> 0
B91: 1 | C91: For the construction phase, at least four audits per year must be undertaken where at least one is external. | K91: 0 | L91: 0 | AJ91: 0 | AR91: 0 | AZ91: 0 | BH91: 0
B92: 1 | C92: External audits must be conducted by a suitably qualified auditor who is not part of the asset management/operations team | K92: 0 | L92: 0 | AJ92: 0 | AR92: 0 | AZ92: 0 | BH92: 0
B93: 1 | C93: Audit reports demonstrate that these requirements have been fulfilled | K93: 0 | L93: 0 | AJ93: 0 | AR93: 0 | AZ93: 0 | BH93: 0
B97: Section 5: Evidence
B104: =D1 -> Man-4 | C104: Evidence documents
C105: Ref. code | D105: Credit level | E105: Name of document | I105: Pinpoint reference | K105: OK
K106: 0
K107: 0
K108: 0
K109: 0
K110: 0
J112: Number of documents: | K112: =COUNT(K106:K110) -> 5
J114: Number OK: | K114: =SUM(K106:K110) -> 0
B117: Assessor notes and project management
J120: ="Target level for "&D1&":" -> Target level for Man-4: | K120: =K9 -> 0
I122: Indicative cost: | J122: < Select > | K122: =INDEX(risk_achieve_table,MATCH(J122,risk_of_achieve,0),2) -> 3
I124: Difficulty: | J124: < Select > | K124: =INDEX(risk_achieve_table,MATCH(J124,risk_of_achieve,0),2) -> 3
I126: Risk of non-achievement: | J126: < Select > | K126: =INDEX(risk_achieve_table,MATCH(J126,risk_of_achieve,0),2) -> 3
I128: Overall status of credit: | J128: < Select > | K128: =INDEX(lists_actions_status,MATCH(J128,lists_actions_key,0),2) -> 1
B130: =D1 -> Man-4 | C130: Notes
B131: General comments
B138: =D1 -> Man-4 | C138: Actions to address this credit
C139: ID | D139: Action description | I139: Owner | J139: Status | L139: Date | U139: Credit | V139: ID | W139: Action description | X139: Owner | Y139: Date | Z139: Status | AA139: x
J140: < Select > | K140: =INDEX(lists_actions_status,MATCH(J140,lists_actions_key,0),2) -> 1 | U140: =$D$1 -> Man-4 | V140: =IF(C140="","",C140) ->  | W140: =IF(D140="","",D140) ->  | X140: =IF(I140="","",I140) ->  | Y140: =IF(L140="","",L140) ->  | Z140: =IF(J140="< Select >","",J140) ->  | AA140: =K140 -> 1
J141: < Select > | K141: =INDEX(lists_actions_status,MATCH(J141,lists_actions_key,0),2) -> 1 | U141: =$D$1 -> Man-4 | V141: =IF(C141="","",C141) ->  | X141: =IF(I141="","",I141) ->  | Y141: =IF(L141="","",L141) ->  | Z141: =IF(J141="< Select >","",J141) ->  | AA141: =K141 -> 1
J142: < Select > | K142: =INDEX(lists_actions_status,MATCH(J142,lists_actions_key,0),2) -> 1 | U142: Man-4 | AA142: 1
J143: < Select > | K143: =INDEX(lists_actions_status,MATCH(J143,lists_actions_key,0),2) -> 1 | T143: ` | U143: Man-4 | AA143: 1
J144: < Select > | K144: =INDEX(lists_actions_status,MATCH(J144,lists_actions_key,0),2) -> 1 | U144: Man-4 | AA144: 1
B148: Cost-benefit tracking
B151: =D1 -> Man-4 | C151: Collection of cost-benefit data
C152: Initative name | F152: Cost ($k) | G152: Benefit ($k) | H152: Comments
C158: Total: | F158: =SUM(F153:F157) -> 0 | G158: =SUM(G153:G157) -> 0

Sheet Man-5 (hidden)
D1: Man-5 | E1: =INDEX(weightings_main_tbl,MATCH(D1,weightings_credit_lst,0),2) -> Reporting and review | T1: =D1&" Verification" -> Man-5 Verification | AD1: =D1&" Verifier area (confidential)" -> Man-5 Verifier area (confidential)
B2: Credit Summary Form
B4: Section 1: Credit response
I6: Materiality:
I7: =INDEX(mat_table,MATCH(INDEX(weightings_main_tbl,MATCH(D1,weightings_credit_lst,0),13),mat_code,0),2) -> Moderate (2) | M7: Score | O7: Round Two | T7: Round One | Y7: Round Two
J9: Set credit target level: | K9: 0 | M9: =K9/$K$11*$M$11 -> 0 | P9: Level verified: | U9: Level verified: | Z9: Level verified:
J11: Level available for this credit: | K11: =INDEX(summary_tbl_wide,MATCH(D1,summary_tbl_credits,0),7) -> 3 | M11: =ROUND(INDEX(weightings_main_tbl,MATCH(D1,weightings_credit_lst,0),16),2) -> 1 | P11: Verified score: | Q11: =Q9/$K$11*$M$11 -> 0 | U11: Verified score: | V11: =V9/$K$11*$M$11 -> 0 | Z11: Verified score: | AA11: =AA9/$K$11*$M$11 -> 0
B13: Benchmark | C13: Level 1 | E13: =MIN(E14:E18) -> 0 | F13: Level 2 | H13: =MIN(H14:H20) -> 0 | I13: Level 3 | K13: =MIN(K14:K18) -> 0
C14: Sustainability performance is reported at least annually to senior management | E14: 0 | F14: The requirements for Level 1 are achieved | H14: =E13 -> 0 | I14: The requirements for Level 2 are achieved | K14: =H13 -> 0
C15: AND | F15: AND | I15: AND
C16: The sustainability report includes sustainability objectives or targets and indicators and identifies areas for improvement | E16: 0 | F16: Sustainability performance is reported at least quarterly to senior management | H16: 0 | I16: Sustainability performance is reported annually publicly | K16: 0
C17: AND | E17: 0 | I17: AND | K17: 0
C18: Sustainability performance is reviewed formally, and at least annually, by senior management | I18: Management review incorporates stakeholder participation
J21: Working score: | K21: =IF(K32="Y",K40,E13+H13+K13) -> 0 | M21: =K21/$K$11*$M$11 -> 0
B22: Warnings | D22: Check ruling details | E22: =IF(K32="N",1,IF(OR(J38="",K40=""),0,1)) -> 0
J23: Set level assessed round 1: | M23: =K23/$K$11*$M$11 -> 0
D24: Check additional guidance | E24: =IF(SUM(L98:L98)>=1,0,1) -> 1
J25: Set level assessed round 2: | M25: =K25/$K$11*$M$11 -> 0
D26: Check evidence | E26: =IF(K122<K120,0,1) -> 0
B30: Section 2: Rulings
J32: Is a ruling used for this credit?
I38: Ruling number:
J40: New working score using ruling: | M40: =K40/$K$11*$M$11 -> 0
B43: Ruling description text box (copy from spreadsheet): | O43: Verification comment on ruling | T43: Verification comment on ruling | Y43: Verification comment on ruling
B51: Additional comments text box (as required)
B61: Section 3: Description of how criteria were met
AH66: Level verified: | AP66: Level verified: | AX66: Level verified: | BF66: Level verified:
B68: =D1 -> Man-5 | C68: How were the criteria met? (enter explanation in text boxes) | O68: Verification comment Round 2 | T68: Verification comment Round 1 | Y68: Verification comment Round 2 | AE68: Verifier 1 Round 1 comments | AM68: Verifier 2 Round 1 comments | AU68: Verifier 1 Round 2 comments | BC68: Verifier 2 Round 2 comments
B69: Level 1 | N69: Level 1 | AD69: Level 1 | AJ69: 0 | AL69: Level 1 | AR69: 0 | AT69: Level 1 | AZ69: 0 | BB69: Level 1 | BH69: 0
B76: Level 2 | N76: Level 2 | AD76: Level 2 | AJ76: 0 | AL76: Level 2 | AR76: 0 | AT76: Level 2 | AZ76: 0 | BB76: Level 2 | BH76: 0
B83: Level 3 | N83: Level 3 | AD83: Level 3 | AJ83: 0 | AL83: Level 3 | AR83: 0 | AT83: Level 3 | AZ83: 0 | BB83: Level 3 | BH83: 0
B92: Section 4: Additional guidance ('must' statements)
B96: =D1 -> Man-5 | C96: Additional guidance items (must statements)
B97: Level | C97: Must statements | K97: OK | L97: Calc | AE97: Verifier comment | AJ97: OK | AM97: Verifier comment | AR97: OK | AU97: Verifier comment | AZ97: OK | BC97: Verifier comment | BH97: OK
B98: 1 | C98: Sustainability reporting hasn't been ‘rolled up’ into a parent organisation corporate sustainability report except where relevant project details (including objectives or targets, and indicators) are reported as a separable subset. | K98: 0 | L98: =IF(AND(B98<=$K$21,K98=0),1,0) -> 0 | AJ98: 0 | AR98: 0 | AZ98: 0 | BH98: 0
B102: Section 5: Evidence
B109: =D1 -> Man-5 | C109: Evidence documents
C110: Ref. code | D110: Credit level | E110: Name of document | I110: Pinpoint reference | K110: OK
K111: 0
K112: 0
K113: 0
K114: 0
K115: 0
K116: 0
K117: 0
J120: Number of documents: | K120: =COUNT(K111:K117) -> 7
J122: Number OK: | K122: =SUM(K111:K117) -> 0
B125: Assessor notes and project management
J128: ="Target level for "&D1&":" -> Target level for Man-5: | K128: =man1tl -> 0
I130: Indicative cost: | J130: < Select > | K130: =INDEX(risk_achieve_table,MATCH(J130,risk_of_achieve,0),2) -> 3
I132: Difficulty: | J132: < Select > | K132: =INDEX(risk_achieve_table,MATCH(J132,risk_of_achieve,0),2) -> 3
I134: Risk of non-achievement: | J134: < Select > | K134: =INDEX(risk_achieve_table,MATCH(J134,risk_of_achieve,0),2) -> 3
I136: Overall status of credit: | J136: < Select > | K136: =INDEX(lists_actions_status,MATCH(J136,lists_actions_key,0),2) -> 1
B138: =D1 -> Man-5 | C138: Notes
B139: General comments
B146: =D1 -> Man-5 | C146: Actions to address this credit
C147: ID | D147: Action description | I147: Owner | J147: Status | L147: Date | U147: Credit | V147: ID | W147: Action description | X147: Owner | Y147: Date | Z147: Status | AA147: x
J148: < Select > | K148: =INDEX(lists_actions_status,MATCH(J148,lists_actions_key,0),2) -> 1 | U148: =$D$1 -> Man-5 | V148: =IF(C148="","",C148) ->  | W148: =IF(D148="","",D148) ->  | X148: =IF(I148="","",I148) ->  | Y148: =IF(L148="","",L148) ->  | Z148: =IF(J148="< Select >","",J148) ->  | AA148: =K148 -> 1
J149: < Select > | K149: =INDEX(lists_actions_status,MATCH(J149,lists_actions_key,0),2) -> 1 | U149: =$D$1 -> Man-5 | V149: =IF(C149="","",C149) ->  | X149: =IF(I149="","",I149) ->  | Y149: =IF(L149="","",L149) ->  | Z149: =IF(J149="< Select >","",J149) ->  | AA149: =K149 -> 1
J150: < Select > | K150: =INDEX(lists_actions_status,MATCH(J150,lists_actions_key,0),2) -> 1 | U150: Man-5 | AA150: 1
J151: < Select > | K151: =INDEX(lists_actions_status,MATCH(J151,lists_actions_key,0),2) -> 1 | U151: Man-5 | W151: =IF(D151="","",D151) ->  | AA151: 1
J152: < Select > | K152: =INDEX(lists_actions_status,MATCH(J152,lists_actions_key,0),2) -> 1 | U152: Man-5 | W152: =IF(D152="","",D152) ->  | AA152: 1
B156: Cost-benefit tracking
B159: =D1 -> Man-5 | C159: Collection of cost-benefit data
C160: Initative name | F160: Cost ($k) | G160: Benefit ($k) | H160: Comments
C166: Total: | F166: =SUM(F161:F165) -> 0 | G166: =SUM(G161:G165) -> 0

Sheet Man-6 (hidden)
D1: Man-6 | E1: =INDEX(weightings_main_tbl,MATCH(D1,weightings_credit_lst,0),2) -> Knowledge sharing | T1: =D1&" Verification" -> Man-6 Verification | AD1: =D1&" Verifier area (confidential)" -> Man-6 Verifier area (confidential)
B2: Credit Summary Form
B4: Section 1: Credit response
I6: Materiality:
I7: =INDEX(mat_table,MATCH(INDEX(weightings_main_tbl,MATCH(D1,weightings_credit_lst,0),13),mat_code,0),2) -> Moderate (2) | M7: Score | O7: Round Two | T7: Round One | Y7: Round Two
J9: Set credit target level: | M9: =K9/$K$11*$M$11 -> 0 | P9: Level verified: | U9: Level verified: | Z9: Level verified:
J11: Level available for this credit: | K11: =INDEX(summary_tbl_wide,MATCH(D1,summary_tbl_credits,0),7) -> 3 | M11: =ROUND(INDEX(weightings_main_tbl,MATCH(D1,weightings_credit_lst,0),18),2) -> 2.51 | P11: Verified score: | Q11: =Q9/$K$11*$M$11 -> 0 | U11: Verified score: | V11: =V9/$K$11*$M$11 -> 0 | Z11: Verified score: | AA11: =AA9/$K$11*$M$11 -> 0
B13: Benchmark | C13: Level 1 | E13: =MIN(E14:E18) -> 0 | F13: Level 2 | H13: =MIN(H14:H18) -> 0 | I13: Level 3 | K13: =MIN(K14:K18) -> 0
C14: Sustainability knowledge is shared within the asset/network management and/or operations team (minimum of one example) | E14: 0 | F14: The requirements for Level 1 are achieved | H14: =E13 -> 0 | I14: The requirements for Level 2 are achieved | K14: =H13 -> 0
F15: AND | I15: AND
F16: Sustainability knowledge is shared beyond asset/network management and/or operations organisational boundaries to parent organisations and/or other key stakeholders | H16: 0 | I16: Sustainability knowledge is shared beyond the asset/network management and/or operations organisational asset management/operations team and key stakeholder boundaries to wider industry | K16: 0
F17: AND | H17: 0 | I17: AND | K17: 0
F18: Sustainability knowledge is shared from outside the asset/network into the asset/network operation management team organisational (minimum of two examples) | I18: Sustainability knowledge sharing includes 'lessons learnt’ (that had negative consequences) as well as 'good practices' (minimum of three examples)
J21: Working level: | K21: =IF(K32="Y",K40,E13+H13+K13) -> 0 | M21: =K21/$K$11*$M$11 -> 0
B22: Warnings | D22: Check ruling details | E22: =IF(K32="N",1,IF(OR(J38="",K40=""),0,1)) -> 0
J23: Set level assessed round 1: | M23: =K23/$K$11*$M$11 -> 0
D24: Check additional guidance | E24: =IF(SUM(L98:L101)>=1,0,1) -> 1
J25: Set level assessed round 2: | M25: =K25/$K$11*$M$11 -> 0
D26: Check evidence | E26: =IF(K123<K121,0,1) -> 0
B30: Section 2: Rulings
J32: Is a ruling used for this credit?
I38: Ruling number:
J40: New working score using ruling: | M40: =K40/$K$11*$M$11 -> 0
B43: Ruling description text box (copy from spreadsheet): | O43: Verification comment on ruling | T43: Verification comment on ruling | Y43: Verification comment on ruling
B51: Additional comments text box (as required)
B61: Section 3: Description of how criteria were met
AH66: Level verified: | AP66: Level verified: | AX66: Level verified: | BF66: Level verified:
B68: =D1 -> Man-6 | C68: How were the criteria met? (enter explanation in text boxes) | O68: Verification comment Round 2 | T68: Verification comment Round 1 | Y68: Verification comment Round 2 | AE68: Verifier 1 Round 1 comments | AM68: Verifier 2 Round 1 comments | AU68: Verifier 1 Round 2 comments | BC68: Verifier 2 Round 2 comments
B69: Level 1 | N69: Level 1 | AD69: Level 1 | AJ69: 0 | AL69: Level 1 | AR69: 0 | AT69: Level 1 | AZ69: 0 | BB69: Level 1 | BH69: 0
B76: Level 2 | N76: Level 2 | AD76: Level 2 | AJ76: 0 | AL76: Level 2 | AR76: 0 | AT76: Level 2 | AZ76: 0 | BB76: Level 2 | BH76: 0
B83: Level 3 | N83: Level 3 | AD83: Level 3 | AJ83: 0 | AL83: Level 3 | AR83: 0 | AT83: Level 3 | AZ83: 0 | BB83: Level 3 | BH83: 0
B92: Section 4: Additional guidance ('must' statements)
B96: =D1 -> Man-6 | C96: Additional guidance items (must statements)
B97: Level | C97: Must statements | K97: OK | L97: Calc | AE97: Verifier comment | AJ97: OK | AM97: Verifier comment | AR97: OK | AU97: Verifier comment | AZ97: OK | BC97: Verifier comment | BH97: OK
B98: 1 | C98: Examples of sustainability knowledge sharing are provided | K98: 0 | L98: =IF(AND(B98<=$K$21,K98=0),1,0) -> 0 | AJ98: 0 | AR98: 0 | AZ98: 0 | BH98: 0
B99: 1 | C99: Each criterion within each benchmark level must be demonstrated by at least 1 example of knowledge sharing | K99: 0 | L99: =IF(AND(B99<=$K$21,K99=0),1,0) -> 0 | AJ99: 0 | AR99: 0 | AZ99: 0 | BH99: 0
B100: 2 | C100: The knowledge sharing examples include at least 1 simple cost benefit case study associated with applying the rating scheme or one simple cost benefit case study for a sustainability related initiative | K100: 0 | L100: 0 | AJ100: 0 | AR100: 0 | AZ100: 0 | BH100: 0
B101: 2 | C101: At least 2 unique examples are provided | K101: 0 | L101: 0 | AJ101: 0 | AR101: 0 | AZ101: 0 | BH101: 0
B102: 3 | C102: At least 3 unique examples are provided | K102: 0 | L102: =IF(AND(B102<=$K$21,K102=0),1,0) -> 0 | AJ102: 0 | AR102: 0 | AZ102: 0 | BH102: 0
B106: Section 5: Evidence
B113: =D1 -> Man-6 | C113: Evidence documents
C114: Ref. code | D114: Credit level | E114: Name of document | I114: Pinpoint reference | K114: OK
K115: 0
K116: 0
K117: 0
K118: 0
K119: 0
J121: Number of documents: | K121: =COUNT(K115:K119) -> 5
J123: Number OK: | K123: =SUM(K115:K119) -> 0
B126: Assessor notes and project management
J129: ="Target level for "&D1&":" -> Target level for Man-6: | K129: =K9 -> 0
I131: Indicative cost: | J131: < Select > | K131: =INDEX(risk_achieve_table,MATCH(J131,risk_of_achieve,0),2) -> 3
I133: Difficulty: | J133: < Select > | K133: =INDEX(risk_achieve_table,MATCH(J133,risk_of_achieve,0),2) -> 3
I135: Risk of non-achievement: | J135: < Select > | K135: =INDEX(risk_achieve_table,MATCH(J135,risk_of_achieve,0),2) -> 3
I137: Overall status of credit: | J137: < Select > | K137: =INDEX(lists_actions_status,MATCH(J137,lists_actions_key,0),2) -> 1
B139: =D1 -> Man-6 | C139: Notes
B140: General comments
B147: =D1 -> Man-6 | C147: Actions to address this credit
C148: ID | D148: Action description | I148: Owner | J148: Status | L148: Date | U148: Credit | V148: ID | W148: Action description | X148: Owner | Y148: Date | Z148: Status | AA148: x
J149: < Select > | K149: =INDEX(lists_actions_status,MATCH(J149,lists_actions_key,0),2) -> 1 | U149: =$D$1 -> Man-6 | V149: =IF(C149="","",C149) ->  | W149: =IF(D149="","",D149) ->  | X149: =IF(I149="","",I149) ->  | Y149: =IF(L149="","",L149) ->  | Z149: =IF(J149="< Select >","",J149) ->  | AA149: =K149 -> 1
J150: < Select > | K150: =INDEX(lists_actions_status,MATCH(J150,lists_actions_key,0),2) -> 1 | U150: =$D$1 -> Man-6 | V150: =IF(C150="","",C150) ->  | X150: =IF(I150="","",I150) ->  | Y150: =IF(L150="","",L150) ->  | Z150: =IF(J150="< Select >","",J150) ->  | AA150: =K150 -> 1
J151: < Select > | K151: =INDEX(lists_actions_status,MATCH(J151,lists_actions_key,0),2) -> 1 | U151: Man-6 | AA151: 1
J152: < Select > | K152: =INDEX(lists_actions_status,MATCH(J152,lists_actions_key,0),2) -> 1 | U152: Man-6 | AA152: 1
J153: < Select > | K153: =INDEX(lists_actions_status,MATCH(J153,lists_actions_key,0),2) -> 1 | U153: Man-6 | AA153: 1
B157: Cost-benefit tracking
B160: =D1 -> Man-6 | C160: Collection of cost-benefit data
C161: Initative name | F161: Cost ($k) | G161: Benefit ($k) | H161: Comments
C167: Total: | F167: =SUM(F162:F166) -> 0 | G167: =SUM(G162:G166) -> 0

Sheet Man-7 (hidden)
D1: Man-7 | E1: =INDEX(weightings_main_tbl,MATCH(D1,weightings_credit_lst,0),2) -> Decision making | T1: =D1&" Verification" -> Man-7 Verification | AD1: =D1&" Verifier area (confidential)" -> Man-7 Verifier area (confidential)
B2: Credit Summary Form
B4: Section 1: Credit response
I6: Materiality:
I7: =INDEX(mat_table,MATCH(INDEX(weightings_main_tbl,MATCH(D1,weightings_credit_lst,0),13),mat_code,0),2) -> Moderate (2) | M7: Score | O7: Round Two | T7: Round One | Y7: Round Two
J9: Set credit target level: | M9: =K9/$K$11*$M$11 -> 0 | P9: Level verified: | U9: Level verified: | Z9: Level verified:
J11: Level available for this credit: | K11: =INDEX(summary_tbl_wide,MATCH(D1,summary_tbl_credits,0),7) -> 3 | M11: =ROUND(INDEX(weightings_main_tbl,MATCH(D1,weightings_credit_lst,0),18),2) -> 3.63 | P11: Verified score: | Q11: =Q9/$K$11*$M$11 -> 0 | U11: Verified score: | V11: =V9/$K$11*$M$11 -> 0 | Z11: Verified score: | AA11: =AA9/$K$11*$M$11 -> 0
B13: Benchmark | C13: Level 1 | E13: =MIN(E14:E19) -> 0 | F13: Level 2 | H13: =MIN(H14:H21) -> 0 | K13: =MIN(K14:K21) -> 0
C14: For significant issues, decision making is characterised by:
C15: - Considering options including business as usual and proven approaches taken in comparable situations | E15: 0 | F15: - Considering options including business as usual and proven approaches taken in comparable situations | H15: 0 | I15: - Considering options including business as usual, non-asset, technical limits and an option that specifically aims to address sustainability aspects | K15: 0
C16: AND | F16: AND | I16: AND
C17: - Evaluating options primarily on the basis of financial aspects but considering environmental, social and economic aspects qualitatively through risk assessment, constraint analysis or other non-scored means | E17: 0 | F17: - Evaluating options by considering environmental, social and economic aspects through the use of multi-criteria analysis or other scored means | H17: 0 | I17: - Evaluating options by considering environmental, social and economic aspects through incorporating their value into cost-benefit analysis or other quantified means | K17: 0
C18: AND | E18: 0 | F18: AND | H18: 0 | I18: AND | K18: 0
C19: - Evaluating options based on the forecast useful life of the infrastructure asset/network | F19: - Evaluating options based on the forecast useful life of the infrastructure asset/network | I19: - Evaluating options based on the forecast useful life of the infrastructure asset and using social rates of return for discounting
J22: Working score: | K22: =IF(K33="Y",K41,E13+H13+K13) -> 0 | M22: =K22/$K$11*$M$11 -> 0
B23: Warnings | D23: Check ruling details | E23: =IF(K33="N",1,IF(OR(J39="",K41=""),0,1)) -> 0
J24: Set level assessed round 1: | M24: =K24/$K$11*$M$11 -> 0
D25: Check additional guidance | E25: =IF(SUM(L99:L110)>=1,0,1) -> 1
J26: Set level assessed round 2: | M26: =K26/$K$11*$M$11 -> 0
D27: Check evidence | E27: =IF(K131<K129,0,1) -> 0
B31: Section 2: Rulings
J33: Is a ruling used for this credit?
I39: Ruling number:
J41: New working score using ruling: | M41: =K41/$K$11*$M$11 -> 0
B44: Ruling description text box (copy from spreadsheet): | O44: Verification comment on ruling | T44: Verification comment on ruling | Y44: Verification comment on ruling
B52: Additional comments text box (as required)
B62: Section 3: Description of how criteria were met
AH67: Level verified: | AP67: Level verified: | AX67: Level verified: | BF67: Level verified:
B69: =D1 -> Man-7 | C69: How were the criteria met? (enter explanation in text boxes) | O69: Verification comment Round 2 | T69: Verification comment Round 1 | Y69: Verification comment Round 2 | AE69: Verifier 1 Round 1 comments | AM69: Verifier 2 Round 1 comments | AU69: Verifier 1 Round 2 comments | BC69: Verifier 2 Round 2 comments
B70: Level 1 | N70: Level 1 | AD70: Level 1 | AJ70: 0 | AL70: Level 1 | AR70: 0 | AT70: Level 1 | AZ70: 0 | BB70: Level 1 | BH70: 0
B77: Level 2 | N77: Level 2 | AD77: Level 2 | AJ77: 0 | AL77: Level 2 | AR77: 0 | AT77: Level 2 | AZ77: 0 | BB77: Level 2 | BH77: 0
B84: Level 3 | N84: Level 3 | AD84: Level 3 | AJ84: 0 | AL84: Level 3 | AR84: 0 | AT84: Level 3 | AZ84: 0 | BB84: Level 3 | BH84: 0
B93: Section 4: Additional guidance ('must' statements)
B97: =D1 -> Man-7 | C97: Additional guidance items (must statements)
B98: Level | C98: Must statements | K98: OK | L98: Calc | AE98: Verifier comment | AJ98: OK | AM98: Verifier comment | AR98: OK | AU98: Verifier comment | AZ98: OK | BC98: Verifier comment | BH98: OK
B99: 1 | C99: Significant decisions have been identified through risk/opportunities assessment, cost trigger or similar | K99: 0 | L99: =IF(AND(B99<=$K$22,K99=0),1,0) -> 0 | AJ99: 0 | AR99: 0 | AZ99: 0 | BH99: 0
B100: 1 | C100: The options analysed included at least a business as usual (BAU) option and proven approaches taken in comparable situations | K100: 0 | L100: =IF(AND(B100<=$K$22,K100=0),1,0) -> 0 | AJ100: 0 | AR100: 0 | AZ100: 0 | BH100: 0
B101: 1 | C101: Options were evaluated by considering environmental, social and economic aspects through the use of multi-criteria analysis or other non-scored means | K101: 0 | L101: 0 | AJ101: 0 | AR101: 0 | AZ101: 0 | BH101: 0
B102: 1 | C102: The evaluation considers the forecast useful life of the infrastructure, rather than take a narrow view of just operating or capital costs and benefits. | K102: 0 | L102: 0 | AJ102: 0 | AR102: 0 | AZ102: 0 | BH102: 0
B103: 2 | C103: Options were evaluated by considering environmental, social and economic aspects through the use of multi-criteria analysis or other scored means | K103: 0 | L103: 0 | AJ103: 0 | AR103: 0 | AZ103: 0 | BH103: 0
B104: 2 | C104: The analysis incorporated at least 1 sustainability (non-financial) criteria | K104: 0 | L104: 0 | AJ104: 0 | AR104: 0 | AZ104: 0 | BH104: 0
B105: 2 | C105: The weighting of the non-financial criteria was greater than 20% in total | K105: 0 | L105: 0 | AJ105: 0 | AR105: 0 | AZ105: 0 | BH105: 0
B106: 3 | C106: The options must include a BAU option, a non-asset option (i.e. one that uses no capital), an option at the technical limits and an option that specifically aims to address sustainability aspects | K106: 0 | L106: 0 | AJ106: 0 | AR106: 0 | AZ106: 0 | BH106: 0
B107: 1 | C107: If one of the specific options cannot be identified, then suitable justification is provided | K107: 0 | L107: 0 | AJ107: 0 | AR107: 0 | AZ107: 0 | BH107: 0
B108: 3 | C108: Options were evaluated by considering environmental, social and economic aspects through incorporating their value into cost-benefit analysis or other quantified means | K108: 0 | L108: 0 | AJ108: 0 | AR108: 0 | AZ108: 0 | BH108: 0
B109: 3 | C109: At least 1 significant environmental or social aspect has been included and the means of valuation has been described and justified | K109: 0 | L109: =IF(AND(B109<=$K$22,K109=0),1,0) -> 0 | AJ109: 0 | AR109: 0 | AZ109: 0 | BH109: 0
B110: 3 | C110: Cash flow discounting used in the analysis used social rates of return for discounting (typically less than 5%) and provided justification | K110: 0 | L110: =IF(AND(B110<=$K$22,K110=0),1,0) -> 0 | AJ110: 0 | AR110: 0 | AZ110: 0 | BH110: 0
B114: Section 5: Evidence
B121: =D1 -> Man-7 | C121: Evidence documents
C122: Ref. code | D122: Credit level | E122: Name of document | I122: Pinpoint reference | K122: OK
K123: 0
K124: 0
K125: 0
K126: 0
K127: 0
J129: Number of documents: | K129: =COUNT(K123:K127) -> 5
J131: Number OK: | K131: =SUM(K123:K127) -> 0
B134: Assessor notes and project management
J137: ="Target level for "&D1&":" -> Target level for Man-7: | K137: =K9 -> 0
I139: Indicative cost: | J139: < Select > | K139: =INDEX(risk_achieve_table,MATCH(J139,risk_of_achieve,0),2) -> 3
I141: Difficulty: | J141: < Select > | K141: =INDEX(risk_achieve_table,MATCH(J141,risk_of_achieve,0),2) -> 3
I143: Risk of non-achievement: | J143: < Select > | K143: =INDEX(risk_achieve_table,MATCH(J143,risk_of_achieve,0),2) -> 3
I145: Overall status of credit: | J145: < Select > | K145: =INDEX(lists_actions_status,MATCH(J145,lists_actions_key,0),2) -> 1
B147: =D1 -> Man-7 | C147: Notes
B148: General comments
B155: =D1 -> Man-7 | C155: Actions to address this credit
C156: ID | D156: Action description | I156: Owner | J156: Status | L156: Date | U156: Credit | V156: ID | W156: Action description | X156: Owner | Y156: Date | Z156: Status | AA156: x
J157: < Select > | K157: =INDEX(lists_actions_status,MATCH(J157,lists_actions_key,0),2) -> 1 | U157: =$D$1 -> Man-7 | V157: =IF(C157="","",C157) ->  | W157: =IF(D157="","",D157) ->  | X157: =IF(I157="","",I157) ->  | Y157: =IF(L157="","",L157) ->  | Z157: =IF(J157="< Select >","",J157) ->  | AA157: =K157 -> 1
J158: < Select > | K158: =INDEX(lists_actions_status,MATCH(J158,lists_actions_key,0),2) -> 1 | U158: =$D$1 -> Man-7 | V158: =IF(C158="","",C158) ->  | X158: =IF(I158="","",I158) ->  | Y158: =IF(L158="","",L158) ->  | Z158: =IF(J158="< Select >","",J158) ->  | AA158: =K158 -> 1
J159: < Select > | K159: =INDEX(lists_actions_status,MATCH(J159,lists_actions_key,0),2) -> 1 | U159: Man-7 | AA159: 1
J160: < Select > | K160: =INDEX(lists_actions_status,MATCH(J160,lists_actions_key,0),2) -> 1 | U160: Man-7 | AA160: 1
J161: < Select > | K161: =INDEX(lists_actions_status,MATCH(J161,lists_actions_key,0),2) -> 1 | U161: Man-7 | AA161: 1
B165: Cost-benefit tracking
B168: =D1 -> Man-7 | C168: Collection of cost-benefit data
C169: Initative name | F169: Cost ($k) | G169: Benefit ($k) | H169: Comments
C175: Total: | F175: =SUM(F170:F174) -> 0 | G175: =SUM(G170:G174) -> 0

Sheet Pro-1 (hidden)
D1: Pro-1 | E1: =INDEX(weightings_main_tbl,MATCH(D1,weightings_credit_lst,0),2) -> Commitment to sustainable procurement | T1: =D1&" Verification" -> Pro-1 Verification | AD1: =D1&" Verifier area (confidential)" -> Pro-1 Verifier area (confidential)
B2: Credit Summary Form
B4: Section 1: Credit response
I6: Materiality:
I7: =INDEX(mat_table,MATCH(INDEX(weightings_main_tbl,MATCH(D1,weightings_credit_lst,0),13),mat_code,0),2) -> Moderate (2) | M7: Score | O7: Round Two | T7: Round One | Y7: Round Two
J9: Set credit target level: | M9: =K9/$K$11*$M$11 -> 0 | P9: Level verified: | U9: Level verified: | Z9: Level verified:
J11: Level available for this credit: | K11: =INDEX(summary_tbl_wide,MATCH(D1,summary_tbl_credits,0),7) -> 3 | M11: =ROUND(INDEX(weightings_main_tbl,MATCH(D1,weightings_credit_lst,0),18),2) -> 1.4 | P11: Verified score: | Q11: =Q9/$K$11*$M$11 -> 0 | U11: Verified score: | V11: =V9/$K$11*$M$11 -> 0 | Z11: Verified score: | AA11: =AA9/$K$11*$M$11 -> 0
C13: Level 1 | E13: =MIN(E14:E17) -> 0 | F13: Level 2 | H13: =MIN(H14:H17) -> 0 | I13: Level 3 | K13: =MIN(K14:K17) -> 0
B14: Benchmark | C14: There is a commitment to require environmental aspects to be considered in the procurement process | E14: 0 | F14: There is a commitment to require sustainability aspects to be considered in the procurement process | H14: 0 | I14: The requirements for Level 2 are achieved | K14: =H13 -> 0
I15: AND | K15: 0
I16: The sustainable procurement commitments are publicly stated
I17: AND | K17: 0
I18: Sustainable procurement commitments are embedded into sustainability objectives and/or targets
J19: Working level: | K19: =IF(K30="Y",K38,E13+H13+K13) -> 0 | M19: =K19/$K$11*$M$11 -> 0
B20: Warnings | D20: Check ruling details | E20: =IF(K30="N",1,IF(OR(J36="",K38=""),0,1)) -> 0
J21: Set level assessed round 1: | M21: =K21/$K$11*$M$11 -> 0
D22: Check additional guidance | E22: =IF(SUM(L96:L100)>=1,0,1) -> 1
J23: Set level assessed round 2: | M23: =K23/$K$11*$M$11 -> 0
D24: Check evidence | E24: =IF(K123<K121,0,1) -> 0
B28: Section 2: Rulings
J30: Is a ruling used for this credit?
I36: Ruling number:
J38: New working score using ruling: | M38: =K38/$K$11*$M$11 -> 0
B41: Ruling description text box (copy from spreadsheet): | O41: Verification comment on ruling | T41: Verification comment on ruling | Y41: Verification comment on ruling
B49: Additional comments text box (as required)
B59: Section 3: Description of how criteria were met
AH64: Level verified: | AP64: Level verified: | AX64: Level verified: | BF64: Level verified:
B66: =D1 -> Pro-1 | C66: How were the criteria met? (enter explanation in text boxes) | O66: Verification comment Round 2 | T66: Verification comment Round 1 | Y66: Verification comment Round 2 | AE66: Verifier 1 Round 1 comments | AM66: Verifier 2 Round 1 comments | AU66: Verifier 1 Round 2 comments | BC66: Verifier 2 Round 2 comments
B67: Level 1 | N67: Level 1 | AD67: Level 1 | AJ67: 0 | AL67: Level 1 | AR67: 0 | AT67: Level 1 | AZ67: 0 | BB67: Level 1 | BH67: 0
B74: Level 2 | N74: Level 2 | AD74: Level 2 | AJ74: 0 | AL74: Level 2 | AR74: 0 | AT74: Level 2 | AZ74: 0 | BB74: Level 2 | BH74: 0
B81: Level 3 | N81: Level 3 | AD81: Level 3 | AJ81: 0 | AL81: Level 3 | AR81: 0 | AT81: Level 3 | AZ81: 0 | BB81: Level 3 | BH81: 0
B90: Section 4: Additional guidance ('must' statements)
B94: =D1 -> Pro-1 | C94: Additional guidance items (must statements)
B95: Level | C95: Must statements | K95: OK | L95: Calc | AE95: Verifier comment | AJ95: OK | AM95: Verifier comment | AR95: OK | AU95: Verifier comment | AZ95: OK | BC95: Verifier comment | BH95: OK
B96: 1 | C96: The procurement policy, objectives or similar must demonstrate that environmental aspects are considered in the procurement process | K96: 0 | L96: =IF(AND(B96<=$K$19,K96=0),1,0) -> 0 | AJ96: 0 | AR96: 0 | AZ96: 0 | BH96: 0
B97: 1 | C97: Policies have been in place for the entire duration of the relevant rating. | K97: 0 | L97: =IF(AND(B97<=$K$19,K97=0),1,0) -> 0 | AJ97: 0 | AR97: 0 | AZ97: 0 | BH97: 0
B98: 2 | C98: The policy, objectives or similar must demonstrate that other sustainability aspects are considered | K98: 0 | L98: 0 | AJ98: 0 | AR98: 0 | AZ98: 0 | BH98: 0
B99: 3 | C99: The sustainable procurement commitments must be embedded into sustainability objectives and/or targets | K99: 0 | L99: 0 | AJ99: 0 | AR99: 0 | AZ99: 0 | BH99: 0
B100: 3 | C100: Every policy commitment must have at least one objective and/or target linked to it | K100: 0 | L100: 0 | AJ100: 0 | AR100: 0 | AZ100: 0 | BH100: 0
L101: 1 | M101: =IF($B101=2,$K101,"") ->  | T101: =L101 -> 1 | AJ101: 0 | AR101: 0 | AZ101: 0 | BH101: 0
L102: 1 | T102: 1 | AJ102: 0 | AR102: 0 | AZ102: 0 | BH102: 0
B106: Section 5: Evidence
B113: =D1 -> Pro-1 | C113: Evidence documents
C114: Ref. code | D114: Credit level | E114: Name of document | I114: Pinpoint reference | K114: OK
K115: 0
K116: 0
K117: 0
K118: 0
K119: 0
J121: Number of documents: | K121: =COUNT(K115:K119) -> 5
J123: Number OK: | K123: =SUM(K115:K119) -> 0
B126: Assessor notes and project management
J129: ="Target level for "&D1&":" -> Target level for Pro-1: | K129: =K9 -> 0
I131: Indicative cost: | J131: < Select > | K131: =INDEX(risk_achieve_table,MATCH(J131,risk_of_achieve,0),2) -> 3
I133: Difficulty: | J133: < Select > | K133: =INDEX(risk_achieve_table,MATCH(J133,risk_of_achieve,0),2) -> 3
I135: Risk of non-achievement: | J135: < Select > | K135: =INDEX(risk_achieve_table,MATCH(J135,risk_of_achieve,0),2) -> 3
I137: Overall status of credit: | J137: < Select > | K137: =INDEX(lists_actions_status,MATCH(J137,lists_actions_key,0),2) -> 1
B139: =D1 -> Pro-1 | C139: Notes
B140: General comments
B147: =D1 -> Pro-1 | C147: Actions to address this credit
C148: ID | D148: Action description | I148: Owner | J148: Status | L148: Date | U148: Credit | V148: ID | W148: Action description | X148: Owner | Y148: Date | Z148: Status | AA148: x
J149: < Select > | K149: =INDEX(lists_actions_status,MATCH(J149,lists_actions_key,0),2) -> 1 | U149: =$D$1 -> Pro-1 | V149: =IF(C149="","",C149) ->  | W149: =IF(D149="","",D149) ->  | X149: =IF(I149="","",I149) ->  | Y149: =IF(L149="","",L149) ->  | Z149: =IF(J149="< Select >","",J149) ->  | AA149: =K149 -> 1
J150: < Select > | K150: =INDEX(lists_actions_status,MATCH(J150,lists_actions_key,0),2) -> 1 | U150: =$D$1 -> Pro-1 | V150: =IF(C150="","",C150) ->  | X150: =IF(I150="","",I150) ->  | Y150: =IF(L150="","",L150) ->  | Z150: =IF(J150="< Select >","",J150) ->  | AA150: =K150 -> 1
J151: < Select > | K151: =INDEX(lists_actions_status,MATCH(J151,lists_actions_key,0),2) -> 1 | U151: Pro-1 | AA151: 1
J152: < Select > | K152: =INDEX(lists_actions_status,MATCH(J152,lists_actions_key,0),2) -> 1 | U152: Pro-1 | AA152: 1
J153: < Select > | K153: =INDEX(lists_actions_status,MATCH(J153,lists_actions_key,0),2) -> 1 | U153: Pro-1 | AA153: 1
B157: Cost-benefit tracking
B160: =D1 -> Pro-1 | C160: Collection of cost-benefit data
C161: Initative name | F161: Cost ($k) | G161: Benefit ($k) | H161: Comments
C167: Total: | F167: =SUM(F162:F166) -> 0 | G167: =SUM(G162:G166) -> 0

Sheet Pro-2 (hidden)
D1: Pro-2 | E1: =INDEX(weightings_main_tbl,MATCH(D1,weightings_credit_lst,0),2) -> Identification of suppliers | T1: =D1&" Verification" -> Pro-2 Verification | AD1: =D1&" Verifier area (confidential)" -> Pro-2 Verifier area (confidential)
B2: Credit Summary Form
B4: Section 1: Credit response
I6: Materiality:
I7: =INDEX(mat_table,MATCH(INDEX(weightings_main_tbl,MATCH(D1,weightings_credit_lst,0),13),mat_code,0),2) -> Moderate (2) | M7: Score | O7: Round One | T7: Round One | Y7: Round Two
J9: Set credit target level: | M9: =K9/$K$11*$M$11 -> 0 | P9: Level verified: | U9: Level verified: | Z9: Level verified:
J11: Level available for this credit: | K11: =INDEX(summary_tbl_wide,MATCH(D1,summary_tbl_credits,0),7) -> 3 | M11: =ROUND(INDEX(weightings_main_tbl,MATCH(D1,weightings_credit_lst,0),18),2) -> 1.4 | P11: Verified score: | Q11: =Q9/$K$11*$M$11 -> 0 | U11: Verified score: | V11: =V9/$K$11*$M$11 -> 0 | Z11: Verified score: | AA11: =AA9/$K$11*$M$11 -> 0
C13: Level 1 | E13: =MIN(E14:E17) -> 0 | F13: Level 2 | H13: =MIN(H14:H17) -> 0 | I13: Level 3 | K13: =MIN(K14:K17) -> 0
B14: Benchmark | C14: Potential suppliers requested to provide details of their environmental policy and its implementation | E14: 0 | F14: Poential suppliers requested to provide details of their sustainability policy and its implementation | H14: 0 | I14: The requirements for Level 2 are achieved | K14: =H13 -> 0
I15: AND | K15: 0
I16: Engagement with potential or existing suppliers is used to help stimulate innovation in relation to sustainability through the procurement process.
J19: Working level: | K19: =IF(K30="Y",K38,E13+H13+K13) -> 0 | M19: =K19/$K$11*$M$11 -> 0
B20: Warnings | D20: Check ruling details | E20: =IF(K30="N",1,IF(OR(J36="",K38=""),0,1)) -> 0
J21: Set level assessed round 1: | M21: =K21/$K$11*$M$11 -> 0
D22: Check additional guidance | E22: =IF(SUM(L96:L98)>=1,0,1) -> 1
J23: Set level assessed round 2: | M23: =K23/$K$11*$M$11 -> 0
D24: Check evidence | E24: =IF(K119<K117,0,1) -> 0
B28: Section 2: Rulings
J30: Is a ruling used for this credit?
I36: Ruling number:
J38: New working score using ruling: | M38: =K38/$K$11*$M$11 -> 0
B41: Ruling description text box (copy from spreadsheet): | O41: Verification comment on ruling | T41: Verification comment on ruling | Y41: Verification comment on ruling
B49: Additional comments text box (as required)
B59: Section 3: Description of how criteria were met
AH64: Level verified: | AP64: Level verified: | AX64: Level verified: | BF64: Level verified:
B66: =D1 -> Pro-2 | C66: How were the criteria met? (enter explanation in text boxes) | O66: Verification comment Round 2 | T66: Verification comment Round 1 | Y66: Verification comment Round 2 | AE66: Verifier 1 Round 1 comments | AM66: Verifier 2 Round 1 comments | AU66: Verifier 1 Round 2 comments | BC66: Verifier 2 Round 2 comments
B67: Level 1 | N67: Level 1 | AD67: Level 1 | AJ67: 0 | AL67: Level 1 | AR67: 0 | AT67: Level 1 | AZ67: 0 | BB67: Level 1 | BH67: 0
B74: Level 2 | N74: Level 2 | AD74: Level 2 | AJ74: 0 | AL74: Level 2 | AR74: 0 | AT74: Level 2 | AZ74: 0 | BB74: Level 2 | BH74: 0
B81: Level 3 | N81: Level 3 | AD81: Level 3 | AJ81: 0 | AL81: Level 3 | AR81: 0 | AT81: Level 3 | AZ81: 0 | BB81: Level 3 | BH81: 0
B90: Section 4: Additional guidance ('must' statements)
B94: =D1 -> Pro-2 | C94: Additional guidance items (must statements)
B95: Level | C95: Must statements | K95: OK | L95: Calc | AE95: Verifier comment | AJ95: OK | AM95: Verifier comment | AR95: OK | AU95: Verifier comment | AZ95: OK | BC95: Verifier comment | BH95: OK
B96: 2 | C96: Must be made clear that sustainability incorporates environmental, social and economic aspects | K96: 0 | L96: =IF(AND(B96<=$K$19,K96=0),1,0) -> 0 | M96: =IF($B96=2,$K96,"") -> 0 | AJ96: 0 | AR96: 0 | AZ96: 0 | BH96: 0
B97: 3 | C97: Engagement with potential and existing suppliers be undertaken to explain the asset/network sustainability requirements | K97: 0 | L97: =IF(AND(B97<=$K$19,K97=0),1,0) -> 0 | AJ97: 0 | AR97: 0 | AZ97: 0 | BH97: 0
B98: 3 | C98: At leastone example with a potential supplier is included | K98: 0 | L98: 0 | AJ98: 0 | AR98: 0 | AZ98: 0 | BH98: 0
B102: Section 5: Evidence
B109: =D1 -> Pro-2 | C109: Evidence documents
C110: Ref. code | D110: Credit level | E110: Name of document | I110: Pinpoint reference | K110: OK
K111: 0
K112: 0
K113: 0
K114: 0
K115: 0
J117: Number of documents: | K117: =COUNT(K111:K115) -> 5
J119: Number OK: | K119: =SUM(K111:K115) -> 0
B123: Assessor notes and project management
J126: ="Target level for "&D1&":" -> Target level for Pro-2: | K126: =K9 -> 0
I128: Indicative cost: | J128: < Select > | K128: =INDEX(risk_achieve_table,MATCH(J128,risk_of_achieve,0),2) -> 3
I130: Difficulty: | J130: < Select > | K130: =INDEX(risk_achieve_table,MATCH(J130,risk_of_achieve,0),2) -> 3
I132: Risk of non-achievement: | J132: < Select > | K132: =INDEX(risk_achieve_table,MATCH(J132,risk_of_achieve,0),2) -> 3
I134: Overall status of credit: | J134: < Select > | K134: =INDEX(lists_actions_status,MATCH(J134,lists_actions_key,0),2) -> 1
B136: =D1 -> Pro-2 | C136: Notes
B137: General comments
B144: =D1 -> Pro-2 | C144: Actions to address this credit
C145: ID | D145: Action description | I145: Owner | J145: Status | L145: Date | U145: Credit | V145: ID | W145: Action description | X145: Owner | Y145: Date | Z145: Status | AA145: x
J146: < Select > | K146: =INDEX(lists_actions_status,MATCH(J146,lists_actions_key,0),2) -> 1 | U146: =$D$1 -> Pro-2 | V146: =IF(C146="","",C146) ->  | W146: =IF(D146="","",D146) ->  | X146: =IF(I146="","",I146) ->  | Y146: =IF(L146="","",L146) ->  | Z146: =IF(J146="< Select >","",J146) ->  | AA146: =K146 -> 1
J147: < Select > | K147: =INDEX(lists_actions_status,MATCH(J147,lists_actions_key,0),2) -> 1 | U147: =$D$1 -> Pro-2 | V147: =IF(C147="","",C147) ->  | X147: =IF(I147="","",I147) ->  | Y147: =IF(L147="","",L147) ->  | Z147: =IF(J147="< Select >","",J147) ->  | AA147: =K147 -> 1
J148: < Select > | K148: =INDEX(lists_actions_status,MATCH(J148,lists_actions_key,0),2) -> 1 | U148: Pro-2 | AA148: 1
J149: < Select > | K149: =INDEX(lists_actions_status,MATCH(J149,lists_actions_key,0),2) -> 1 | U149: Pro-2 | AA149: 1
J150: < Select > | K150: =INDEX(lists_actions_status,MATCH(J150,lists_actions_key,0),2) -> 1 | U150: Pro-2 | AA150: 1
B154: Cost-benefit tracking
B157: =D1 -> Pro-2 | C157: Collection of cost-benefit data
C158: Initative name | F158: Cost ($k) | G158: Benefit ($k) | H158: Comments
C164: Total: | F164: =SUM(F159:F163) -> 0 | G164: =SUM(G159:G163) -> 0

Sheet Pro-3 (hidden)
D1: Pro-3 | E1: =INDEX(weightings_main_tbl,MATCH(D1,weightings_credit_lst,0),2) -> Supplier evaluation and contract award | T1: =D1&" Verification" -> Pro-3 Verification | AD1: =D1&" Verifier area (confidential)" -> Pro-3 Verifier area (confidential)
B2: Credit Summary Form
B4: Section 1: Credit response
I6: Materiality:
I7: =INDEX(mat_table,MATCH(INDEX(weightings_main_tbl,MATCH(D1,weightings_credit_lst,0),13),mat_code,0),2) -> Moderate (2) | M7: Score | O7: Round Two | T7: Round One | Y7: Round Two
J9: Set credit target level: | M9: =K9/$K$11*$M$11 -> 0 | P9: Level verified: | U9: Level verified: | Z9: Level verified:
J11: Level available for this credit: | K11: =INDEX(summary_tbl_wide,MATCH(D1,summary_tbl_credits,0),7) -> 3 | M11: =ROUND(INDEX(weightings_main_tbl,MATCH(D1,weightings_credit_lst,0),18),2) -> 0 | P11: Verified score: | Q11: =Q9/$K$11*$M$11 -> 0 | U11: Verified score: | V11: =V9/$K$11*$M$11 -> 0 | Z11: Verified score: | AA11: =AA9/$K$11*$M$11 -> 0
C13: Level 1 | E13: =MIN(E14:E17) -> 0 | F13: Level 2 | H13: =MIN(H14:H17) -> 0 | I13: Level 3 | K13: =MIN(K14:K17) -> 0
B14: Benchmark | C14: Supplier evaluation considers environmental aspects through use of qualitative criteria | E14: 0 | F14: Supplier evaluation considers sustainability aspects through use of qualitative criteria | H14: =E14 -> 0 | I14: The requirements for Level 2 are achieved | K14: =H13 -> 0
F15: AND | H15: 0 | I15: AND | K15: 0
F16: Supplier contracts incorporate sustainability objectives and/or targets | I16: Potential and existing suppliers are evaluated considering sustainability aspects through use of multi-criteria analysis or other scored means
J19: Working level: | K19: =IF(K30="Y",K38,E13+H13+K13) -> 0 | M19: =K19/$K$11*$M$11 -> 0
B20: Warnings | D20: Check ruling details | E20: =IF(K30="N",1,IF(OR(J36="",K38=""),0,1)) -> 0
J21: Set level assessed round 1: | M21: =K21/$K$11*$M$11 -> 0
D22: Check additional guidance | E22: =IF(SUM(L96:L100)>=1,0,1) -> 0
J23: Set level assessed round 2: | M23: =K23/$K$11*$M$11 -> 0
D24: Check evidence | E24: =IF(K121<K119,0,1) -> 0
B28: Section 2: Rulings
J30: Is a ruling used for this credit?
I36: Ruling number:
J38: New working score using ruling: | M38: =K38/$K$11*$M$11 -> 0
B41: Ruling description text box (copy from spreadsheet): | O41: Verification comment on ruling | T41: Verification comment on ruling | Y41: Verification comment on ruling
B49: Additional comments text box (as required)
B59: Section 3: Description of how criteria were met
AH64: Level verified: | AP64: Level verified: | AX64: Level verified: | BF64: Level verified:
B66: =D1 -> Pro-3 | C66: How were the criteria met? (enter explanation in text boxes) | O66: Verification comment Round 2 | T66: Verification comment Round 1 | Y66: Verification comment Round 2 | AE66: Verifier 1 Round 1 comments | AM66: Verifier 2 Round 1 comments | AU66: Verifier 1 Round 2 comments | BC66: Verifier 2 Round 2 comments
B67: Level 1 | N67: Level 1 | AD67: Level 1 | AJ67: 0 | AL67: Level 1 | AR67: 0 | AT67: Level 1 | AZ67: 0 | BB67: Level 1 | BH67: 0
B74: Level 2 | N74: Level 2 | AD74: Level 2 | AJ74: 0 | AL74: Level 2 | AR74: 0 | AT74: Level 2 | AZ74: 0 | BB74: Level 2 | BH74: 0
B81: Level 3 | N81: Level 3 | AD81: Level 3 | AJ81: 0 | AL81: Level 3 | AR81: 0 | AT81: Level 3 | AZ81: 0 | BB81: Level 3 | BH81: 0
B90: Section 4: Additional guidance ('must' statements)
B94: =D1 -> Pro-3 | C94: Additional guidance items (must statements)
B95: Level | C95: Must statements | K95: OK | L95: Calc | AE95: Verifier comment | AJ95: OK | AM95: Verifier comment | AR95: OK | AU95: Verifier comment | AZ95: OK | BC95: Verifier comment | BH95: OK
B96: 1 | C96: Where the evaluation criteria vary between different responses, at least three examples of criteria must be provided | K96: 0 | L96: =IF(AND(B96<=$K$19,K96=0),1,0) -> 0 | AJ96: 0 | AR96: 0 | AZ96: 0 | BH96: 0
C97: Evidence of implementing the evaluation process to at least one new supplier must be provided | K97: 0 | L97: =IF(AND(B97<=$K$19,K97=0),1,0) -> 1 | AJ97: 0 | AR97: 0 | AZ97: 0 | BH97: 0
B98: 2 | C98: Must be made clear that sustainability incorporates environmental, social and economic aspects | K98: 0 | L98: 0 | AJ98: 0 | AR98: 0 | AZ98: 0 | BH98: 0
B99: 3 | C99: The analysis must incorporate at least one non-financial sustainability (environmental or social) criterion | K99: 0 | L99: =IF(AND(B99<=$K$19,K99=0),1,0) -> 0 | AJ99: 0 | AR99: 0 | AZ99: 0 | BH99: 0
B100: 3 | C100: Its weighting must be greater than 20% in total | K100: 0 | L100: 0 | AJ100: 0 | AR100: 0 | AZ100: 0 | BH100: 0
B104: Section 5: Evidence
B111: =D1 -> Pro-3 | C111: Evidence documents
C112: Ref. code | D112: Credit level | E112: Name of document | I112: Pinpoint reference | K112: OK
K113: 0
K114: 0
K115: 0
K116: 0 | T116: `
K117: 0
J119: Number of documents: | K119: =COUNT(K113:K117) -> 5
J121: Number OK: | K121: =SUM(K113:K117) -> 0
B124: Assessor notes and project management
J127: ="Target level for "&D1&":" -> Target level for Pro-3: | K127: =K9 -> 0
I129: Indicative cost: | J129: < Select > | K129: =INDEX(risk_achieve_table,MATCH(J129,risk_of_achieve,0),2) -> 3
I131: Difficulty: | J131: < Select > | K131: =INDEX(risk_achieve_table,MATCH(J131,risk_of_achieve,0),2) -> 3
I133: Risk of non-achievement: | J133: < Select > | K133: =INDEX(risk_achieve_table,MATCH(J133,risk_of_achieve,0),2) -> 3
I135: Overall status of credit: | J135: < Select > | K135: =INDEX(lists_actions_status,MATCH(J135,lists_actions_key,0),2) -> 1
B137: =D1 -> Pro-3 | C137: Notes
B138: General comments
B145: =D1 -> Pro-3 | C145: Actions to address this credit
C146: ID | D146: Action description | I146: Owner | J146: Status | L146: Date | U146: Credit | V146: ID | W146: Action description | X146: Owner | Y146: Date | Z146: Status | AA146: x
J147: < Select > | K147: =INDEX(lists_actions_status,MATCH(J147,lists_actions_key,0),2) -> 1 | U147: =$D$1 -> Pro-3 | V147: =IF(C147="","",C147) ->  | W147: =IF(D147="","",D147) ->  | X147: =IF(I147="","",I147) ->  | Y147: =IF(L147="","",L147) ->  | Z147: =IF(J147="< Select >","",J147) ->  | AA147: =K147 -> 1
J148: < Select > | K148: =INDEX(lists_actions_status,MATCH(J148,lists_actions_key,0),2) -> 1 | U148: =$D$1 -> Pro-3 | V148: =IF(C148="","",C148) ->  | X148: =IF(I148="","",I148) ->  | Y148: =IF(L148="","",L148) ->  | Z148: =IF(J148="< Select >","",J148) ->  | AA148: =K148 -> 1
J149: < Select > | K149: =INDEX(lists_actions_status,MATCH(J149,lists_actions_key,0),2) -> 1 | U149: Pro-3 | AA149: 1
J150: < Select > | K150: =INDEX(lists_actions_status,MATCH(J150,lists_actions_key,0),2) -> 1 | U150: Pro-3 | AA150: 1
J151: < Select > | K151: =INDEX(lists_actions_status,MATCH(J151,lists_actions_key,0),2) -> 1 | U151: Pro-3 | AA151: 1
B155: Cost-benefit tracking
B158: =D1 -> Pro-3 | C158: Collection of cost-benefit data
C159: Initative name | F159: Cost ($k) | G159: Benefit ($k) | H159: Comments
C165: Total: | F165: =SUM(F160:F164) -> 0 | G165: =SUM(G160:G164) -> 0

Sheet Pro-4 (hidden)
D1: Pro-4 | E1: =INDEX(weightings_main_tbl,MATCH(D1,weightings_credit_lst,0),2) -> Managing supplier performance | T1: =D1&" Verification" -> Pro-4 Verification | AD1: =D1&" Verifier area (confidential)" -> Pro-4 Verifier area (confidential)
B2: Credit Summary Form
B4: Section 1: Credit response
I6: Materiality:
I7: =INDEX(mat_table,MATCH(INDEX(weightings_main_tbl,MATCH(D1,weightings_credit_lst,0),13),mat_code,0),2) -> Moderate (2) | M7: Score | O7: Round Two | T7: Round One | Y7: Round Two
J9: Set credit target level: | M9: =K9/$K$11*$M$11 -> 0 | P9: Level verified: | U9: Level verified: | Z9: Level verified:
J11: Level available for this credit: | K11: =INDEX(summary_tbl_wide,MATCH(D1,summary_tbl_credits,0),7) -> 3 | M11: =ROUND(INDEX(weightings_main_tbl,MATCH(D1,weightings_credit_lst,0),18),2) -> 0 | P11: Verified score: | Q11: =Q9/$K$11*$M$11 -> 0 | U11: Verified score: | V11: =V9/$K$11*$M$11 -> 0 | Z11: Verified score: | AA11: =AA9/$K$11*$M$11 -> 0
C13: Level 1 | E13: =MIN(E14:E17) -> 0 | F13: Level 2 | H13: =MIN(H14:H17) -> 0 | I13: Level 3 | K13: =MIN(K14:K17) -> 0
B14: Benchmark | C14: Suppliers have environmental objectives and/or targets. | E14: 0 | F14: Requirements for Level 1 are achieved | H14: =E13 -> 0 | I14: Requirements for Level 2 are achieved | K14: =H13 -> 0
C15: AND | E15: 0 | F15: AND | H15: 0 | I15: AND
C16: Supplier environmental performance is monitored for the duration of contracts, against the objectives, targets and/or indicators | F16: Suppliers have sustainability objectives, targets and/or indicators. | I16: Contract managers work with suppliers to identify any emerging or new sustainability opportunities | K16: 0
F17: AND | H17: 0 | I17: AND | K17: 0
F18: Supplier sustainability performance is monitored for the duration of contracts, against the objectives and/or targets. | I18: Success is encouraged and rewarded.
F19: AND | H19: 0
F20: Poor sustainability performance or noncompliance is actively managed.
J21: Working level: | K21: =IF(K32="Y",K40,E13+H13+K13) -> 0 | M21: =K21/$K$11*$M$11 -> 0
B22: Warnings | D22: Check ruling details | E22: =IF(K32="N",1,IF(OR(J38="",K40=""),0,1)) -> 0
J23: Set level assessed round 1: | M23: =K23/$K$11*$M$11 -> 0
D24: Check additional guidance | E24: =IF(SUM(L98:L103)>=1,0,1) -> 1
J25: Set level assessed round 2: | M25: =K25/$K$11*$M$11 -> 0
D26: Check evidence | E26: =IF(K124<K122,0,1) -> 0
B30: Section 2: Rulings
J32: Is a ruling used for this credit?
I38: Ruling number:
J40: New working score using ruling: | M40: =K40/$K$11*$M$11 -> 0
B43: Ruling description text box (copy from spreadsheet): | O43: Verification comment on ruling | T43: Verification comment on ruling | Y43: Verification comment on ruling
B51: Additional comments text box (as required)
B61: Section 3: Description of how criteria were met
AH66: Level verified: | AP66: Level verified: | AX66: Level verified: | BF66: Level verified:
B68: =D1 -> Pro-4 | C68: How were the criteria met? (enter explanation in text boxes) | O68: Verification comment Round 2 | T68: Verification comment Round 1 | Y68: Verification comment Round 2 | AE68: Verifier 1 Round 1 comments | AM68: Verifier 2 Round 1 comments | AU68: Verifier 1 Round 2 comments | BC68: Verifier 2 Round 2 comments
B69: Level 1 | N69: Level 1 | AD69: Level 1 | AJ69: 0 | AL69: Level 1 | AR69: 0 | AT69: Level 1 | AZ69: 0 | BB69: Level 1 | BH69: 0
B76: Level 2 | N76: Level 2 | AD76: Level 2 | AJ76: 0 | AL76: Level 2 | AR76: 0 | AT76: Level 2 | AZ76: 0 | BB76: Level 2 | BH76: 0
B83: Level 3 | N83: Level 3 | AD83: Level 3 | AJ83: 0 | AL83: Level 3 | AR83: 0 | AT83: Level 3 | AZ83: 0 | BB83: Level 3 | BH83: 0
B92: Section 4: Additional guidance ('must' statements)
B96: =D1 -> Pro-4 | C96: Additional guidance items (must statements)
B97: Level | C97: Must statements | K97: OK | L97: Calc | AE97: Verifier comment | AJ97: OK | AM97: Verifier comment | AR97: OK | AU97: Verifier comment | AZ97: OK | BC97: Verifier comment | BH97: OK
B98: 1 | C98: Supplier environmental performance must be monitored for the duration of contracts or arrangement | K98: 0 | L98: =IF(AND(B98<=$K$21,K98=0),1,0) -> 0 | AJ98: 0 | AR98: 0 | AZ98: 0 | BH98: 0
B99: 1 | C99: Evidence for at least three example suppliers must be provided | K99: 0 | L99: =IF(AND(B99<=$K$21,K99=0),1,0) -> 0 | AJ99: 0 | AR99: 0 | AZ99: 0 | BH99: 0
B100: 2 | C100: Supplier sustainability performance must be monitored for the duration of contracts | K100: 0 | L100: 0 | AJ100: 0 | AR100: 0 | AZ100: 0 | BH100: 0
B101: 2 | C101: At least one example showing how a non-compliance was managed must be provided | K101: 0 | L101: 0 | AJ101: 0 | AR101: 0 | AZ101: 0 | BH101: 0
B102: 3 | C102: At least one example must be provided showing where new and emerging opportunities were identified | K102: 0 | L102: 0 | AJ102: 0 | AR102: 0 | AZ102: 0 | BH102: 0
B103: 3 | C103: Evidence documenting the reward program and at least three examples of rewards, given during the period applicable for the operations rating, must be provided | K103: 0 | L103: 0 | AJ103: 0 | AR103: 0 | AZ103: 0 | BH103: 0
B107: Section 5: Evidence
B114: =D1 -> Pro-4 | C114: Evidence documents
C115: Ref. code | D115: Credit level | E115: Name of document | I115: Pinpoint reference | K115: OK
K116: 0
K117: 0
K118: 0
K119: 0
K120: 0
J122: Number of documents: | K122: =COUNT(K116:K120) -> 5
J124: Number OK: | K124: =SUM(K116:K120) -> 0
B131: Assessor notes and project management
J134: ="Target level for "&D1&":" -> Target level for Pro-4: | K134: =K9 -> 0
I136: Indicative cost: | J136: < Select > | K136: =INDEX(risk_achieve_table,MATCH(J136,risk_of_achieve,0),2) -> 3
I138: Difficulty: | J138: < Select > | K138: =INDEX(risk_achieve_table,MATCH(J138,risk_of_achieve,0),2) -> 3
I140: Risk of non-achievement: | J140: < Select > | K140: =INDEX(risk_achieve_table,MATCH(J140,risk_of_achieve,0),2) -> 3
I142: Overall status of credit: | J142: < Select > | K142: =INDEX(lists_actions_status,MATCH(J142,lists_actions_key,0),2) -> 1
B144: =D1 -> Pro-4 | C144: Notes
B145: General comments
B152: =D1 -> Pro-4 | C152: Actions to address this credit
C153: ID | D153: Action description | I153: Owner | J153: Status | L153: Date | U153: Credit | V153: ID | W153: Action description | X153: Owner | Y153: Date | Z153: Status | AA153: x
J154: < Select > | K154: =INDEX(lists_actions_status,MATCH(J154,lists_actions_key,0),2) -> 1 | U154: =$D$1 -> Pro-4 | V154: =IF(C154="","",C154) ->  | W154: =IF(D154="","",D154) ->  | X154: =IF(I154="","",I154) ->  | Y154: =IF(L154="","",L154) ->  | Z154: =IF(J154="< Select >","",J154) ->  | AA154: =K154 -> 1
J155: < Select > | K155: =INDEX(lists_actions_status,MATCH(J155,lists_actions_key,0),2) -> 1 | U155: =$D$1 -> Pro-4 | V155: =IF(C155="","",C155) ->  | X155: =IF(I155="","",I155) ->  | Y155: =IF(L155="","",L155) ->  | Z155: =IF(J155="< Select >","",J155) ->  | AA155: =K155 -> 1
J156: < Select > | K156: =INDEX(lists_actions_status,MATCH(J156,lists_actions_key,0),2) -> 1 | U156: Pro-4 | AA156: 1
J157: < Select > | K157: =INDEX(lists_actions_status,MATCH(J157,lists_actions_key,0),2) -> 1 | U157: Pro-4 | AA157: 1
J158: < Select > | K158: =INDEX(lists_actions_status,MATCH(J158,lists_actions_key,0),2) -> 1 | U158: Pro-4 | AA158: 1
B162: Cost-benefit tracking
B165: =D1 -> Pro-4 | C165: Collection of cost-benefit data
C166: Initative name | F166: Cost ($k) | G166: Benefit ($k) | H166: Comments
C172: Total: | F172: =SUM(F167:F171) -> 0 | G172: =SUM(G167:G171) -> 0

Sheet Cli-1 (hidden)
D1: Cli-1 | E1: =INDEX(weightings_main_tbl,MATCH(D1,weightings_credit_lst,0),2) -> Climate change risk assessment | T1: =D1&" Verification" -> Cli-1 Verification | AD1: =D1&" Verifier area (confidential)" -> Cli-1 Verifier area (confidential)
B2: Credit Summary Form
B4: Section 1: Credit response
I6: Materiality:
I7: =INDEX(mat_table,MATCH(INDEX(weightings_main_tbl,MATCH(D1,weightings_credit_lst,0),13),mat_code,0),2) -> Moderate (2) | M7: Score | O7: Round Two | T7: Round One | Y7: Round Two
J9: Set credit target level: | M9: =K9/$K$11*$M$11 -> 0 | P9: Level verified: | U9: Level verified: | Z9: Level verified:
J11: Level available for this credit: | K11: =INDEX(summary_tbl_wide,MATCH(D1,summary_tbl_credits,0),7) -> 3 | M11: =ROUND(INDEX(weightings_main_tbl,MATCH(D1,weightings_credit_lst,0),18),2) -> 2.79 | P11: Verified score: | Q11: =Q9/$K$11*$M$11 -> 0 | U11: Verified score: | V11: =V9/$K$11*$M$11 -> 0 | Z11: Verified score: | AA11: =AA9/$K$11*$M$11 -> 0
C13: Level 1 | E13: =MIN(E14:E17) -> 0 | F13: Level 2 | H13: =MIN(H14:H20) -> 0 | I13: Level 3 | K13: =MIN(K14:K18) -> 0
B14: Benchmark | C14: A readily available climate change projection is identified and adopted for the asset region over the forecast useful life of the asset. | E14: 0 | F14: The requirements for Level 1 are achieved | H14: =E13 -> 0 | I14: The requirements for Level 2 are achieved | K14: =H13 -> 0
C15: AND | F15: AND | I15: AND
C16: Direct climate change risks to the asset over the forecast useful life are identified and assessed. | E16: 0 | F16: A number of readily available climate change projections are identified and adopted for the asset region over the forecast useful life of the asset. | H16: 0 | I16: Modelling is undertaken to characterise the likely impacts of the projected climate change for all High and Extreme priority climate change risks. | K16: 0
F17: AND | H17: 0 | I17: AND | K17: 0
F18: The climate change risk assessment also considered indirect climate change risks to the asset. | I18: A comprehensive set of affected external stakeholders participated in identifying climate change risks and issues.
F19: AND | H19: 0
F20: A multi-disciplinary team participated in identifying climate change risks and issues.
J21: Working level: | K21: =IF(K32="Y",K40,E13+H13+K13) -> 0 | M21: =K21/$K$11*$M$11 -> 0
B22: Warnings | D22: Check ruling details | E22: =IF(K32="N",1,IF(OR(J38="",K40=""),0,1)) -> 0
J23: Set level assessed round 1: | M23: =K23/$K$11*$M$11 -> 0
D24: Check additional guidance | E24: =IF(SUM(L98:L102)>=1,0,1) -> 1
J25: Set level assessed round 2: | M25: =K25/$K$11*$M$11 -> 0
D26: Check evidence | E26: =IF(K123<K121,0,1) -> 0
B30: Section 2: Rulings
J32: Is a ruling used for this credit?
I38: Ruling number:
J40: New working score using ruling: | M40: =K40/$K$11*$M$11 -> 0
B43: Ruling description text box (copy from spreadsheet): | O43: Verification comment on ruling | T43: Verification comment on ruling | Y43: Verification comment on ruling
B51: Additional comments text box (as required)
B61: Section 3: Description of how criteria were met
AH66: Level verified: | AP66: Level verified: | AX66: Level verified: | BF66: Level verified:
B68: =D1 -> Cli-1 | C68: How were the criteria met? (enter explanation in text boxes) | O68: Verification comment Round 2 | T68: Verification comment Round 1 | Y68: Verification comment Round 2 | AE68: Verifier 1 Round 1 comments | AM68: Verifier 2 Round 1 comments | AU68: Verifier 1 Round 2 comments | BC68: Verifier 2 Round 2 comments
B69: Level 1 | N69: Level 1 | AD69: Level 1 | AJ69: 0 | AL69: Level 1 | AR69: 0 | AT69: Level 1 | AZ69: 0 | BB69: Level 1 | BH69: 0
B76: Level 2 | N76: Level 2 | AD76: Level 2 | AJ76: 0 | AL76: Level 2 | AR76: 0 | AT76: Level 2 | AZ76: 0 | BB76: Level 2 | BH76: 0
B83: Level 3 | N83: Level 3 | AD83: Level 3 | AJ83: 0 | AL83: Level 3 | AR83: 0 | AT83: Level 3 | AZ83: 0 | BB83: Level 3 | BH83: 0
B92: Section 4: Additional guidance ('must' statements)
B96: =D1 -> Cli-1 | C96: Additional guidance items (must statements)
B97: Level | C97: Must statements | K97: OK | L97: Calc | AE97: Verifier comment | AJ97: OK | AM97: Verifier comment | AR97: OK | AU97: Verifier comment | AZ97: OK | BC97: Verifier comment | BH97: OK
B98: 1 | C98: The Assessor has justified the selection of the emissions scenario and climate change projections used. | K98: 0 | L98: =IF(AND(B98<=$K$21,K98=0),1,0) -> 0 | AJ98: 0 | AR98: 0 | AZ98: 0 | BH98: 0
B99: 2 | C99: The Assessor has justified the selection of the emissions scenario and climate change projections used. | K99: 0 | L99: 0 | AJ99: 0 | AR99: 0 | AZ99: 0 | BH99: 0
B100: 2 | C100: The climate change risk assessment must be broadened to cover indirect risks | K100: 0 | L100: 0 | AJ100: 0 | AR100: 0 | AZ100: 0 | BH100: 0
B101: 3 | C101: Modelling (impact studies) have been undertaken for all High and Extreme priority climate change risks, to characterise the likely impacts of the projected climate changes in regards to their quantity, location and timing. | K101: 0 | L101: 0 | AJ101: 0 | AR101: 0 | AZ101: 0 | BH101: 0
B102: 3 | C102: External stakeholders involved in the identification and assessment of risks must include Government and infrastructure utilities | K102: 0 | L102: 0 | AJ102: 0 | AR102: 0 | AZ102: 0 | BH102: 0
B106: Section 5: Evidence
B113: =D1 -> Cli-1 | C113: Evidence documents
C114: Ref. code | D114: Credit level | E114: Name of document | I114: Pinpoint reference | K114: OK
K115: 0
K116: 0
K117: 0
K118: 0
K119: 0
J121: Number of documents: | K121: =COUNT(K115:K119) -> 5
J123: Number OK: | K123: =SUM(K115:K119) -> 0
B126: Assessor notes and project management
J129: ="Target level for "&D1&":" -> Target level for Cli-1: | K129: =K9 -> 0
I131: Indicative cost: | J131: < Select > | K131: =INDEX(risk_achieve_table,MATCH(J131,risk_of_achieve,0),2) -> 3
I133: Difficulty: | J133: < Select > | K133: =INDEX(risk_achieve_table,MATCH(J133,risk_of_achieve,0),2) -> 3
I135: Risk of non-achievement: | J135: < Select > | K135: =INDEX(risk_achieve_table,MATCH(J135,risk_of_achieve,0),2) -> 3
I137: Overall status of credit: | J137: < Select > | K137: =INDEX(lists_actions_status,MATCH(J137,lists_actions_key,0),2) -> 1
B139: =D1 -> Cli-1 | C139: Notes
B140: General comments
B147: =D1 -> Cli-1 | C147: Actions to address this credit
C148: ID | D148: Action description | I148: Owner | J148: Status | L148: Date | U148: Credit | V148: ID | W148: Action description | X148: Owner | Y148: Date | Z148: Status | AA148: x
J149: < Select > | K149: =INDEX(lists_actions_status,MATCH(J149,lists_actions_key,0),2) -> 1 | U149: =$D$1 -> Cli-1 | V149: =IF(C149="","",C149) ->  | W149: =IF(D149="","",D149) ->  | X149: =IF(I149="","",I149) ->  | Y149: =IF(L149="","",L149) ->  | Z149: =IF(J149="< Select >","",J149) ->  | AA149: =K149 -> 1
J150: < Select > | K150: =INDEX(lists_actions_status,MATCH(J150,lists_actions_key,0),2) -> 1 | U150: =$D$1 -> Cli-1 | V150: =IF(C150="","",C150) ->  | X150: =IF(I150="","",I150) ->  | Y150: =IF(L150="","",L150) ->  | Z150: =IF(J150="< Select >","",J150) ->  | AA150: =K150 -> 1
J151: < Select > | K151: =INDEX(lists_actions_status,MATCH(J151,lists_actions_key,0),2) -> 1 | U151: Cli-1 | AA151: 1
J152: < Select > | K152: =INDEX(lists_actions_status,MATCH(J152,lists_actions_key,0),2) -> 1 | U152: Cli-1 | AA152: 1
J153: < Select > | K153: =INDEX(lists_actions_status,MATCH(J153,lists_actions_key,0),2) -> 1 | U153: Cli-1 | AA153: 1
B157: Cost-benefit tracking
B160: =D1 -> Cli-1 | C160: Collection of cost-benefit data
C161: Initative name | F161: Cost ($k) | G161: Benefit ($k) | H161: Comments
C167: Total: | F167: =SUM(F162:F166) -> 0 | G167: =SUM(G162:G166) -> 0

Sheet Cli-2 (hidden)
D1: Cli-2 | E1: =INDEX(weightings_main_tbl,MATCH(D1,weightings_credit_lst,0),2) -> Adaptation options | T1: =D1&" Verification" -> Cli-2 Verification | AD1: =D1&" Verifier area (confidential)" -> Cli-2 Verifier area (confidential)
B2: Credit Summary Form
B4: Part 1: Credit response
I6: Materiality:
I7: =INDEX(mat_table,MATCH(INDEX(weightings_main_tbl,MATCH(D1,weightings_credit_lst,0),13),mat_code,0),2) -> Moderate (2) | M7: Score | O7: Round One | T7: Round One | Y7: Round Two
J9: Set credit target level: | M9: =K9/$K$11*$M$11 -> 0 | P9: Level verified: | U9: Level verified: | Z9: Level verified:
J11: Level available for this credit: | K11: =INDEX(summary_tbl_wide,MATCH(D1,summary_tbl_credits,0),7) -> 3 | M11: =ROUND(INDEX(weightings_main_tbl,MATCH(D1,weightings_credit_lst,0),18),2) -> 2.79 | P11: Verified score: | Q11: =Q9/$K$11*$M$11 -> 0 | U11: Verified score: | V11: =V9/$K$11*$M$11 -> 0 | Z11: Verified score: | AA11: =AA9/$K$11*$M$11 -> 0
C13: Level 1 | E13: =MIN(E14:E19) -> 0 | F13: Level 2 | H13: =MIN(H14:H19) -> 0 | I13: Level 3 | K13: =MIN(K14:K20) -> 0
B14: Benchmark | C14: Adaptation options to treat all extreme and high priority climate change risks are identified, assessed and appropriate measures implemented | E14: 0 | F14: The requirements for Level 1 are achieved | H14: =E13 -> 0 | I14: The requirements for Level 2 are achieved | K14: =H13 -> 0
C15: AND | F15: AND | I15: AND
C16: After treatment there are no extreme priority residual climate change risks. | E16: 0 | F16: Adaptation options to treat 25- 50% of all medium priority climate change risks are identified, assessed and appropriate measures implemented. | H16: 0 | I16: The optimal scale and timing of options is addressed (which may be triggered by when a specific climate threshold is likely to be achieved) | K16: 0
I17: AND
I18: Adaptation options to treat at least 50% of all medium priority climate change risks are identified, assessed and appropriate measures implemented. | K18: 0
I19: AND | K19: 0
I20: After treatment there are no high priority residual climate change risks
J21: Working level: | K21: =IF(K32="Y",K40,E13+H13+K13) -> 0 | M21: =K21/$K$11*$M$11 -> 0
B22: Warnings | D22: Check ruling details | E22: =IF(K32="N",1,IF(OR(J38="",K40=""),0,1)) -> 0
J23: Set level assessed round 1: | M23: =K23/$K$11*$M$11 -> 0
D24: Check additional guidance | E24: =IF(SUM(L98:L103)>=1,0,1) -> 1
J25: Set level assessed round 2: | M25: =K25/$K$11*$M$11 -> 0
D26: Check evidence | E26: =IF(K124<K122,0,1) -> 0
B30: Part 2: Rulings
J32: Is a ruling used for this credit?
I38: Ruling number:
J40: New working score using ruling: | M40: =K40/$K$11*$M$11 -> 0
B43: Ruling description text box (copy from spreadsheet): | O43: Verification comment on ruling | T43: Verification comment on ruling | Y43: Verification comment on ruling
B51: Additional comments text box (as required)
B61: Part 3: Description of how criteria were met
AH66: Level verified: | AP66: Level verified: | AX66: Level verified: | BF66: Level verified:
B68: =D1 -> Cli-2 | C68: How were the criteria met? (enter explanation in text boxes) | O68: Verification comment Round 2 | T68: Verification comment Round 1 | Y68: Verification comment Round 2 | AE68: Verifier 1 Round 1 comments | AM68: Verifier 2 Round 1 comments | AU68: Verifier 1 Round 2 comments | BC68: Verifier 2 Round 2 comments
B69: Level 1 | N69: Level 1 | AD69: Level 1 | AJ69: 0 | AL69: Level 1 | AR69: 0 | AT69: Level 1 | AZ69: 0 | BB69: Level 1 | BH69: 0
B76: Level 2 | N76: Level 2 | AD76: Level 2 | AJ76: 0 | AL76: Level 2 | AR76: 0 | AT76: Level 2 | AZ76: 0 | BB76: Level 2 | BH76: 0
B83: Level 3 | N83: Level 3 | AD83: Level 3 | AJ83: 0 | AL83: Level 3 | AR83: 0 | AT83: Level 3 | AZ83: 0 | BB83: Level 3 | BH83: 0
B92: Part 4: Additional guidance ('must' statements)
B96: =D1 -> Cli-2 | C96: Additional guidance items (must statements)
B97: Level | C97: Must statements | K97: OK | L97: Calc | AE97: Verifier comment | AJ97: OK | AM97: Verifier comment | AR97: OK | AU97: Verifier comment | AZ97: OK | BC97: Verifier comment | BH97: OK
B98: 1 | C98: Adaptation options must be identified and assessed to treat (at least) all extreme and high priority risks as identified by an appropriate risk assessment | K98: 0 | L98: =IF(AND(B98<=$K$21,K98=0),1,0) -> 0 | AJ98: 0 | AR98: 0 | AZ98: 0 | BH98: 0
B99: 2 | C99: Adaptation options must be identified and assessed to treat (at least) all medium priority risks | K99: 0 | L99: 0 | AJ99: 0 | AR99: 0 | AZ99: 0 | BH99: 0
B100: 2 | C100: Adaptation measures to treat all medium priority risks must be incorporated into designs and/or management plans (Design Rating) or constructed and/or incorporated into operational plans (As-Built Rating). | K100: 0 | L100: 0 | AJ100: 0 | AR100: 0 | AZ100: 0 | BH100: 0
B101: 3 | C101: The optimal scale and timing of implementing adaptation options must be addressed | K101: 0 | L101: 0 | AJ101: 0 | AR101: 0 | AZ101: 0 | BH101: 0
B102: 3 | C102: The identification, assessment and implementation of adaptation options must be extended to (at least) 50% of the medium priority risks. | K102: 0 | L102: 0 | AJ102: 0 | AR102: 0 | AZ102: 0 | BH102: 0
B103: 3 | C103: There are no high residual climate change risks. | K103: 0 | L103: 0 | AJ103: 0 | AR103: 0 | AZ103: 0 | BH103: 0
B107: Part 5: Evidence
B114: =D1 -> Cli-2 | C114: Evidence documents
C115: Ref. code | D115: Credit level | E115: Name of document | I115: Pinpoint reference | K115: OK
K116: 0
K117: 0
K118: 0
K119: 0 | T119: `
K120: 0
J122: Number of documents: | K122: =COUNT(K116:K120) -> 5
J124: Number OK: | K124: =SUM(K116:K120) -> 0
B127: Assessor notes and project management
J130: ="Target level for "&D1&":" -> Target level for Cli-2: | K130: =K9 -> 0
I132: Indicative cost: | J132: < Select > | K132: =INDEX(risk_achieve_table,MATCH(J132,risk_of_achieve,0),2) -> 3
I134: Difficulty: | J134: < Select > | K134: =INDEX(risk_achieve_table,MATCH(J134,risk_of_achieve,0),2) -> 3
I136: Risk of non-achievement: | J136: < Select > | K136: =INDEX(risk_achieve_table,MATCH(J136,risk_of_achieve,0),2) -> 3
I138: Overall status of credit: | J138: < Select > | K138: =INDEX(lists_actions_status,MATCH(J138,lists_actions_key,0),2) -> 1
B140: =D1 -> Cli-2 | C140: Notes
B141: General comments
B148: =D1 -> Cli-2 | C148: Actions to address this credit
C149: ID | D149: Action description | I149: Owner | J149: Status | L149: Date | U149: Credit | V149: ID | W149: Action description | X149: Owner | Y149: Date | Z149: Status | AA149: x
J150: < Select > | K150: =INDEX(lists_actions_status,MATCH(J150,lists_actions_key,0),2) -> 1 | U150: =$D$1 -> Cli-2 | V150: =IF(C150="","",C150) ->  | W150: =IF(D150="","",D150) ->  | X150: =IF(I150="","",I150) ->  | Y150: =IF(L150="","",L150) ->  | Z150: =IF(J150="< Select >","",J150) ->  | AA150: =K150 -> 1
J151: < Select > | K151: =INDEX(lists_actions_status,MATCH(J151,lists_actions_key,0),2) -> 1 | U151: =$D$1 -> Cli-2 | V151: =IF(C151="","",C151) ->  | X151: =IF(I151="","",I151) ->  | Y151: =IF(L151="","",L151) ->  | Z151: =IF(J151="< Select >","",J151) ->  | AA151: =K151 -> 1
J152: < Select > | K152: =INDEX(lists_actions_status,MATCH(J152,lists_actions_key,0),2) -> 1 | U152: Cli-2 | AA152: 1
J153: < Select > | K153: =INDEX(lists_actions_status,MATCH(J153,lists_actions_key,0),2) -> 1 | U153: Cli-2 | AA153: 1
J154: < Select > | K154: =INDEX(lists_actions_status,MATCH(J154,lists_actions_key,0),2) -> 1 | U154: Cli-2 | AA154: 1
B158: Cost-benefit tracking
B161: =D1 -> Cli-2 | C161: Collection of cost-benefit data
C162: Initative name | F162: Cost ($k) | G162: Benefit ($k) | H162: Comments
C168: Total: | F168: =SUM(F163:F167) -> 0 | G168: =SUM(G163:G167) -> 0

Sheet Ene-1 (hidden)
D1: Ene-1 | E1: =INDEX(weightings_main_tbl,MATCH(D1,weightings_credit_lst,0),2) -> Energy and carbon monitoring and reduction | T1: =D1&" Verification" -> Ene-1 Verification | AD1: =D1&" Verifier area (confidential)" -> Ene-1 Verifier area (confidential)
B2: Credit Summary Form
B4: Section 1: Credit response
I6: Materiality:
I7: =INDEX(mat_table,MATCH(INDEX(weightings_main_tbl,MATCH(D1,weightings_credit_lst,0),13),mat_code,0),2) -> Moderate (2) | M7: Score | O7: Round Two | T7: Round One | Y7: Round Two
AF8: Jump to comments
J9: Set credit target level: | M9: =K9/$K$11*$M$11 -> 0 | P9: Level verified: | U9: Level verified: | V9: 0 | Z9: Level verified: | AA9: 0
J11: Level available for this credit: | K11: =INDEX(summary_tbl_wide,MATCH(D1,summary_tbl_credits,0),7) -> 3 | M11: =ROUND(INDEX(weightings_main_tbl,MATCH(D1,weightings_credit_lst,0),18),2) -> 10.06 | P11: Verified score: | Q11: =Q9/$K$11*$M$11 -> 0 | U11: Verified score: | V11: =V9/$K$11*$M$11 -> 0 | Z11: Verified score: | AA11: =AA9/$K$11*$M$11 -> 0
C13: Level 1 | E13: =MIN(E14:E17) -> 0 | F13: Level 1-3 on a sliding scale | H13: =MIN(H14:H17) -> 0
B14: Benchmark | C14: Monitoring and modelling of energy use and GHG emissions, and actions taken to reduce them, is undertaken, covering at least Scope 1, Scope 2 and land clearing across the infrastructure lifecycle. | E14: 0 | F14: The requirements for Level 1 are achieved | H14: =E13 -> 0
F15: AND | I15: Enter % reduction:
F16: Monitoring and modelling demonstrates a reduction in GHG emissions compared to a base case footprint, for every reduction up to 30% for Level 3, fractions of Levels may be achieved on a sliding scale | H16: 0 | I16: 0
J19: Working level: | K19: =IF(K30="Y",K38,IF(E13+H13=2,IF(I16>0.3,3,ROUND(1+2*I16/0.3,1)),E13)) -> 0 | M19: =K19/$K$11*$M$11 -> 0
B20: Warnings | D20: Check ruling details | E20: =IF(K30="N",1,IF(OR(J36="",K38=""),0,1)) -> 0
J21: Set level assessed round 1: | M21: =K21/$K$11*$M$11 -> 0
D22: Check additional guidance | E22: =IF(SUM(L96:L104)>=1,0,1) -> 1
J23: Set level assessed round 2: | M23: =K23/$K$11*$M$11 -> 0
D24: Check evidence | E24: =IF(K125<K123,0,1) -> 0
B28: Section 2: Rulings
J30: Is a ruling used for this credit?
I36: Ruling number:
J38: New working score using ruling: | M38: =K38/$K$11*$M$11 -> 0
B41: Ruling description text box (copy from spreadsheet): | O41: Verification comment on ruling | T41: Verification comment on ruling | Y41: Verification comment on ruling
B49: Additional comments text box (as required)
B59: Section 3: Description of how criteria were met
AH64: Level verified: | AP64: Level verified: | AX64: Level verified: | BF64: Level verified:
B66: =D1 -> Ene-1 | C66: How were the criteria met? (enter explanation in text boxes) | O66: Verification comment Round 2 | T66: Verification comment Round 1 | Y66: Verification comment Round 2 | AE66: Verifier 1 Round 1 comments | AM66: Verifier 2 Round 1 comments | AU66: Verifier 1 Round 2 comments | BC66: Verifier 2 Round 2 comments
B67: Level 1 | N67: Level 1 | AD67: Level 1 | AJ67: 0 | AL67: Level 1 | AR67: 0 | AT67: Level 1 | AZ67: 0 | BB67: Level 1 | BH67: 0
B74: Level 2 | N74: Level 2 | AD74: Level 2 | AJ74: 0 | AL74: Level 2 | AR74: 0 | AT74: Level 2 | AZ74: 0 | BB74: Level 2 | BH74: 0
B81: Level 3 | N81: Level 3 | AD81: Level 3 | AJ81: 0 | AL81: Level 3 | AR81: 0 | AT81: Level 3 | AZ81: 0 | BB81: Level 3 | BH81: 0
B90: Section 4: Additional guidance ('must' statements)
B94: =D1 -> Ene-1 | C94: Additional guidance items (must statements)
B95: Level | C95: Must statements | K95: OK | L95: Calc | AE95: Verifier comment | AJ95: OK | AM95: Verifier comment | AR95: OK | AU95: Verifier comment | AZ95: OK | BC95: Verifier comment | BH95: OK
B96: 1 | C96: energy use and GHG emissions have been monitored and modelled. | K96: 0 | L96: =IF(AND(B96<=$K$19,K96=0),1,0) -> 0 | AJ96: 0 | AR96: 0 | AZ96: 0 | BH96: 0
B97: 1 | C97: For the As-Built rating, monitoring has been undertaken during construction | K97: 0 | L97: =IF(AND(B97<=$K$19,K97=0),1,0) -> 0 | AJ97: 0 | AR97: 0 | AZ97: 0 | BH97: 0
B98: 1 | C98: Modelling of energy use and GHG emissions has been undertaken for the operation phase based on the as-built infrastructure to give a total footprint across the infrastructure lifecycle. | K98: 0 | L98: 0 | AJ98: 0 | AR98: 0 | AZ98: 0 | BH98: 0
B99: 1 | C99: No base case development is required for Level 1, the data collected and for the various activities must be reported but no reductions need to be demonstrated. | K99: 0 | L99: 0 | AJ99: 0 | AR99: 0 | AZ99: 0 | BH99: 0
B100: 1 | C100: The estimate of energy use and GHG emissions has covered at least Scope 1 and Scope 2 emissions, plus emissions from land clearing or land use change. | K100: 0 | L100: 0 | AJ100: 0 | AR100: 0 | AZ100: 0 | BH100: 0
B101: 1 | C101: Any source of energy use or GHG emissions that is likely to account for more than 5% of the footprint from Scope 1 and 2 and land clearing is considered significant and is included. | K101: 0 | L101: 0 | AJ101: 0 | AR101: 0 | AZ101: 0 | BH101: 0
B102: 1 | C102: Embodied energy and emissions have not be included, as they are considered in the Materials Category. | K102: 0 | L102: 0 | AJ102: 0 | AR102: 0 | AZ102: 0 | BH102: 0
B103: 1 | C103: The monitoring and modelling of energy and GHG emissions have been either managed by, reviewed by, or audited by a suitably qualified person. | K103: 0 | L103: 0 | AJ103: 0 | AR103: 0 | AZ103: 0 | BH103: 0
B104: 1 | C104: The suitably qualified person has a formal qualification and a minimum of five years’ experience in energy or GHG management. | K104: 0 | L104: =IF(AND(B104<=$K$19,K104=0),1,0) -> 0 | AJ104: 0 | AR104: 0 | AZ104: 0 | BH104: 0
B108: Section 5: Evidence
B115: =D1 -> Ene-1 | C115: Evidence documents
C116: Ref. code | D116: Credit level | E116: Name of document | I116: Pinpoint reference | K116: OK
K117: 0
K118: 0
K119: 0
K120: 0 | T120: `
K121: 0
J123: Number of documents: | K123: =COUNT(K117:K121) -> 5
J125: Number OK: | K125: =SUM(K117:K121) -> 0
B128: Assessor notes and project management
J131: ="Target level for "&D1&":" -> Target level for Ene-1: | K131: =K9 -> 0
I133: Indicative cost: | J133: < Select > | K133: =INDEX(risk_achieve_table,MATCH(J133,risk_of_achieve,0),2) -> 3
I135: Difficulty: | J135: < Select > | K135: =INDEX(risk_achieve_table,MATCH(J135,risk_of_achieve,0),2) -> 3
I137: Risk of non-achievement: | J137: < Select > | K137: =INDEX(risk_achieve_table,MATCH(J137,risk_of_achieve,0),2) -> 3
I139: Overall status of credit: | J139: < Select > | K139: =INDEX(lists_actions_status,MATCH(J139,lists_actions_key,0),2) -> 1
B141: =D1 -> Ene-1 | C141: Notes
B142: General comments
B149: =D1 -> Ene-1 | C149: Actions to address this credit
C150: ID | D150: Action description | I150: Owner | J150: Status | L150: Date | U150: Credit | V150: ID | W150: Action description | X150: Owner | Y150: Date | Z150: Status | AA150: x
J151: < Select > | K151: =INDEX(lists_actions_status,MATCH(J151,lists_actions_key,0),2) -> 1 | U151: =$D$1 -> Ene-1 | V151: =IF(C151="","",C151) ->  | W151: =IF(D151="","",D151) ->  | X151: =IF(I151="","",I151) ->  | Y151: =IF(L151="","",L151) ->  | Z151: =IF(J151="< Select >","",J151) ->  | AA151: =K151 -> 1
J152: < Select > | K152: =INDEX(lists_actions_status,MATCH(J152,lists_actions_key,0),2) -> 1 | U152: =$D$1 -> Ene-1 | V152: =IF(C152="","",C152) ->  | X152: =IF(I152="","",I152) ->  | Y152: =IF(L152="","",L152) ->  | Z152: =IF(J152="< Select >","",J152) ->  | AA152: =K152 -> 1
J153: < Select > | K153: =INDEX(lists_actions_status,MATCH(J153,lists_actions_key,0),2) -> 1 | U153: Ene-1 | AA153: 1
J154: < Select > | K154: =INDEX(lists_actions_status,MATCH(J154,lists_actions_key,0),2) -> 1 | U154: Ene-1 | AA154: 1
J155: < Select > | K155: =INDEX(lists_actions_status,MATCH(J155,lists_actions_key,0),2) -> 1 | U155: Ene-1 | AA155: 1
B159: Cost-benefit tracking
B162: =D1 -> Ene-1 | C162: Collection of cost-benefit data
C163: Initative name | F163: Cost ($k) | G163: Benefit ($k) | H163: Comments
C169: Total: | F169: =SUM(F164:F168) -> 0 | G169: =SUM(G164:G168) -> 0

Sheet Ene-2 (hidden)
D1: Ene-2 | E1: =INDEX(weightings_main_tbl,MATCH(D1,weightings_credit_lst,0),2) -> Renewable energy | T1: =D1&" Verification" -> Ene-2 Verification | AD1: =D1&" Verifier area (confidential)" -> Ene-2 Verifier area (confidential)
B2: Credit Summary Form
B4: Section 1: Credit response
I6: Materiality:
I7: =INDEX(mat_table,MATCH(INDEX(weightings_main_tbl,MATCH(D1,weightings_credit_lst,0),13),mat_code,0),2) -> Moderate (2) | M7: Score | O7: Round Two | T7: Round One | Y7: Round Two
J9: Set credit target level: | M9: =K9/$K$11*$M$11 -> 0 | P9: Level verified: | U9: Level verified: | Z9: Level verified:
J11: Level available for this credit: | K11: =INDEX(summary_tbl_wide,MATCH(D1,summary_tbl_credits,0),7) -> 3 | M11: =ROUND(INDEX(weightings_main_tbl,MATCH(D1,weightings_credit_lst,0),18),2) -> 1.68 | P11: Verified score: | Q11: =Q9/$K$11*$M$11 -> 0 | U11: Verified score: | V11: =V9/$K$11*$M$11 -> 0 | Z11: Verified score: | AA11: =AA9/$K$11*$M$11 -> 0
C13: Level 1 | E13: =MIN(E14:E17) -> 0 | F13: Level 1-3 on a sliding scale | H13: =MIN(H14:H17) -> 0
B14: Benchmark | C14: Opportunities for use of renewable energy fully investigated. | E14: 0 | F14: The requirements for Level 1 are achieved | H14: =E13 -> 0
F15: AND | I15: Enter % reduction:
F16: For every substitution of energy from renewable sources up to 40% for Level 3, fractions of Levels may be achieved on a sliding scale. | H16: 0 | I16: 0
J18: Working level: | K18: =IF(K29="Y",K37,(1+I16/0.4*2)*H14) -> 0 | M18: =K18/$K$11*$M$11 -> 0
B19: Warnings | D19: Check ruling details | E19: =IF(K29="N",1,IF(OR(J35="",K37=""),0,1)) -> 0
J20: Set level assessed round 1: | M20: =K20/$K$11*$M$11 -> 0
D21: Check additional guidance | E21: =IF(SUM(L95:L95)>=1,0,1) -> 1
J22: Set level assessed round 2: | M22: =K22/$K$11*$M$11 -> 0
D23: Check evidence | E23: =IF(K116<K114,0,1) -> 0
B27: Section 2: Rulings
J29: Is a ruling used for this credit?
I35: Ruling number:
J37: New working score using ruling: | M37: =K37/$K$11*$M$11 -> 0
B40: Ruling description text box (copy from spreadsheet): | O40: Verification comment on ruling | T40: Verification comment on ruling | Y40: Verification comment on ruling
B48: Additional comments text box (as required)
B58: Section 3: Description of how criteria were met
AH63: Level verified: | AP63: Level verified: | AX63: Level verified: | BF63: Level verified:
B65: =D1 -> Ene-2 | C65: How were the criteria met? (enter explanation in text boxes) | O65: Verification comment Round 2 | T65: Verification comment Round 1 | Y65: Verification comment Round 2 | AE65: Verifier 1 Round 1 comments | AM65: Verifier 2 Round 1 comments | AU65: Verifier 1 Round 2 comments | BC65: Verifier 2 Round 2 comments
B66: Level 1 | N66: Level 1 | AD66: Level 1 | AJ66: 0 | AL66: Level 1 | AR66: 0 | AT66: Level 1 | AZ66: 0 | BB66: Level 1 | BH66: 0
B73: Level 2 | N73: Level 2 | AD73: Level 2 | AJ73: 0 | AL73: Level 2 | AR73: 0 | AT73: Level 2 | AZ73: 0 | BB73: Level 2 | BH73: 0
B80: Level 3 | N80: Level 3 | AD80: Level 3 | AJ80: 0 | AL80: Level 3 | AR80: 0 | AT80: Level 3 | AZ80: 0 | BB80: Level 3 | BH80: 0
B89: Section 4: Additional guidance ('must' statements)
B93: =D1 -> Ene-2 | C93: Additional guidance items (must statements)
B94: Level | C94: Must statements | K94: OK | L94: Calc | AE94: Verifier comment | AJ94: OK | AM94: Verifier comment | AR94: OK | AU94: Verifier comment | AZ94: OK | BC94: Verifier comment | BH94: OK
B95: 1 | C95: Opportunities for the use of renewable energy across the infrastructure lifecycle have been comprehensively investigated. | K95: 0 | L95: =IF(AND(B95<=$K$18,K95=0),1,0) -> 0 | AJ95: 0 | AR95: 0 | AZ95: 0 | BH95: 0
B99: Section 5: Evidence
B106: =D1 -> Ene-2 | C106: Evidence documents
C107: Ref. code | D107: Credit level | E107: Name of document | I107: Pinpoint reference | K107: OK
K108: 0
K109: 0
K110: 0
K111: 0
K112: 0
J114: Number of documents: | K114: =COUNT(K108:K112) -> 5
J116: Number OK: | K116: =SUM(K108:K112) -> 0
B119: Assessor notes and project management
J122: ="Target level for "&D1&":" -> Target level for Ene-2: | K122: =K9 -> 0
I124: Indicative cost: | J124: < Select > | K124: =INDEX(risk_achieve_table,MATCH(J124,risk_of_achieve,0),2) -> 3
I126: Difficulty: | J126: < Select > | K126: =INDEX(risk_achieve_table,MATCH(J126,risk_of_achieve,0),2) -> 3
I128: Risk of non-achievement: | J128: < Select > | K128: =INDEX(risk_achieve_table,MATCH(J128,risk_of_achieve,0),2) -> 3
I130: Overall status of credit: | J130: < Select > | K130: =INDEX(lists_actions_status,MATCH(J130,lists_actions_key,0),2) -> 1
B132: =D1 -> Ene-2 | C132: Notes
B133: General comments
B140: =D1 -> Ene-2 | C140: Actions to address this credit
C141: ID | D141: Action description | I141: Owner | J141: Status | L141: Date | U141: Credit | V141: ID | W141: Action description | X141: Owner | Y141: Date | Z141: Status | AA141: x
J142: < Select > | K142: =INDEX(lists_actions_status,MATCH(J142,lists_actions_key,0),2) -> 1 | U142: =$D$1 -> Ene-2 | V142: =IF(C142="","",C142) ->  | W142: =IF(D142="","",D142) ->  | X142: =IF(I142="","",I142) ->  | Y142: =IF(L142="","",L142) ->  | Z142: =IF(J142="< Select >","",J142) ->  | AA142: =K142 -> 1
J143: < Select > | K143: =INDEX(lists_actions_status,MATCH(J143,lists_actions_key,0),2) -> 1 | U143: =$D$1 -> Ene-2 | V143: =IF(C143="","",C143) ->  | X143: =IF(I143="","",I143) ->  | Y143: =IF(L143="","",L143) ->  | Z143: =IF(J143="< Select >","",J143) ->  | AA143: =K143 -> 1
J144: < Select > | K144: =INDEX(lists_actions_status,MATCH(J144,lists_actions_key,0),2) -> 1 | U144: Ene-2 | AA144: 1
J145: < Select > | K145: =INDEX(lists_actions_status,MATCH(J145,lists_actions_key,0),2) -> 1 | U145: Ene-2 | AA145: 1
J146: < Select > | K146: =INDEX(lists_actions_status,MATCH(J146,lists_actions_key,0),2) -> 1 | U146: Ene-2 | AA146: 1
B150: Cost-benefit tracking
B153: =D1 -> Ene-2 | C153: Collection of cost-benefit data
C154: Initative name | F154: Cost ($k) | G154: Benefit ($k) | H154: Comments
C160: Total: | F160: =SUM(F155:F159) -> 0 | G160: =SUM(G155:G159) -> 0

Sheet Ene-3 (hidden)
D1: Ene-3 | E1: =INDEX(weightings_main_tbl,MATCH(D1,weightings_credit_lst,0),2) ->  | O1: =D1&" Verification" -> Ene-3 Verification | Y1: =D1&" Verifier area (confidential)" -> Ene-3 Verifier area (confidential)
B2: Credit Summary Form
B4: Section 1: Credit response
I6: Materiality:
